Body Name,Date Paid,Transaction Number,Amount,Supplier Name,Supplier Type,Expense Area,Cost Centre Description,Expense Type
Cambridgeshire County Council,16-Feb-21,65300016378,"-51,714.00",Yorkshire Adoption Agency,COMPANY,Adoption Team,Permanance and Adoption,Professional Fees and Hired Services
Cambridgeshire County Council,01-Feb-21,51301499343,"-40,937.35",A2B Travel Group,TRADE SUPPLIER,Passenger Transport other,Tendered Bus Costs,Support - subsidised bus routes
Cambridgeshire County Council,23-Feb-21,51301527085,"-37,774.00",PETERBOROUGH CITY COUNCIL,OTHER PUBLIC BODIES,Corporate Redundancies,CLT Restructure,Redundancy Payments
Cambridgeshire County Council,04-Feb-21,51301513668,"-25,800.00",Keswick Care Ltd,CARE ESTABLISHMENT,LAC Placements,Placements - residential homes,Agency Placements - Out of  County
Cambridgeshire County Council,26-Feb-21,51301528065,"-15,735.20",Good News Nwk Ltd,CARE ESTABLISHMENT,LAC Placements,Placements - residential homes,Agency Placements - Out of  County
Cambridgeshire County Council,26-Feb-21,51301528066,"-14,919.37",Good News Nwk Ltd,CARE ESTABLISHMENT,LAC Placements,Placements - residential homes,Agency Placements - Out of  County
Cambridgeshire County Council,05-Feb-21,51301516023,"-14,080.00",Higher Hopes Ltd,CARE ESTABLISHMENT,LAC Placements,Placements - residential homes,Agency Placements - In County
Cambridgeshire County Council,26-Feb-21,51301528084,"-13,542.85",Keys PCE Ltd,CARE ESTABLISHMENT,LAC Placements,Placements - residential homes,Agency Placements - Out of  County
Cambridgeshire County Council,26-Feb-21,51301528085,"-13,417.40",Keys PCE Ltd,CARE ESTABLISHMENT,LAC Placements,Placements - residential homes,Agency Placements - Out of  County
Cambridgeshire County Council,26-Feb-21,51301528079,"-13,218.48",Keys PCE Ltd,CARE ESTABLISHMENT,LAC Placements,Placements - residential homes,Agency Placements - Out of  County
Cambridgeshire County Council,26-Feb-21,51301528080,"-10,800.00",Keys PCE Ltd,CARE ESTABLISHMENT,LAC Placements,Placements - residential homes,Agency Placements - Out of  County
Cambridgeshire County Council,17-Feb-21,51301520124,"-10,157.16",Keys PCE Ltd,CARE ESTABLISHMENT,LAC Placements,Placements - residential homes,Agency Placements - In County
Cambridgeshire County Council,19-Feb-21,51301524950,"-9,675.00",FITZWILLIAM HEALTHCARE LTD,CARE ESTABLISHMENT,OP - City & South Blocks,City and South - Long term blocks,Residential Care
Cambridgeshire County Council,19-Feb-21,51301524950,"-9,675.00",FITZWILLIAM HEALTHCARE LTD,CARE ESTABLISHMENT,OP - City & South Blocks,City and South - Long term blocks,Residential Care
Cambridgeshire County Council,19-Feb-21,51301524950,"-9,675.00",FITZWILLIAM HEALTHCARE LTD,CARE ESTABLISHMENT,OP - City & South Blocks,City and South - Long term blocks,Residential Care
Cambridgeshire County Council,19-Feb-21,51301524950,"-9,675.00",FITZWILLIAM HEALTHCARE LTD,CARE ESTABLISHMENT,OP - City & South Blocks,City and South - Long term blocks,Residential Care
Cambridgeshire County Council,19-Feb-21,51301524950,"-9,675.00",FITZWILLIAM HEALTHCARE LTD,CARE ESTABLISHMENT,OP - City & South Blocks,City and South - Long term blocks,Residential Care
Cambridgeshire County Council,19-Feb-21,51301524950,"-9,675.00",FITZWILLIAM HEALTHCARE LTD,CARE ESTABLISHMENT,OP - City & South Blocks,City and South - Long term blocks,Residential Care
Cambridgeshire County Council,19-Feb-21,51301524950,"-9,675.00",FITZWILLIAM HEALTHCARE LTD,CARE ESTABLISHMENT,OP - City & South Blocks,City and South - Long term blocks,Residential Care
Cambridgeshire County Council,19-Feb-21,51301524950,"-9,675.00",FITZWILLIAM HEALTHCARE LTD,CARE ESTABLISHMENT,OP - City & South Blocks,City and South - Long term blocks,Residential Care
Cambridgeshire County Council,19-Feb-21,51301524950,"-9,675.00",FITZWILLIAM HEALTHCARE LTD,CARE ESTABLISHMENT,OP - City & South Blocks,City and South - Long term blocks,Residential Care
Cambridgeshire County Council,11-Feb-21,51301517280,"-7,229.00",Crystal Care Solutions Ltd,CARE ESTABLISHMENT,LAC Placements,Placements - residential disability,Agency Placements - Out of  County
Cambridgeshire County Council,11-Feb-21,51301517284,"-7,229.00",Crystal Care Solutions Ltd,CARE ESTABLISHMENT,LAC Placements,Placements - residential disability,Agency Placements - Out of  County
Cambridgeshire County Council,08-Feb-21,51301509906,"-6,949.80",MOTT MACDONALD LTD,TRADE SUPPLIER,GCP - Communications,GCP - Strategic Communicatations,Staffing Recharges - External
Cambridgeshire County Council,26-Feb-21,51301526926,"-6,844.44",STAGECOACH SERVICES LTD,TRADE SUPPLIER,Concessionary Fares,Concessionary Fares,Concessions - payments to transport operators
Cambridgeshire County Council,23-Feb-21,51301518267,"-6,750.00",Horizon Care and Education,EDUCATION,SEN Placements,Placements - Education,Independent School Placements
Cambridgeshire County Council,11-Feb-21,51301517281,"-6,624.00",Crystal Care Solutions Ltd,CARE ESTABLISHMENT,LAC Placements,Placements - residential disability,Agency Placements - Out of  County
Cambridgeshire County Council,15-Feb-21,51301512866,"-6,540.00",Broadlands Hall,EDUCATION,SEN Placements,Placements - Education,Independent School Placements
Cambridgeshire County Council,02-Feb-21,51301512992,"-6,350.10",THE CAMBRIDGE NURSING CENTRE,CARE ESTABLISHMENT,OP - City & South Blocks,City and South - Long term blocks,Nursing Care
Cambridgeshire County Council,02-Feb-21,51301512992,"-6,350.10",THE CAMBRIDGE NURSING CENTRE,CARE ESTABLISHMENT,OP - City & South Blocks,City and South - Long term blocks,Nursing Care
Cambridgeshire County Council,02-Feb-21,51301512992,"-6,350.10",THE CAMBRIDGE NURSING CENTRE,CARE ESTABLISHMENT,OP - City & South Blocks,City and South - Long term blocks,Nursing Care
Cambridgeshire County Council,02-Feb-21,51301512992,"-6,350.10",THE CAMBRIDGE NURSING CENTRE,CARE ESTABLISHMENT,OP - City & South Blocks,City and South - Long term blocks,Nursing Care
Cambridgeshire County Council,02-Feb-21,51301512992,"-6,350.10",THE CAMBRIDGE NURSING CENTRE,CARE ESTABLISHMENT,OP - City & South Blocks,City and South - Long term blocks,Nursing Care
Cambridgeshire County Council,02-Feb-21,51301512992,"-6,350.10",THE CAMBRIDGE NURSING CENTRE,CARE ESTABLISHMENT,OP - City & South Blocks,City and South - Long term blocks,Nursing Care
Cambridgeshire County Council,02-Feb-21,51301512992,"-6,350.10",THE CAMBRIDGE NURSING CENTRE,CARE ESTABLISHMENT,OP - City & South Blocks,City and South - Long term blocks,Nursing Care
Cambridgeshire County Council,02-Feb-21,51301512992,"-6,350.10",THE CAMBRIDGE NURSING CENTRE,CARE ESTABLISHMENT,OP - City & South Blocks,City and South - Long term blocks,Nursing Care
Cambridgeshire County Council,02-Feb-21,51301512992,"-6,350.10",THE CAMBRIDGE NURSING CENTRE,CARE ESTABLISHMENT,OP - City & South Blocks,City and South - Long term blocks,Nursing Care
Cambridgeshire County Council,02-Feb-21,51301512992,"-6,350.10",THE CAMBRIDGE NURSING CENTRE,CARE ESTABLISHMENT,OP - City & South Blocks,City and South - Long term blocks,Nursing Care
Cambridgeshire County Council,02-Feb-21,51301512992,"-6,350.10",THE CAMBRIDGE NURSING CENTRE,CARE ESTABLISHMENT,OP - City & South Blocks,City and South - Long term blocks,Nursing Care
Cambridgeshire County Council,02-Feb-21,51301512992,"-6,350.10",THE CAMBRIDGE NURSING CENTRE,CARE ESTABLISHMENT,OP - City & South Blocks,City and South - Long term blocks,Nursing Care
Cambridgeshire County Council,02-Feb-21,51301512992,"-6,350.10",THE CAMBRIDGE NURSING CENTRE,CARE ESTABLISHMENT,OP - City & South Blocks,City and South - Long term blocks,Nursing Care
Cambridgeshire County Council,02-Feb-21,51301512992,"-6,350.10",THE CAMBRIDGE NURSING CENTRE,CARE ESTABLISHMENT,OP - City & South Blocks,City and South - Long term blocks,Nursing Care
Cambridgeshire County Council,02-Feb-21,51301512992,"-6,350.10",THE CAMBRIDGE NURSING CENTRE,CARE ESTABLISHMENT,OP - City & South Blocks,City and South - Long term blocks,Nursing Care
Cambridgeshire County Council,02-Feb-21,51301512992,"-6,350.10",THE CAMBRIDGE NURSING CENTRE,CARE ESTABLISHMENT,OP - City & South Blocks,City and South - Long term blocks,Nursing Care
Cambridgeshire County Council,02-Feb-21,51301512992,"-6,350.10",THE CAMBRIDGE NURSING CENTRE,CARE ESTABLISHMENT,OP - City & South Blocks,City and South - Long term blocks,Nursing Care
Cambridgeshire County Council,02-Feb-21,51301512992,"-6,350.10",THE CAMBRIDGE NURSING CENTRE,CARE ESTABLISHMENT,OP - City & South Blocks,City and South - Long term blocks,Nursing Care
Cambridgeshire County Council,02-Feb-21,51301512992,"-6,350.10",THE CAMBRIDGE NURSING CENTRE,CARE ESTABLISHMENT,OP - City & South Blocks,City and South - Long term blocks,Nursing Care
Cambridgeshire County Council,02-Feb-21,51301512992,"-6,350.10",THE CAMBRIDGE NURSING CENTRE,CARE ESTABLISHMENT,OP - City & South Blocks,City and South - Long term blocks,Nursing Care
Cambridgeshire County Council,26-Feb-21,51301503847,"-6,060.00",SYSTEMS ENGINEERING AND ASSESMENT,TRADE SUPPLIER,Parking Enforcement,Bus Route Enforcement,Traffic Signs and Lines Maintenance
Cambridgeshire County Council,10-Feb-21,51301513484,"-5,733.75",NORFOLK AND SUFFOLK NHS FOUNDATION TRUST,TRUST (OTHER),Mental Health Commissioning,Mental Health Commissioning,Professional Fees and Hired Services
Cambridgeshire County Council,09-Feb-21,51301516645,"-5,592.67",CAERUS CARE LTD,CARE ESTABLISHMENT,LAC Placements,Placements - 16+,Agency Placements - In County
Cambridgeshire County Council,23-Feb-21,51301519622,"-4,698.40",THE HESLEY GROUP,CARE ESTABLISHMENT,SEN Placements,Placements - Education,Independent School Placements
Cambridgeshire County Council,09-Feb-21,51301515311,"-4,586.40",Next Steps Ltd,COMPANY,LD - Young Adults Team,LD - Young Adults - Special Needs,Supported Living
Cambridgeshire County Council,09-Feb-21,51301515311,"-4,586.40",Next Steps Ltd,COMPANY,LD - Young Adults Team,LD - Young Adults - Special Needs,Supported Living
Cambridgeshire County Council,11-Feb-21,51301516122,"-4,213.25",Redacted Personal Data ,FOSTER PARENT,Adoption Allowances,Adoption Allowances,Childcare Costs
Cambridgeshire County Council,19-Feb-21,51301525561,"-3,670.50",CAMB CARE LTD,CARE ESTABLISHMENT,Physical Disablity - Cost of Care,Countywide PD Service - Care,Domiciliary Care
Cambridgeshire County Council,12-Feb-21,51301518140,"-3,327.54",FOSTERING SOLUTIONS LTD,CARE ESTABLISHMENT,LAC Placements,Placements - independent fostering,Agency Placements - Out of  County
Cambridgeshire County Council,12-Feb-21,51301518146,"-3,327.54",FOSTERING SOLUTIONS LTD,CARE ESTABLISHMENT,LAC Placements,Placements - independent fostering,Agency Placements - Out of  County
Cambridgeshire County Council,12-Feb-21,51301518149,"-3,327.54",FOSTERING SOLUTIONS LTD,CARE ESTABLISHMENT,LAC Placements,Placements - independent fostering,Agency Placements - Out of  County
Cambridgeshire County Council,12-Feb-21,51301518155,"-3,327.54",FOSTERING SOLUTIONS LTD,CARE ESTABLISHMENT,LAC Placements,Placements - independent fostering,Agency Placements - Out of  County
Cambridgeshire County Council,12-Feb-21,51301518161,"-3,327.54",FOSTERING SOLUTIONS LTD,CARE ESTABLISHMENT,LAC Placements,Placements - independent fostering,Agency Placements - Out of  County
Cambridgeshire County Council,12-Feb-21,51301518158,"-3,220.20",FOSTERING SOLUTIONS LTD,CARE ESTABLISHMENT,LAC Placements,Placements - independent fostering,Agency Placements - Out of  County
Cambridgeshire County Council,12-Feb-21,51301518152,"-3,220.20",FOSTERING SOLUTIONS LTD,CARE ESTABLISHMENT,LAC Placements,Placements - independent fostering,Agency Placements - Out of  County
Cambridgeshire County Council,12-Feb-21,51301518143,"-3,220.20",FOSTERING SOLUTIONS LTD,CARE ESTABLISHMENT,LAC Placements,Placements - independent fostering,Agency Placements - Out of  County
Cambridgeshire County Council,12-Feb-21,51301518137,"-3,220.20",FOSTERING SOLUTIONS LTD,CARE ESTABLISHMENT,LAC Placements,Placements - independent fostering,Agency Placements - Out of  County
Cambridgeshire County Council,11-Feb-21,51301517312,"-2,902.82",Redacted Personal Data ,INDIVIDUAL,Children's Disability Direct Payments,CSC Direct Payments,Direct Payments
Cambridgeshire County Council,19-Feb-21,51301522016,"-2,803.92",THE MANOR CHESHIRE HOME,CARE ESTABLISHMENT,LD - East Locality - Cost of Care,LD - East Cambs - Care,Rehabilitation And Respite Care
Cambridgeshire County Council,19-Feb-21,51301522016,"-2,803.92",THE MANOR CHESHIRE HOME,CARE ESTABLISHMENT,LD - East Locality - Cost of Care,LD - East Cambs - Care,Rehabilitation And Respite Care
Cambridgeshire County Council,19-Feb-21,51301522016,"-2,803.92",THE MANOR CHESHIRE HOME,CARE ESTABLISHMENT,LD - East Locality - Cost of Care,LD - East Cambs - Care,Rehabilitation And Respite Care
Cambridgeshire County Council,19-Feb-21,51301524950,"-2,764.29",FITZWILLIAM HEALTHCARE LTD,CARE ESTABLISHMENT,OP - City & South Blocks,City and South - Long term blocks,Residential Care
Cambridgeshire County Council,09-Feb-21,51301515311,"-2,620.80",Next Steps Ltd,COMPANY,LD - Young Adults Team,LD - Young Adults - Special Needs,Supported Living
Cambridgeshire County Council,19-Feb-21,51301524958,"-2,324.84",THE RED HOUSE RESIDENTIAL & NURSING HOME,CARE ESTABLISHMENT,OP - Hunts Blocks,Hunts - Long term blocks,Nursing Care
Cambridgeshire County Council,19-Feb-21,51301524958,"-2,324.84",THE RED HOUSE RESIDENTIAL & NURSING HOME,CARE ESTABLISHMENT,OP - Hunts Blocks,Hunts - Long term blocks,Nursing Care
Cambridgeshire County Council,19-Feb-21,51301524958,"-2,324.84",THE RED HOUSE RESIDENTIAL & NURSING HOME,CARE ESTABLISHMENT,OP - Hunts Blocks,Hunts - Long term blocks,Nursing Care
Cambridgeshire County Council,19-Feb-21,51301524958,"-2,324.84",THE RED HOUSE RESIDENTIAL & NURSING HOME,CARE ESTABLISHMENT,OP - Hunts Blocks,Hunts - Long term blocks,Nursing Care
Cambridgeshire County Council,19-Feb-21,51301524958,"-2,324.84",THE RED HOUSE RESIDENTIAL & NURSING HOME,CARE ESTABLISHMENT,OP - Hunts Blocks,Hunts - Long term blocks,Nursing Care
Cambridgeshire County Council,19-Feb-21,51301524958,"-2,324.84",THE RED HOUSE RESIDENTIAL & NURSING HOME,CARE ESTABLISHMENT,OP - Hunts Blocks,Hunts - Long term blocks,Nursing Care
Cambridgeshire County Council,19-Feb-21,51301524958,"-2,324.84",THE RED HOUSE RESIDENTIAL & NURSING HOME,CARE ESTABLISHMENT,OP - Hunts Blocks,Hunts - Long term blocks,Nursing Care
Cambridgeshire County Council,19-Feb-21,51301524958,"-2,324.84",THE RED HOUSE RESIDENTIAL & NURSING HOME,CARE ESTABLISHMENT,OP - Hunts Blocks,Hunts - Long term blocks,Nursing Care
Cambridgeshire County Council,19-Feb-21,51301524958,"-2,324.84",THE RED HOUSE RESIDENTIAL & NURSING HOME,CARE ESTABLISHMENT,OP - Hunts Blocks,Hunts - Long term blocks,Nursing Care
Cambridgeshire County Council,19-Feb-21,51301524958,"-2,324.84",THE RED HOUSE RESIDENTIAL & NURSING HOME,CARE ESTABLISHMENT,OP - Hunts Blocks,Hunts - Long term blocks,Nursing Care
Cambridgeshire County Council,19-Feb-21,51301524958,"-2,324.84",THE RED HOUSE RESIDENTIAL & NURSING HOME,CARE ESTABLISHMENT,OP - Hunts Blocks,Hunts - Long term blocks,Nursing Care
Cambridgeshire County Council,19-Feb-21,51301524958,"-2,324.84",THE RED HOUSE RESIDENTIAL & NURSING HOME,CARE ESTABLISHMENT,OP - Hunts Blocks,Hunts - Long term blocks,Nursing Care
Cambridgeshire County Council,19-Feb-21,51301524958,"-2,324.84",THE RED HOUSE RESIDENTIAL & NURSING HOME,CARE ESTABLISHMENT,OP - Hunts Blocks,Hunts - Long term blocks,Nursing Care
Cambridgeshire County Council,19-Feb-21,51301524958,"-2,324.84",THE RED HOUSE RESIDENTIAL & NURSING HOME,CARE ESTABLISHMENT,OP - Hunts Blocks,Hunts - Long term blocks,Nursing Care
Cambridgeshire County Council,19-Feb-21,51301524958,"-2,324.84",THE RED HOUSE RESIDENTIAL & NURSING HOME,CARE ESTABLISHMENT,OP - Hunts Blocks,Hunts - Long term blocks,Nursing Care
Cambridgeshire County Council,19-Feb-21,51301524958,"-2,324.84",THE RED HOUSE RESIDENTIAL & NURSING HOME,CARE ESTABLISHMENT,OP - Hunts Blocks,Hunts - Long term blocks,Nursing Care
Cambridgeshire County Council,19-Feb-21,51301524958,"-2,324.84",THE RED HOUSE RESIDENTIAL & NURSING HOME,CARE ESTABLISHMENT,OP - Hunts Blocks,Hunts - Long term blocks,Nursing Care
Cambridgeshire County Council,19-Feb-21,51301524958,"-2,324.84",THE RED HOUSE RESIDENTIAL & NURSING HOME,CARE ESTABLISHMENT,OP - Hunts Blocks,Hunts - Long term blocks,Nursing Care
Cambridgeshire County Council,19-Feb-21,51301524958,"-2,324.84",THE RED HOUSE RESIDENTIAL & NURSING HOME,CARE ESTABLISHMENT,OP - Hunts Blocks,Hunts - Long term blocks,Nursing Care
Cambridgeshire County Council,19-Feb-21,51301524958,"-2,324.84",THE RED HOUSE RESIDENTIAL & NURSING HOME,CARE ESTABLISHMENT,OP - Hunts Blocks,Hunts - Long term blocks,Nursing Care
Cambridgeshire County Council,19-Feb-21,51301524958,"-2,324.84",THE RED HOUSE RESIDENTIAL & NURSING HOME,CARE ESTABLISHMENT,OP - Hunts Blocks,Hunts - Long term blocks,Nursing Care
Cambridgeshire County Council,19-Feb-21,51301524958,"-2,324.84",THE RED HOUSE RESIDENTIAL & NURSING HOME,CARE ESTABLISHMENT,OP - Hunts Blocks,Hunts - Long term blocks,Nursing Care
Cambridgeshire County Council,19-Feb-21,51301524958,"-2,324.84",THE RED HOUSE RESIDENTIAL & NURSING HOME,CARE ESTABLISHMENT,OP - Hunts Blocks,Hunts - Long term blocks,Nursing Care
Cambridgeshire County Council,19-Feb-21,51301524958,"-2,324.84",THE RED HOUSE RESIDENTIAL & NURSING HOME,CARE ESTABLISHMENT,OP - Hunts Blocks,Hunts - Long term blocks,Nursing Care
Cambridgeshire County Council,02-Feb-21,51301503407,"-2,238.00",STANGROUND ACADEMY,EDUCATION,Recoupment,Procurement - Out-County Mainstream,Independent School Placements
Cambridgeshire County Council,15-Feb-21,51301512810,"-2,200.00",NGS Gritting Services Ltd,COMPANY,Winter Maintenance,South Winter,Salt for Highways
Cambridgeshire County Council,15-Feb-21,51301512840,"-2,200.00",NGS Gritting Services Ltd,COMPANY,Winter Maintenance,North Winter,Salt for Highways
Cambridgeshire County Council,15-Feb-21,51301512808,"-2,200.00",NGS Gritting Services Ltd,COMPANY,Winter Maintenance,West Winter,Salt for Highways
Cambridgeshire County Council,15-Feb-21,51301512809,"-2,200.00",NGS Gritting Services Ltd,COMPANY,Winter Maintenance,East Winter,Salt for Highways
Cambridgeshire County Council,19-Feb-21,51301524181,"-2,158.86",Accomplish Group Support Limited,CARE ESTABLISHMENT,LD - Fenland Locality - Cost of Care,LD - Fenland  - Care,Residential Care
Cambridgeshire County Council,19-Feb-21,51301524181,"-2,158.86",Accomplish Group Support Limited,CARE ESTABLISHMENT,LD - Fenland Locality - Cost of Care,LD - Fenland  - Care,Residential Care
Cambridgeshire County Council,19-Feb-21,51301524181,"-2,158.86",Accomplish Group Support Limited,CARE ESTABLISHMENT,LD - Fenland Locality - Cost of Care,LD - Fenland  - Care,Residential Care
Cambridgeshire County Council,19-Feb-21,51301524181,"-2,158.86",Accomplish Group Support Limited,CARE ESTABLISHMENT,LD - Fenland Locality - Cost of Care,LD - Fenland  - Care,Residential Care
Cambridgeshire County Council,19-Feb-21,51301524181,"-2,158.86",Accomplish Group Support Limited,CARE ESTABLISHMENT,LD - Fenland Locality - Cost of Care,LD - Fenland  - Care,Residential Care
Cambridgeshire County Council,19-Feb-21,51301524181,"-2,158.86",Accomplish Group Support Limited,CARE ESTABLISHMENT,LD - Fenland Locality - Cost of Care,LD - Fenland  - Care,Residential Care
Cambridgeshire County Council,19-Feb-21,51301524181,"-2,158.86",Accomplish Group Support Limited,CARE ESTABLISHMENT,LD - Fenland Locality - Cost of Care,LD - Fenland  - Care,Residential Care
Cambridgeshire County Council,19-Feb-21,51301524181,"-2,158.86",Accomplish Group Support Limited,CARE ESTABLISHMENT,LD - Fenland Locality - Cost of Care,LD - Fenland  - Care,Residential Care
Cambridgeshire County Council,11-Feb-21,51301517276,"-2,065.43",Crystal Care Solutions Ltd,CARE ESTABLISHMENT,LAC Placements,Placements - residential disability,Agency Placements - Out of  County
Cambridgeshire County Council,05-Feb-21,51301514032,"-1,905.43",Berry Gifford Ltd,CARE ESTABLISHMENT,LAC Placements,Placements - supported accommodation,Agency Placements - In County
Cambridgeshire County Council,11-Feb-21,51301517277,"-1,892.57",Crystal Care Solutions Ltd,CARE ESTABLISHMENT,LAC Placements,Placements - residential disability,Agency Placements - Out of  County
Cambridgeshire County Council,19-Feb-21,51301507917,"-1,847.00",EAGLE WOOD NEUROLOGICAL CARE,CARE ESTABLISHMENT,Physical Disablity - Cost of Care,Countywide PD Service - Care,Residential Care
Cambridgeshire County Council,19-Feb-21,51301507917,"-1,847.00",EAGLE WOOD NEUROLOGICAL CARE,CARE ESTABLISHMENT,Physical Disablity - Cost of Care,Countywide PD Service - Care,Residential Care
Cambridgeshire County Council,02-Feb-21,51301512992,"-1,814.31",THE CAMBRIDGE NURSING CENTRE,CARE ESTABLISHMENT,OP - City & South Blocks,City and South - Long term blocks,Nursing Care
Cambridgeshire County Council,19-Feb-21,51301522016,"-1,602.24",THE MANOR CHESHIRE HOME,CARE ESTABLISHMENT,LD - East Locality - Cost of Care,LD - East Cambs - Care,Rehabilitation And Respite Care
Cambridgeshire County Council,02-Feb-21,51301509881,"-1,587.42",STANGROUND ACADEMY,EDUCATION,Recoupment,Procurement - Out-County Mainstream,Independent School Placements
Cambridgeshire County Council,26-Feb-21,51301527946,"-1,585.33",Redacted Personal Data ,INDIVIDUAL,LD - Fenland Locality - Cost of Care,LD - Fenland  - Care,Direct Payments
Cambridgeshire County Council,26-Feb-21,51301527946,"-1,585.33",Redacted Personal Data ,INDIVIDUAL,LD - Fenland Locality - Cost of Care,LD - Fenland  - Care,Direct Payments
Cambridgeshire County Council,26-Feb-21,51301527946,"-1,585.33",Redacted Personal Data ,INDIVIDUAL,LD - Fenland Locality - Cost of Care,LD - Fenland  - Care,Direct Payments
Cambridgeshire County Council,26-Feb-21,51301527946,"-1,585.33",Redacted Personal Data ,INDIVIDUAL,LD - Fenland Locality - Cost of Care,LD - Fenland  - Care,Direct Payments
Cambridgeshire County Council,26-Feb-21,51301527946,"-1,585.33",Redacted Personal Data ,INDIVIDUAL,LD - Fenland Locality - Cost of Care,LD - Fenland  - Care,Direct Payments
Cambridgeshire County Council,19-Feb-21,51301507917,"-1,583.14",EAGLE WOOD NEUROLOGICAL CARE,CARE ESTABLISHMENT,Physical Disablity - Cost of Care,Countywide PD Service - Care,Residential Care
Cambridgeshire County Council,04-Feb-21,51301511696,"-1,520.21",FENLAND DISTRICT COUNCIL,OTHER PUBLIC BODIES,LD - Head of Service,Head of LDP,Council Tax
Cambridgeshire County Council,12-Feb-21,51301517920,"-1,456.08",THE MARBROOK CENTRE,CARE ESTABLISHMENT,OP - Fenland Locality - Cost of Care,Older People - Fenland - Care,Nursing Care
Cambridgeshire County Council,19-Feb-21,51301523653,"-1,434.44",COTTENHAM COURT NURSING HOME,CARE ESTABLISHMENT,OP - City & South Locality - Cost of Care,Older People - City & South - Care,Nursing Care
Cambridgeshire County Council,05-Feb-21,51301514131,"-1,400.00",OAKLANDS CARE HOME,CARE ESTABLISHMENT,OP - East Cambs Locality - Cost of Care,East Cambs - O P Team - Care,Nursing Care
Cambridgeshire County Council,05-Feb-21,51301514131,"-1,400.00",OAKLANDS CARE HOME,CARE ESTABLISHMENT,OP - East Cambs Locality - Cost of Care,East Cambs - O P Team - Care,Nursing Care
Cambridgeshire County Council,05-Feb-21,51301514131,"-1,400.00",OAKLANDS CARE HOME,CARE ESTABLISHMENT,OP - East Cambs Locality - Cost of Care,East Cambs - O P Team - Care,Nursing Care
Cambridgeshire County Council,04-Feb-21,51301513664,"-1,364.00",Crystal Care Solutions Ltd,CARE ESTABLISHMENT,LAC Placements,Placements - residential disability,Agency Placements - Out of  County
Cambridgeshire County Council,05-Feb-21,51301515295,"-1,360.28",AFFINITY TRUST,CARE ESTABLISHMENT,LD - Fenland Locality - Cost of Care,LD - Fenland  - Care,Supported Living
Cambridgeshire County Council,05-Feb-21,51301515295,"-1,360.28",AFFINITY TRUST,CARE ESTABLISHMENT,LD - Fenland Locality - Cost of Care,LD - Fenland  - Care,Supported Living
Cambridgeshire County Council,05-Feb-21,51301515295,"-1,360.28",AFFINITY TRUST,CARE ESTABLISHMENT,LD - Fenland Locality - Cost of Care,LD - Fenland  - Care,Supported Living
Cambridgeshire County Council,05-Feb-21,51301515295,"-1,360.28",AFFINITY TRUST,CARE ESTABLISHMENT,LD - Fenland Locality - Cost of Care,LD - Fenland  - Care,Supported Living
Cambridgeshire County Council,05-Feb-21,51301515295,"-1,360.28",AFFINITY TRUST,CARE ESTABLISHMENT,LD - Fenland Locality - Cost of Care,LD - Fenland  - Care,Supported Living
Cambridgeshire County Council,05-Feb-21,51301515295,"-1,360.28",AFFINITY TRUST,CARE ESTABLISHMENT,LD - Fenland Locality - Cost of Care,LD - Fenland  - Care,Supported Living
Cambridgeshire County Council,19-Feb-21,51301523143,"-1,350.00",LONGUEVILLE COURT,CARE ESTABLISHMENT,Physical Disablity - Cost of Care,Countywide PD Service - Care,Nursing Care
Cambridgeshire County Council,19-Feb-21,51301523143,"-1,350.00",LONGUEVILLE COURT,CARE ESTABLISHMENT,Physical Disablity - Cost of Care,Countywide PD Service - Care,Nursing Care
Cambridgeshire County Council,19-Feb-21,51301523143,"-1,350.00",LONGUEVILLE COURT,CARE ESTABLISHMENT,Physical Disablity - Cost of Care,Countywide PD Service - Care,Nursing Care
Cambridgeshire County Council,19-Feb-21,51301523143,"-1,350.00",LONGUEVILLE COURT,CARE ESTABLISHMENT,Physical Disablity - Cost of Care,Countywide PD Service - Care,Nursing Care
Cambridgeshire County Council,19-Feb-21,51301523143,"-1,350.00",LONGUEVILLE COURT,CARE ESTABLISHMENT,Physical Disablity - Cost of Care,Countywide PD Service - Care,Nursing Care
Cambridgeshire County Council,19-Feb-21,51301523143,"-1,350.00",LONGUEVILLE COURT,CARE ESTABLISHMENT,Physical Disablity - Cost of Care,Countywide PD Service - Care,Nursing Care
Cambridgeshire County Council,19-Feb-21,51301523143,"-1,350.00",LONGUEVILLE COURT,CARE ESTABLISHMENT,Physical Disablity - Cost of Care,Countywide PD Service - Care,Nursing Care
Cambridgeshire County Council,19-Feb-21,51301523143,"-1,350.00",LONGUEVILLE COURT,CARE ESTABLISHMENT,Physical Disablity - Cost of Care,Countywide PD Service - Care,Nursing Care
Cambridgeshire County Council,19-Feb-21,51301523143,"-1,350.00",LONGUEVILLE COURT,CARE ESTABLISHMENT,Physical Disablity - Cost of Care,Countywide PD Service - Care,Nursing Care
Cambridgeshire County Council,19-Feb-21,51301523143,"-1,350.00",LONGUEVILLE COURT,CARE ESTABLISHMENT,Physical Disablity - Cost of Care,Countywide PD Service - Care,Nursing Care
Cambridgeshire County Council,19-Feb-21,51301523143,"-1,350.00",LONGUEVILLE COURT,CARE ESTABLISHMENT,Physical Disablity - Cost of Care,Countywide PD Service - Care,Nursing Care
Cambridgeshire County Council,19-Feb-21,51301523143,"-1,350.00",LONGUEVILLE COURT,CARE ESTABLISHMENT,Physical Disablity - Cost of Care,Countywide PD Service - Care,Nursing Care
Cambridgeshire County Council,19-Feb-21,51301523143,"-1,350.00",LONGUEVILLE COURT,CARE ESTABLISHMENT,Physical Disablity - Cost of Care,Countywide PD Service - Care,Nursing Care
Cambridgeshire County Council,19-Feb-21,51301523143,"-1,350.00",LONGUEVILLE COURT,CARE ESTABLISHMENT,Physical Disablity - Cost of Care,Countywide PD Service - Care,Nursing Care
Cambridgeshire County Council,19-Feb-21,51301523143,"-1,350.00",LONGUEVILLE COURT,CARE ESTABLISHMENT,Physical Disablity - Cost of Care,Countywide PD Service - Care,Nursing Care
Cambridgeshire County Council,19-Feb-21,51301523143,"-1,350.00",LONGUEVILLE COURT,CARE ESTABLISHMENT,Physical Disablity - Cost of Care,Countywide PD Service - Care,Nursing Care
Cambridgeshire County Council,19-Feb-21,51301523143,"-1,350.00",LONGUEVILLE COURT,CARE ESTABLISHMENT,Physical Disablity - Cost of Care,Countywide PD Service - Care,Nursing Care
Cambridgeshire County Council,19-Feb-21,51301523143,"-1,350.00",LONGUEVILLE COURT,CARE ESTABLISHMENT,Physical Disablity - Cost of Care,Countywide PD Service - Care,Nursing Care
Cambridgeshire County Council,19-Feb-21,51301523143,"-1,350.00",LONGUEVILLE COURT,CARE ESTABLISHMENT,Physical Disablity - Cost of Care,Countywide PD Service - Care,Nursing Care
Cambridgeshire County Council,19-Feb-21,51301523143,"-1,350.00",LONGUEVILLE COURT,CARE ESTABLISHMENT,Physical Disablity - Cost of Care,Countywide PD Service - Care,Nursing Care
Cambridgeshire County Council,19-Feb-21,51301523143,"-1,350.00",LONGUEVILLE COURT,CARE ESTABLISHMENT,Physical Disablity - Cost of Care,Countywide PD Service - Care,Nursing Care
Cambridgeshire County Council,19-Feb-21,51301523143,"-1,350.00",LONGUEVILLE COURT,CARE ESTABLISHMENT,Physical Disablity - Cost of Care,Countywide PD Service - Care,Nursing Care
Cambridgeshire County Council,19-Feb-21,51301523143,"-1,350.00",LONGUEVILLE COURT,CARE ESTABLISHMENT,Physical Disablity - Cost of Care,Countywide PD Service - Care,Nursing Care
Cambridgeshire County Council,19-Feb-21,51301523143,"-1,350.00",LONGUEVILLE COURT,CARE ESTABLISHMENT,Physical Disablity - Cost of Care,Countywide PD Service - Care,Nursing Care
Cambridgeshire County Council,19-Feb-21,51301523143,"-1,350.00",LONGUEVILLE COURT,CARE ESTABLISHMENT,Physical Disablity - Cost of Care,Countywide PD Service - Care,Nursing Care
Cambridgeshire County Council,19-Feb-21,51301523143,"-1,350.00",LONGUEVILLE COURT,CARE ESTABLISHMENT,Physical Disablity - Cost of Care,Countywide PD Service - Care,Nursing Care
Cambridgeshire County Council,19-Feb-21,51301523143,"-1,350.00",LONGUEVILLE COURT,CARE ESTABLISHMENT,Physical Disablity - Cost of Care,Countywide PD Service - Care,Nursing Care
Cambridgeshire County Council,19-Feb-21,51301523143,"-1,350.00",LONGUEVILLE COURT,CARE ESTABLISHMENT,Physical Disablity - Cost of Care,Countywide PD Service - Care,Nursing Care
Cambridgeshire County Council,19-Feb-21,51301523143,"-1,350.00",LONGUEVILLE COURT,CARE ESTABLISHMENT,Physical Disablity - Cost of Care,Countywide PD Service - Care,Nursing Care
Cambridgeshire County Council,19-Feb-21,51301523143,"-1,350.00",LONGUEVILLE COURT,CARE ESTABLISHMENT,Physical Disablity - Cost of Care,Countywide PD Service - Care,Nursing Care
Cambridgeshire County Council,19-Feb-21,51301523143,"-1,350.00",LONGUEVILLE COURT,CARE ESTABLISHMENT,Physical Disablity - Cost of Care,Countywide PD Service - Care,Nursing Care
Cambridgeshire County Council,19-Feb-21,51301523143,"-1,350.00",LONGUEVILLE COURT,CARE ESTABLISHMENT,Physical Disablity - Cost of Care,Countywide PD Service - Care,Nursing Care
Cambridgeshire County Council,19-Feb-21,51301523143,"-1,350.00",LONGUEVILLE COURT,CARE ESTABLISHMENT,Physical Disablity - Cost of Care,Countywide PD Service - Care,Nursing Care
Cambridgeshire County Council,19-Feb-21,51301523143,"-1,350.00",LONGUEVILLE COURT,CARE ESTABLISHMENT,Physical Disablity - Cost of Care,Countywide PD Service - Care,Nursing Care
Cambridgeshire County Council,19-Feb-21,51301523143,"-1,350.00",LONGUEVILLE COURT,CARE ESTABLISHMENT,Physical Disablity - Cost of Care,Countywide PD Service - Care,Nursing Care
Cambridgeshire County Council,19-Feb-21,51301523143,"-1,350.00",LONGUEVILLE COURT,CARE ESTABLISHMENT,Physical Disablity - Cost of Care,Countywide PD Service - Care,Nursing Care
Cambridgeshire County Council,19-Feb-21,51301523143,"-1,350.00",LONGUEVILLE COURT,CARE ESTABLISHMENT,Physical Disablity - Cost of Care,Countywide PD Service - Care,Nursing Care
Cambridgeshire County Council,19-Feb-21,51301523143,"-1,350.00",LONGUEVILLE COURT,CARE ESTABLISHMENT,Physical Disablity - Cost of Care,Countywide PD Service - Care,Nursing Care
Cambridgeshire County Council,19-Feb-21,51301523143,"-1,350.00",LONGUEVILLE COURT,CARE ESTABLISHMENT,Physical Disablity - Cost of Care,Countywide PD Service - Care,Nursing Care
Cambridgeshire County Council,19-Feb-21,51301523143,"-1,350.00",LONGUEVILLE COURT,CARE ESTABLISHMENT,Physical Disablity - Cost of Care,Countywide PD Service - Care,Nursing Care
Cambridgeshire County Council,19-Feb-21,51301523143,"-1,350.00",LONGUEVILLE COURT,CARE ESTABLISHMENT,Physical Disablity - Cost of Care,Countywide PD Service - Care,Nursing Care
Cambridgeshire County Council,19-Feb-21,51301523143,"-1,350.00",LONGUEVILLE COURT,CARE ESTABLISHMENT,Physical Disablity - Cost of Care,Countywide PD Service - Care,Nursing Care
Cambridgeshire County Council,19-Feb-21,51301523143,"-1,350.00",LONGUEVILLE COURT,CARE ESTABLISHMENT,Physical Disablity - Cost of Care,Countywide PD Service - Care,Nursing Care
Cambridgeshire County Council,19-Feb-21,51301523143,"-1,350.00",LONGUEVILLE COURT,CARE ESTABLISHMENT,Physical Disablity - Cost of Care,Countywide PD Service - Care,Nursing Care
Cambridgeshire County Council,19-Feb-21,51301523143,"-1,350.00",LONGUEVILLE COURT,CARE ESTABLISHMENT,Physical Disablity - Cost of Care,Countywide PD Service - Care,Nursing Care
Cambridgeshire County Council,19-Feb-21,51301523143,"-1,350.00",LONGUEVILLE COURT,CARE ESTABLISHMENT,Physical Disablity - Cost of Care,Countywide PD Service - Care,Nursing Care
Cambridgeshire County Council,19-Feb-21,51301523143,"-1,350.00",LONGUEVILLE COURT,CARE ESTABLISHMENT,Physical Disablity - Cost of Care,Countywide PD Service - Care,Nursing Care
Cambridgeshire County Council,19-Feb-21,51301523143,"-1,350.00",LONGUEVILLE COURT,CARE ESTABLISHMENT,Physical Disablity - Cost of Care,Countywide PD Service - Care,Nursing Care
Cambridgeshire County Council,19-Feb-21,51301523143,"-1,350.00",LONGUEVILLE COURT,CARE ESTABLISHMENT,Physical Disablity - Cost of Care,Countywide PD Service - Care,Nursing Care
Cambridgeshire County Council,19-Feb-21,51301523143,"-1,350.00",LONGUEVILLE COURT,CARE ESTABLISHMENT,Physical Disablity - Cost of Care,Countywide PD Service - Care,Nursing Care
Cambridgeshire County Council,19-Feb-21,51301523143,"-1,350.00",LONGUEVILLE COURT,CARE ESTABLISHMENT,Physical Disablity - Cost of Care,Countywide PD Service - Care,Nursing Care
Cambridgeshire County Council,19-Feb-21,51301523143,"-1,350.00",LONGUEVILLE COURT,CARE ESTABLISHMENT,Physical Disablity - Cost of Care,Countywide PD Service - Care,Nursing Care
Cambridgeshire County Council,19-Feb-21,51301523143,"-1,350.00",LONGUEVILLE COURT,CARE ESTABLISHMENT,Physical Disablity - Cost of Care,Countywide PD Service - Care,Nursing Care
Cambridgeshire County Council,19-Feb-21,51301523143,"-1,350.00",LONGUEVILLE COURT,CARE ESTABLISHMENT,Physical Disablity - Cost of Care,Countywide PD Service - Care,Nursing Care
Cambridgeshire County Council,12-Feb-21,51301517964,"-1,309.35",CONQUEST CARE HOMES PETERBOROUGH,CARE ESTABLISHMENT,LD - Hunts Locality - Cost of Care,LD - Huntingdonshire - Special Needs,Residential Care
Cambridgeshire County Council,12-Feb-21,51301517964,"-1,309.35",CONQUEST CARE HOMES PETERBOROUGH,CARE ESTABLISHMENT,LD - Hunts Locality - Cost of Care,LD - Huntingdonshire - Special Needs,Residential Care
Cambridgeshire County Council,12-Feb-21,51301517964,"-1,309.35",CONQUEST CARE HOMES PETERBOROUGH,CARE ESTABLISHMENT,LD - Hunts Locality - Cost of Care,LD - Huntingdonshire - Special Needs,Residential Care
Cambridgeshire County Council,12-Feb-21,51301517964,"-1,309.35",CONQUEST CARE HOMES PETERBOROUGH,CARE ESTABLISHMENT,LD - Hunts Locality - Cost of Care,LD - Huntingdonshire - Special Needs,Residential Care
Cambridgeshire County Council,12-Feb-21,51301517964,"-1,309.35",CONQUEST CARE HOMES PETERBOROUGH,CARE ESTABLISHMENT,LD - Hunts Locality - Cost of Care,LD - Huntingdonshire - Special Needs,Residential Care
Cambridgeshire County Council,12-Feb-21,51301517964,"-1,309.35",CONQUEST CARE HOMES PETERBOROUGH,CARE ESTABLISHMENT,LD - Hunts Locality - Cost of Care,LD - Huntingdonshire - Special Needs,Residential Care
Cambridgeshire County Council,12-Feb-21,51301517964,"-1,309.35",CONQUEST CARE HOMES PETERBOROUGH,CARE ESTABLISHMENT,LD - Hunts Locality - Cost of Care,LD - Huntingdonshire - Special Needs,Residential Care
Cambridgeshire County Council,12-Feb-21,51301517964,"-1,309.35",CONQUEST CARE HOMES PETERBOROUGH,CARE ESTABLISHMENT,LD - Hunts Locality - Cost of Care,LD - Huntingdonshire - Special Needs,Residential Care
Cambridgeshire County Council,12-Feb-21,51301517964,"-1,309.35",CONQUEST CARE HOMES PETERBOROUGH,CARE ESTABLISHMENT,LD - Hunts Locality - Cost of Care,LD - Huntingdonshire - Special Needs,Residential Care
Cambridgeshire County Council,12-Feb-21,51301517964,"-1,309.35",CONQUEST CARE HOMES PETERBOROUGH,CARE ESTABLISHMENT,LD - Hunts Locality - Cost of Care,LD - Huntingdonshire - Special Needs,Residential Care
Cambridgeshire County Council,12-Feb-21,51301517964,"-1,309.35",CONQUEST CARE HOMES PETERBOROUGH,CARE ESTABLISHMENT,LD - Hunts Locality - Cost of Care,LD - Huntingdonshire - Special Needs,Residential Care
Cambridgeshire County Council,12-Feb-21,51301517964,"-1,309.35",CONQUEST CARE HOMES PETERBOROUGH,CARE ESTABLISHMENT,LD - Hunts Locality - Cost of Care,LD - Huntingdonshire - Special Needs,Residential Care
Cambridgeshire County Council,12-Feb-21,51301517964,"-1,309.35",CONQUEST CARE HOMES PETERBOROUGH,CARE ESTABLISHMENT,LD - Hunts Locality - Cost of Care,LD - Huntingdonshire - Special Needs,Residential Care
Cambridgeshire County Council,12-Feb-21,51301517964,"-1,309.35",CONQUEST CARE HOMES PETERBOROUGH,CARE ESTABLISHMENT,LD - Hunts Locality - Cost of Care,LD - Huntingdonshire - Special Needs,Residential Care
Cambridgeshire County Council,12-Feb-21,51301517964,"-1,309.35",CONQUEST CARE HOMES PETERBOROUGH,CARE ESTABLISHMENT,LD - Hunts Locality - Cost of Care,LD - Huntingdonshire - Special Needs,Residential Care
Cambridgeshire County Council,12-Feb-21,51301517964,"-1,309.35",CONQUEST CARE HOMES PETERBOROUGH,CARE ESTABLISHMENT,LD - Hunts Locality - Cost of Care,LD - Huntingdonshire - Special Needs,Residential Care
Cambridgeshire County Council,12-Feb-21,51301517964,"-1,309.35",CONQUEST CARE HOMES PETERBOROUGH,CARE ESTABLISHMENT,LD - Hunts Locality - Cost of Care,LD - Huntingdonshire - Special Needs,Residential Care
Cambridgeshire County Council,12-Feb-21,51301517964,"-1,309.35",CONQUEST CARE HOMES PETERBOROUGH,CARE ESTABLISHMENT,LD - Hunts Locality - Cost of Care,LD - Huntingdonshire - Special Needs,Residential Care
Cambridgeshire County Council,12-Feb-21,51301517964,"-1,309.35",CONQUEST CARE HOMES PETERBOROUGH,CARE ESTABLISHMENT,LD - Hunts Locality - Cost of Care,LD - Huntingdonshire - Special Needs,Residential Care
Cambridgeshire County Council,12-Feb-21,51301517964,"-1,309.35",CONQUEST CARE HOMES PETERBOROUGH,CARE ESTABLISHMENT,LD - Hunts Locality - Cost of Care,LD - Huntingdonshire - Special Needs,Residential Care
Cambridgeshire County Council,12-Feb-21,51301517964,"-1,309.35",CONQUEST CARE HOMES PETERBOROUGH,CARE ESTABLISHMENT,LD - Hunts Locality - Cost of Care,LD - Huntingdonshire - Special Needs,Residential Care
Cambridgeshire County Council,12-Feb-21,51301517964,"-1,309.35",CONQUEST CARE HOMES PETERBOROUGH,CARE ESTABLISHMENT,LD - Hunts Locality - Cost of Care,LD - Huntingdonshire - Special Needs,Residential Care
Cambridgeshire County Council,12-Feb-21,51301517964,"-1,309.35",CONQUEST CARE HOMES PETERBOROUGH,CARE ESTABLISHMENT,LD - Hunts Locality - Cost of Care,LD - Huntingdonshire - Special Needs,Residential Care
Cambridgeshire County Council,12-Feb-21,51301517964,"-1,309.35",CONQUEST CARE HOMES PETERBOROUGH,CARE ESTABLISHMENT,LD - Hunts Locality - Cost of Care,LD - Huntingdonshire - Special Needs,Residential Care
Cambridgeshire County Council,12-Feb-21,51301517964,"-1,309.35",CONQUEST CARE HOMES PETERBOROUGH,CARE ESTABLISHMENT,LD - Hunts Locality - Cost of Care,LD - Huntingdonshire - Special Needs,Residential Care
Cambridgeshire County Council,12-Feb-21,51301517964,"-1,309.35",CONQUEST CARE HOMES PETERBOROUGH,CARE ESTABLISHMENT,LD - Hunts Locality - Cost of Care,LD - Huntingdonshire - Special Needs,Residential Care
Cambridgeshire County Council,12-Feb-21,51301517964,"-1,309.35",CONQUEST CARE HOMES PETERBOROUGH,CARE ESTABLISHMENT,LD - Hunts Locality - Cost of Care,LD - Huntingdonshire - Special Needs,Residential Care
Cambridgeshire County Council,12-Feb-21,51301517964,"-1,309.35",CONQUEST CARE HOMES PETERBOROUGH,CARE ESTABLISHMENT,LD - Hunts Locality - Cost of Care,LD - Huntingdonshire - Special Needs,Residential Care
Cambridgeshire County Council,12-Feb-21,51301517964,"-1,309.35",CONQUEST CARE HOMES PETERBOROUGH,CARE ESTABLISHMENT,LD - Hunts Locality - Cost of Care,LD - Huntingdonshire - Special Needs,Residential Care
Cambridgeshire County Council,12-Feb-21,51301517964,"-1,309.35",CONQUEST CARE HOMES PETERBOROUGH,CARE ESTABLISHMENT,LD - Hunts Locality - Cost of Care,LD - Huntingdonshire - Special Needs,Residential Care
Cambridgeshire County Council,12-Feb-21,51301517964,"-1,309.35",CONQUEST CARE HOMES PETERBOROUGH,CARE ESTABLISHMENT,LD - Hunts Locality - Cost of Care,LD - Huntingdonshire - Special Needs,Residential Care
Cambridgeshire County Council,12-Feb-21,51301517964,"-1,309.35",CONQUEST CARE HOMES PETERBOROUGH,CARE ESTABLISHMENT,LD - Hunts Locality - Cost of Care,LD - Huntingdonshire - Special Needs,Residential Care
Cambridgeshire County Council,12-Feb-21,51301517964,"-1,309.35",CONQUEST CARE HOMES PETERBOROUGH,CARE ESTABLISHMENT,LD - Hunts Locality - Cost of Care,LD - Huntingdonshire - Special Needs,Residential Care
Cambridgeshire County Council,12-Feb-21,51301517964,"-1,309.35",CONQUEST CARE HOMES PETERBOROUGH,CARE ESTABLISHMENT,LD - Hunts Locality - Cost of Care,LD - Huntingdonshire - Special Needs,Residential Care
Cambridgeshire County Council,12-Feb-21,51301517964,"-1,309.35",CONQUEST CARE HOMES PETERBOROUGH,CARE ESTABLISHMENT,LD - Hunts Locality - Cost of Care,LD - Huntingdonshire - Special Needs,Residential Care
Cambridgeshire County Council,12-Feb-21,51301517964,"-1,309.35",CONQUEST CARE HOMES PETERBOROUGH,CARE ESTABLISHMENT,LD - Hunts Locality - Cost of Care,LD - Huntingdonshire - Special Needs,Residential Care
Cambridgeshire County Council,12-Feb-21,51301517964,"-1,309.35",CONQUEST CARE HOMES PETERBOROUGH,CARE ESTABLISHMENT,LD - Hunts Locality - Cost of Care,LD - Huntingdonshire - Special Needs,Residential Care
Cambridgeshire County Council,12-Feb-21,51301517964,"-1,309.35",CONQUEST CARE HOMES PETERBOROUGH,CARE ESTABLISHMENT,LD - Hunts Locality - Cost of Care,LD - Huntingdonshire - Special Needs,Residential Care
Cambridgeshire County Council,12-Feb-21,51301517964,"-1,309.35",CONQUEST CARE HOMES PETERBOROUGH,CARE ESTABLISHMENT,LD - Hunts Locality - Cost of Care,LD - Huntingdonshire - Special Needs,Residential Care
Cambridgeshire County Council,12-Feb-21,51301517964,"-1,309.35",CONQUEST CARE HOMES PETERBOROUGH,CARE ESTABLISHMENT,LD - Hunts Locality - Cost of Care,LD - Huntingdonshire - Special Needs,Residential Care
Cambridgeshire County Council,12-Feb-21,51301517964,"-1,309.35",CONQUEST CARE HOMES PETERBOROUGH,CARE ESTABLISHMENT,LD - Hunts Locality - Cost of Care,LD - Huntingdonshire - Special Needs,Residential Care
Cambridgeshire County Council,12-Feb-21,51301517964,"-1,309.35",CONQUEST CARE HOMES PETERBOROUGH,CARE ESTABLISHMENT,LD - Hunts Locality - Cost of Care,LD - Huntingdonshire - Special Needs,Residential Care
Cambridgeshire County Council,12-Feb-21,51301517964,"-1,309.35",CONQUEST CARE HOMES PETERBOROUGH,CARE ESTABLISHMENT,LD - Hunts Locality - Cost of Care,LD - Huntingdonshire - Special Needs,Residential Care
Cambridgeshire County Council,12-Feb-21,51301517964,"-1,309.35",CONQUEST CARE HOMES PETERBOROUGH,CARE ESTABLISHMENT,LD - Hunts Locality - Cost of Care,LD - Huntingdonshire - Special Needs,Residential Care
Cambridgeshire County Council,12-Feb-21,51301517964,"-1,309.35",CONQUEST CARE HOMES PETERBOROUGH,CARE ESTABLISHMENT,LD - Hunts Locality - Cost of Care,LD - Huntingdonshire - Special Needs,Residential Care
Cambridgeshire County Council,12-Feb-21,51301517964,"-1,309.35",CONQUEST CARE HOMES PETERBOROUGH,CARE ESTABLISHMENT,LD - Hunts Locality - Cost of Care,LD - Huntingdonshire - Special Needs,Residential Care
Cambridgeshire County Council,12-Feb-21,51301517964,"-1,309.35",CONQUEST CARE HOMES PETERBOROUGH,CARE ESTABLISHMENT,LD - Hunts Locality - Cost of Care,LD - Huntingdonshire - Special Needs,Residential Care
Cambridgeshire County Council,12-Feb-21,51301517964,"-1,309.35",CONQUEST CARE HOMES PETERBOROUGH,CARE ESTABLISHMENT,LD - Hunts Locality - Cost of Care,LD - Huntingdonshire - Special Needs,Residential Care
Cambridgeshire County Council,12-Feb-21,51301517964,"-1,309.35",CONQUEST CARE HOMES PETERBOROUGH,CARE ESTABLISHMENT,LD - Hunts Locality - Cost of Care,LD - Huntingdonshire - Special Needs,Residential Care
Cambridgeshire County Council,12-Feb-21,51301517964,"-1,309.35",CONQUEST CARE HOMES PETERBOROUGH,CARE ESTABLISHMENT,LD - Hunts Locality - Cost of Care,LD - Huntingdonshire - Special Needs,Residential Care
Cambridgeshire County Council,12-Feb-21,51301517964,"-1,309.35",CONQUEST CARE HOMES PETERBOROUGH,CARE ESTABLISHMENT,LD - Hunts Locality - Cost of Care,LD - Huntingdonshire - Special Needs,Residential Care
Cambridgeshire County Council,15-Feb-21,51301512867,"-1,308.00",Broadlands Hall,EDUCATION,SEN Placements,Placements - Education,Independent School Placements
Cambridgeshire County Council,19-Feb-21,51301514130,"-1,291.74",EAGLE WOOD NEUROLOGICAL CARE,CARE ESTABLISHMENT,OPMH - City & South,Older People Mental Health City & South,Nursing Care
Cambridgeshire County Council,19-Feb-21,51301514130,"-1,291.74",EAGLE WOOD NEUROLOGICAL CARE,CARE ESTABLISHMENT,OPMH - City & South,Older People Mental Health City & South,Nursing Care
Cambridgeshire County Council,19-Feb-21,51301514130,"-1,291.74",EAGLE WOOD NEUROLOGICAL CARE,CARE ESTABLISHMENT,OPMH - City & South,Older People Mental Health City & South,Nursing Care
Cambridgeshire County Council,05-Feb-21,51301515271,"-1,279.18",GLENHOLME HEALTHCARE LTD,CARE ESTABLISHMENT,LD - Hunts Locality - Cost of Care,LD - Huntingdonshire - Care,Residential Care
Cambridgeshire County Council,05-Feb-21,51301515271,"-1,279.18",GLENHOLME HEALTHCARE LTD,CARE ESTABLISHMENT,LD - Hunts Locality - Cost of Care,LD - Huntingdonshire - Care,Residential Care
Cambridgeshire County Council,05-Feb-21,51301515271,"-1,279.18",GLENHOLME HEALTHCARE LTD,CARE ESTABLISHMENT,LD - Hunts Locality - Cost of Care,LD - Huntingdonshire - Care,Residential Care
Cambridgeshire County Council,05-Feb-21,51301515271,"-1,279.18",GLENHOLME HEALTHCARE LTD,CARE ESTABLISHMENT,LD - Hunts Locality - Cost of Care,LD - Huntingdonshire - Care,Residential Care
Cambridgeshire County Council,05-Feb-21,51301515271,"-1,279.18",GLENHOLME HEALTHCARE LTD,CARE ESTABLISHMENT,LD - Hunts Locality - Cost of Care,LD - Huntingdonshire - Care,Residential Care
Cambridgeshire County Council,05-Feb-21,51301515271,"-1,279.18",GLENHOLME HEALTHCARE LTD,CARE ESTABLISHMENT,LD - Hunts Locality - Cost of Care,LD - Huntingdonshire - Care,Residential Care
Cambridgeshire County Council,05-Feb-21,51301515271,"-1,279.18",GLENHOLME HEALTHCARE LTD,CARE ESTABLISHMENT,LD - Hunts Locality - Cost of Care,LD - Huntingdonshire - Care,Residential Care
Cambridgeshire County Council,05-Feb-21,51301515271,"-1,279.18",GLENHOLME HEALTHCARE LTD,CARE ESTABLISHMENT,LD - Hunts Locality - Cost of Care,LD - Huntingdonshire - Care,Residential Care
Cambridgeshire County Council,05-Feb-21,51301515271,"-1,279.18",GLENHOLME HEALTHCARE LTD,CARE ESTABLISHMENT,LD - Hunts Locality - Cost of Care,LD - Huntingdonshire - Care,Residential Care
Cambridgeshire County Council,05-Feb-21,51301515271,"-1,279.18",GLENHOLME HEALTHCARE LTD,CARE ESTABLISHMENT,LD - Hunts Locality - Cost of Care,LD - Huntingdonshire - Care,Residential Care
Cambridgeshire County Council,05-Feb-21,51301515271,"-1,279.18",GLENHOLME HEALTHCARE LTD,CARE ESTABLISHMENT,LD - Hunts Locality - Cost of Care,LD - Huntingdonshire - Care,Residential Care
Cambridgeshire County Council,05-Feb-21,51301515271,"-1,279.18",GLENHOLME HEALTHCARE LTD,CARE ESTABLISHMENT,LD - Hunts Locality - Cost of Care,LD - Huntingdonshire - Care,Residential Care
Cambridgeshire County Council,19-Feb-21,51301523054,"-1,242.58",PAULINE BURNETT HOUSE,CARE ESTABLISHMENT,LD - South Locality - Cost of Care,LD - South Cambs - Care,Residential Care
Cambridgeshire County Council,19-Feb-21,51301523054,"-1,242.58",PAULINE BURNETT HOUSE,CARE ESTABLISHMENT,LD - South Locality - Cost of Care,LD - South Cambs - Care,Residential Care
Cambridgeshire County Council,19-Feb-21,51301523054,"-1,242.58",PAULINE BURNETT HOUSE,CARE ESTABLISHMENT,LD - South Locality - Cost of Care,LD - South Cambs - Care,Residential Care
Cambridgeshire County Council,19-Feb-21,51301523054,"-1,242.58",PAULINE BURNETT HOUSE,CARE ESTABLISHMENT,LD - South Locality - Cost of Care,LD - South Cambs - Care,Residential Care
Cambridgeshire County Council,19-Feb-21,51301526297,"-1,191.08",THE MARBROOK CENTRE,CARE ESTABLISHMENT,OPMH - Hunts & Fens,Older People Mental Health Hunts,Nursing Care
Cambridgeshire County Council,19-Feb-21,51301526297,"-1,191.08",THE MARBROOK CENTRE,CARE ESTABLISHMENT,OPMH - Hunts & Fens,Older People Mental Health Hunts,Nursing Care
Cambridgeshire County Council,19-Feb-21,51301526297,"-1,191.08",THE MARBROOK CENTRE,CARE ESTABLISHMENT,OPMH - Hunts & Fens,Older People Mental Health Hunts,Nursing Care
Cambridgeshire County Council,19-Feb-21,51301520507,"-1,174.00",K RAVIVARUMAN T/A FAIR HAVEN CARE HOME,CARE ESTABLISHMENT,OP - East Cambs Blocks,East Cambs � Long term Blocks,Residential Care
Cambridgeshire County Council,19-Feb-21,51301520507,"-1,174.00",K RAVIVARUMAN T/A FAIR HAVEN CARE HOME,CARE ESTABLISHMENT,OP - East Cambs Blocks,East Cambs � Long term Blocks,Residential Care
Cambridgeshire County Council,19-Feb-21,51301520507,"-1,174.00",K RAVIVARUMAN T/A FAIR HAVEN CARE HOME,CARE ESTABLISHMENT,OP - East Cambs Blocks,East Cambs � Long term Blocks,Residential Care
Cambridgeshire County Council,19-Feb-21,51301520507,"-1,174.00",K RAVIVARUMAN T/A FAIR HAVEN CARE HOME,CARE ESTABLISHMENT,OP - East Cambs Blocks,East Cambs � Long term Blocks,Residential Care
Cambridgeshire County Council,19-Feb-21,51301520507,"-1,174.00",K RAVIVARUMAN T/A FAIR HAVEN CARE HOME,CARE ESTABLISHMENT,OP - East Cambs Blocks,East Cambs � Long term Blocks,Residential Care
Cambridgeshire County Council,19-Feb-21,51301520507,"-1,174.00",K RAVIVARUMAN T/A FAIR HAVEN CARE HOME,CARE ESTABLISHMENT,OP - East Cambs Blocks,East Cambs � Long term Blocks,Residential Care
Cambridgeshire County Council,19-Feb-21,51301520507,"-1,174.00",K RAVIVARUMAN T/A FAIR HAVEN CARE HOME,CARE ESTABLISHMENT,OP - East Cambs Blocks,East Cambs � Long term Blocks,Residential Care
Cambridgeshire County Council,19-Feb-21,51301520507,"-1,174.00",K RAVIVARUMAN T/A FAIR HAVEN CARE HOME,CARE ESTABLISHMENT,OP - East Cambs Blocks,East Cambs � Long term Blocks,Residential Care
Cambridgeshire County Council,19-Feb-21,51301520507,"-1,174.00",K RAVIVARUMAN T/A FAIR HAVEN CARE HOME,CARE ESTABLISHMENT,OP - East Cambs Blocks,East Cambs � Long term Blocks,Residential Care
Cambridgeshire County Council,19-Feb-21,51301520507,"-1,174.00",K RAVIVARUMAN T/A FAIR HAVEN CARE HOME,CARE ESTABLISHMENT,OP - East Cambs Blocks,East Cambs � Long term Blocks,Residential Care
Cambridgeshire County Council,19-Feb-21,51301520507,"-1,174.00",K RAVIVARUMAN T/A FAIR HAVEN CARE HOME,CARE ESTABLISHMENT,OP - East Cambs Blocks,East Cambs � Long term Blocks,Residential Care
Cambridgeshire County Council,19-Feb-21,51301520507,"-1,174.00",K RAVIVARUMAN T/A FAIR HAVEN CARE HOME,CARE ESTABLISHMENT,OP - East Cambs Blocks,East Cambs � Long term Blocks,Residential Care
Cambridgeshire County Council,05-Feb-21,51301515295,"-1,165.95",AFFINITY TRUST,CARE ESTABLISHMENT,LD - Fenland Locality - Cost of Care,LD - Fenland  - Care,Supported Living
Cambridgeshire County Council,02-Feb-21,51301512991,"-1,162.42",HC-ONE,CARE ESTABLISHMENT,OP - Hunts Blocks,Hunts - Long term blocks,Nursing Care
Cambridgeshire County Council,02-Feb-21,51301512991,"-1,162.42",HC-ONE,CARE ESTABLISHMENT,OP - Hunts Blocks,Hunts - Long term blocks,Nursing Care
Cambridgeshire County Council,02-Feb-21,51301512991,"-1,162.42",HC-ONE,CARE ESTABLISHMENT,OP - Hunts Blocks,Hunts - Long term blocks,Nursing Care
Cambridgeshire County Council,02-Feb-21,51301512991,"-1,162.42",HC-ONE,CARE ESTABLISHMENT,OP - Hunts Blocks,Hunts - Long term blocks,Nursing Care
Cambridgeshire County Council,02-Feb-21,51301512991,"-1,162.42",HC-ONE,CARE ESTABLISHMENT,OP - Hunts Blocks,Hunts - Long term blocks,Nursing Care
Cambridgeshire County Council,02-Feb-21,51301512991,"-1,162.42",HC-ONE,CARE ESTABLISHMENT,OP - Hunts Blocks,Hunts - Long term blocks,Nursing Care
Cambridgeshire County Council,02-Feb-21,51301512991,"-1,162.42",HC-ONE,CARE ESTABLISHMENT,OP - Hunts Blocks,Hunts - Long term blocks,Nursing Care
Cambridgeshire County Council,02-Feb-21,51301512991,"-1,162.42",HC-ONE,CARE ESTABLISHMENT,OP - Hunts Blocks,Hunts - Long term blocks,Nursing Care
Cambridgeshire County Council,02-Feb-21,51301512991,"-1,162.42",HC-ONE,CARE ESTABLISHMENT,OP - Hunts Blocks,Hunts - Long term blocks,Nursing Care
Cambridgeshire County Council,02-Feb-21,51301512991,"-1,162.42",HC-ONE,CARE ESTABLISHMENT,OP - Hunts Blocks,Hunts - Long term blocks,Nursing Care
Cambridgeshire County Council,02-Feb-21,51301512991,"-1,162.42",HC-ONE,CARE ESTABLISHMENT,OP - Hunts Blocks,Hunts - Long term blocks,Nursing Care
Cambridgeshire County Council,02-Feb-21,51301512991,"-1,162.42",HC-ONE,CARE ESTABLISHMENT,OP - Hunts Blocks,Hunts - Long term blocks,Nursing Care
Cambridgeshire County Council,02-Feb-21,51301512991,"-1,162.42",HC-ONE,CARE ESTABLISHMENT,OP - Hunts Blocks,Hunts - Long term blocks,Nursing Care
Cambridgeshire County Council,02-Feb-21,51301512991,"-1,162.42",HC-ONE,CARE ESTABLISHMENT,OP - Hunts Blocks,Hunts - Long term blocks,Nursing Care
Cambridgeshire County Council,02-Feb-21,51301512991,"-1,162.42",HC-ONE,CARE ESTABLISHMENT,OP - Hunts Blocks,Hunts - Long term blocks,Nursing Care
Cambridgeshire County Council,02-Feb-21,51301512991,"-1,162.42",HC-ONE,CARE ESTABLISHMENT,OP - Hunts Blocks,Hunts - Long term blocks,Nursing Care
Cambridgeshire County Council,02-Feb-21,51301512991,"-1,162.42",HC-ONE,CARE ESTABLISHMENT,OP - Hunts Blocks,Hunts - Long term blocks,Nursing Care
Cambridgeshire County Council,02-Feb-21,51301512991,"-1,162.42",HC-ONE,CARE ESTABLISHMENT,OP - Hunts Blocks,Hunts - Long term blocks,Nursing Care
Cambridgeshire County Council,02-Feb-21,51301512991,"-1,162.42",HC-ONE,CARE ESTABLISHMENT,OP - Hunts Blocks,Hunts - Long term blocks,Nursing Care
Cambridgeshire County Council,02-Feb-21,51301512991,"-1,162.42",HC-ONE,CARE ESTABLISHMENT,OP - Hunts Blocks,Hunts - Long term blocks,Nursing Care
Cambridgeshire County Council,02-Feb-21,51301512991,"-1,162.42",HC-ONE,CARE ESTABLISHMENT,OP - Hunts Blocks,Hunts - Long term blocks,Nursing Care
Cambridgeshire County Council,05-Feb-21,51301515302,"-1,150.02",NORTHERN LIFE CARE LTD T/A UBU,CARE ESTABLISHMENT,LD - South Locality - Cost of Care,LD - South Cambs - Care,Supported Living
Cambridgeshire County Council,05-Feb-21,51301515302,"-1,150.02",NORTHERN LIFE CARE LTD T/A UBU,CARE ESTABLISHMENT,LD - South Locality - Cost of Care,LD - South Cambs - Care,Supported Living
Cambridgeshire County Council,05-Feb-21,51301515302,"-1,150.02",NORTHERN LIFE CARE LTD T/A UBU,CARE ESTABLISHMENT,LD - South Locality - Cost of Care,LD - South Cambs - Care,Supported Living
Cambridgeshire County Council,05-Feb-21,51301515302,"-1,150.02",NORTHERN LIFE CARE LTD T/A UBU,CARE ESTABLISHMENT,LD - South Locality - Cost of Care,LD - South Cambs - Care,Supported Living
Cambridgeshire County Council,19-Feb-21,51301523299,"-1,150.00",BRAMLEY COURT,CARE ESTABLISHMENT,OP - City & South Locality - Cost of Care,Older People - City & South - Care,Nursing Care
Cambridgeshire County Council,19-Feb-21,51301523299,"-1,150.00",BRAMLEY COURT,CARE ESTABLISHMENT,OP - City & South Locality - Cost of Care,Older People - City & South - Care,Nursing Care
Cambridgeshire County Council,19-Feb-21,51301509385,"-1,149.50",HEADWAY CAMBRIDGESHIRE,CHARITY,Physical Disablity - Cost of Care,Countywide PD Service - Care,Day Care
Cambridgeshire County Council,26-Feb-21,51301527946,"-1,132.38",Redacted Personal Data ,INDIVIDUAL,LD - Fenland Locality - Cost of Care,LD - Fenland  - Care,Direct Payments
Cambridgeshire County Council,19-Feb-21,51301523763,"-1,116.08",OAKLANDS CARE HOME,CARE ESTABLISHMENT,OP - East Cambs Locality - Cost of Care,East Cambs - O P Team - Care,Nursing Care
Cambridgeshire County Council,26-Feb-21,51301528089,"-1,100.71",PSA Care LTD,COMPANY,Unaccompanied Asylum Seeking Children,Unaccompanied Asylum Seeking Children >18 Leaving Care,Living Spport Grants - Financial Assistance 18+
Cambridgeshire County Council,19-Feb-21,51301526322,"-1,100.00",THE GABLES SPECIALIST NURSING HOME,CARE ESTABLISHMENT,Physical Disablity - Cost of Care,Countywide PD Service - Care,Residential Care
Cambridgeshire County Council,19-Feb-21,51301526322,"-1,100.00",THE GABLES SPECIALIST NURSING HOME,CARE ESTABLISHMENT,Physical Disablity - Cost of Care,Countywide PD Service - Care,Residential Care
Cambridgeshire County Council,19-Feb-21,51301526322,"-1,100.00",THE GABLES SPECIALIST NURSING HOME,CARE ESTABLISHMENT,Physical Disablity - Cost of Care,Countywide PD Service - Care,Residential Care
Cambridgeshire County Council,19-Feb-21,51301526322,"-1,100.00",THE GABLES SPECIALIST NURSING HOME,CARE ESTABLISHMENT,Physical Disablity - Cost of Care,Countywide PD Service - Care,Residential Care
Cambridgeshire County Council,19-Feb-21,51301526322,"-1,100.00",THE GABLES SPECIALIST NURSING HOME,CARE ESTABLISHMENT,Physical Disablity - Cost of Care,Countywide PD Service - Care,Residential Care
Cambridgeshire County Council,19-Feb-21,51301526322,"-1,100.00",THE GABLES SPECIALIST NURSING HOME,CARE ESTABLISHMENT,Physical Disablity - Cost of Care,Countywide PD Service - Care,Residential Care
Cambridgeshire County Council,19-Feb-21,51301526322,"-1,100.00",THE GABLES SPECIALIST NURSING HOME,CARE ESTABLISHMENT,Physical Disablity - Cost of Care,Countywide PD Service - Care,Residential Care
Cambridgeshire County Council,19-Feb-21,51301526322,"-1,100.00",THE GABLES SPECIALIST NURSING HOME,CARE ESTABLISHMENT,Physical Disablity - Cost of Care,Countywide PD Service - Care,Residential Care
Cambridgeshire County Council,19-Feb-21,51301526322,"-1,100.00",THE GABLES SPECIALIST NURSING HOME,CARE ESTABLISHMENT,Physical Disablity - Cost of Care,Countywide PD Service - Care,Residential Care
Cambridgeshire County Council,19-Feb-21,51301526322,"-1,100.00",THE GABLES SPECIALIST NURSING HOME,CARE ESTABLISHMENT,Physical Disablity - Cost of Care,Countywide PD Service - Care,Residential Care
Cambridgeshire County Council,19-Feb-21,51301526322,"-1,100.00",THE GABLES SPECIALIST NURSING HOME,CARE ESTABLISHMENT,Physical Disablity - Cost of Care,Countywide PD Service - Care,Residential Care
Cambridgeshire County Council,19-Feb-21,51301526322,"-1,100.00",THE GABLES SPECIALIST NURSING HOME,CARE ESTABLISHMENT,Physical Disablity - Cost of Care,Countywide PD Service - Care,Residential Care
Cambridgeshire County Council,19-Feb-21,51301526322,"-1,100.00",THE GABLES SPECIALIST NURSING HOME,CARE ESTABLISHMENT,Physical Disablity - Cost of Care,Countywide PD Service - Care,Residential Care
Cambridgeshire County Council,19-Feb-21,51301526322,"-1,100.00",THE GABLES SPECIALIST NURSING HOME,CARE ESTABLISHMENT,Physical Disablity - Cost of Care,Countywide PD Service - Care,Residential Care
Cambridgeshire County Council,19-Feb-21,51301526322,"-1,100.00",THE GABLES SPECIALIST NURSING HOME,CARE ESTABLISHMENT,Physical Disablity - Cost of Care,Countywide PD Service - Care,Residential Care
Cambridgeshire County Council,19-Feb-21,51301526322,"-1,100.00",THE GABLES SPECIALIST NURSING HOME,CARE ESTABLISHMENT,Physical Disablity - Cost of Care,Countywide PD Service - Care,Residential Care
Cambridgeshire County Council,19-Feb-21,51301526322,"-1,100.00",THE GABLES SPECIALIST NURSING HOME,CARE ESTABLISHMENT,Physical Disablity - Cost of Care,Countywide PD Service - Care,Residential Care
Cambridgeshire County Council,19-Feb-21,51301526322,"-1,100.00",THE GABLES SPECIALIST NURSING HOME,CARE ESTABLISHMENT,Physical Disablity - Cost of Care,Countywide PD Service - Care,Residential Care
Cambridgeshire County Council,19-Feb-21,51301526322,"-1,100.00",THE GABLES SPECIALIST NURSING HOME,CARE ESTABLISHMENT,Physical Disablity - Cost of Care,Countywide PD Service - Care,Residential Care
Cambridgeshire County Council,19-Feb-21,51301526322,"-1,100.00",THE GABLES SPECIALIST NURSING HOME,CARE ESTABLISHMENT,Physical Disablity - Cost of Care,Countywide PD Service - Care,Residential Care
Cambridgeshire County Council,19-Feb-21,51301526322,"-1,100.00",THE GABLES SPECIALIST NURSING HOME,CARE ESTABLISHMENT,Physical Disablity - Cost of Care,Countywide PD Service - Care,Residential Care
Cambridgeshire County Council,19-Feb-21,51301526322,"-1,100.00",THE GABLES SPECIALIST NURSING HOME,CARE ESTABLISHMENT,Physical Disablity - Cost of Care,Countywide PD Service - Care,Residential Care
Cambridgeshire County Council,19-Feb-21,51301526322,"-1,100.00",THE GABLES SPECIALIST NURSING HOME,CARE ESTABLISHMENT,Physical Disablity - Cost of Care,Countywide PD Service - Care,Residential Care
Cambridgeshire County Council,19-Feb-21,51301526322,"-1,100.00",THE GABLES SPECIALIST NURSING HOME,CARE ESTABLISHMENT,Physical Disablity - Cost of Care,Countywide PD Service - Care,Residential Care
Cambridgeshire County Council,19-Feb-21,51301526322,"-1,100.00",THE GABLES SPECIALIST NURSING HOME,CARE ESTABLISHMENT,Physical Disablity - Cost of Care,Countywide PD Service - Care,Residential Care
Cambridgeshire County Council,19-Feb-21,51301526322,"-1,100.00",THE GABLES SPECIALIST NURSING HOME,CARE ESTABLISHMENT,Physical Disablity - Cost of Care,Countywide PD Service - Care,Residential Care
Cambridgeshire County Council,19-Feb-21,51301526322,"-1,100.00",THE GABLES SPECIALIST NURSING HOME,CARE ESTABLISHMENT,Physical Disablity - Cost of Care,Countywide PD Service - Care,Residential Care
Cambridgeshire County Council,19-Feb-21,51301526322,"-1,100.00",THE GABLES SPECIALIST NURSING HOME,CARE ESTABLISHMENT,Physical Disablity - Cost of Care,Countywide PD Service - Care,Residential Care
Cambridgeshire County Council,19-Feb-21,51301526322,"-1,100.00",THE GABLES SPECIALIST NURSING HOME,CARE ESTABLISHMENT,Physical Disablity - Cost of Care,Countywide PD Service - Care,Residential Care
Cambridgeshire County Council,19-Feb-21,51301526322,"-1,100.00",THE GABLES SPECIALIST NURSING HOME,CARE ESTABLISHMENT,Physical Disablity - Cost of Care,Countywide PD Service - Care,Residential Care
Cambridgeshire County Council,19-Feb-21,51301509129,"-1,041.86",BROAD OAKS (MENCAP),CARE ESTABLISHMENT,OP - Fenland Locality - Cost of Care,Older People - Fenland - Care,Residential Care
Cambridgeshire County Council,19-Feb-21,51301509129,"-1,041.86",BROAD OAKS (MENCAP),CARE ESTABLISHMENT,OP - Fenland Locality - Cost of Care,Older People - Fenland - Care,Residential Care
Cambridgeshire County Council,19-Feb-21,51301509129,"-1,041.86",BROAD OAKS (MENCAP),CARE ESTABLISHMENT,OP - Fenland Locality - Cost of Care,Older People - Fenland - Care,Residential Care
Cambridgeshire County Council,19-Feb-21,51301509129,"-1,041.86",BROAD OAKS (MENCAP),CARE ESTABLISHMENT,OP - Fenland Locality - Cost of Care,Older People - Fenland - Care,Residential Care
Cambridgeshire County Council,19-Feb-21,51301509129,"-1,041.86",BROAD OAKS (MENCAP),CARE ESTABLISHMENT,OP - Fenland Locality - Cost of Care,Older People - Fenland - Care,Residential Care
Cambridgeshire County Council,19-Feb-21,51301509129,"-1,041.86",BROAD OAKS (MENCAP),CARE ESTABLISHMENT,OP - Fenland Locality - Cost of Care,Older People - Fenland - Care,Residential Care
Cambridgeshire County Council,19-Feb-21,51301509129,"-1,041.86",BROAD OAKS (MENCAP),CARE ESTABLISHMENT,OP - Fenland Locality - Cost of Care,Older People - Fenland - Care,Residential Care
Cambridgeshire County Council,19-Feb-21,51301509129,"-1,041.86",BROAD OAKS (MENCAP),CARE ESTABLISHMENT,OP - Fenland Locality - Cost of Care,Older People - Fenland - Care,Residential Care
Cambridgeshire County Council,19-Feb-21,51301509129,"-1,041.86",BROAD OAKS (MENCAP),CARE ESTABLISHMENT,OP - Fenland Locality - Cost of Care,Older People - Fenland - Care,Residential Care
Cambridgeshire County Council,19-Feb-21,51301509129,"-1,041.86",BROAD OAKS (MENCAP),CARE ESTABLISHMENT,OP - Fenland Locality - Cost of Care,Older People - Fenland - Care,Residential Care
Cambridgeshire County Council,19-Feb-21,51301509129,"-1,041.86",BROAD OAKS (MENCAP),CARE ESTABLISHMENT,OP - Fenland Locality - Cost of Care,Older People - Fenland - Care,Residential Care
Cambridgeshire County Council,19-Feb-21,51301509129,"-1,041.86",BROAD OAKS (MENCAP),CARE ESTABLISHMENT,OP - Fenland Locality - Cost of Care,Older People - Fenland - Care,Residential Care
Cambridgeshire County Council,19-Feb-21,51301509129,"-1,041.86",BROAD OAKS (MENCAP),CARE ESTABLISHMENT,OP - Fenland Locality - Cost of Care,Older People - Fenland - Care,Residential Care
Cambridgeshire County Council,19-Feb-21,51301509129,"-1,041.86",BROAD OAKS (MENCAP),CARE ESTABLISHMENT,OP - Fenland Locality - Cost of Care,Older People - Fenland - Care,Residential Care
Cambridgeshire County Council,19-Feb-21,51301509129,"-1,041.86",BROAD OAKS (MENCAP),CARE ESTABLISHMENT,OP - Fenland Locality - Cost of Care,Older People - Fenland - Care,Residential Care
Cambridgeshire County Council,19-Feb-21,51301509129,"-1,041.86",BROAD OAKS (MENCAP),CARE ESTABLISHMENT,OP - Fenland Locality - Cost of Care,Older People - Fenland - Care,Residential Care
Cambridgeshire County Council,19-Feb-21,51301509129,"-1,041.86",BROAD OAKS (MENCAP),CARE ESTABLISHMENT,OP - Fenland Locality - Cost of Care,Older People - Fenland - Care,Residential Care
Cambridgeshire County Council,19-Feb-21,51301509129,"-1,041.86",BROAD OAKS (MENCAP),CARE ESTABLISHMENT,OP - Fenland Locality - Cost of Care,Older People - Fenland - Care,Residential Care
Cambridgeshire County Council,19-Feb-21,51301509129,"-1,041.86",BROAD OAKS (MENCAP),CARE ESTABLISHMENT,OP - Fenland Locality - Cost of Care,Older People - Fenland - Care,Residential Care
Cambridgeshire County Council,19-Feb-21,51301509129,"-1,041.86",BROAD OAKS (MENCAP),CARE ESTABLISHMENT,OP - Fenland Locality - Cost of Care,Older People - Fenland - Care,Residential Care
Cambridgeshire County Council,19-Feb-21,51301509129,"-1,041.86",BROAD OAKS (MENCAP),CARE ESTABLISHMENT,OP - Fenland Locality - Cost of Care,Older People - Fenland - Care,Residential Care
Cambridgeshire County Council,19-Feb-21,51301509129,"-1,041.86",BROAD OAKS (MENCAP),CARE ESTABLISHMENT,OP - Fenland Locality - Cost of Care,Older People - Fenland - Care,Residential Care
Cambridgeshire County Council,19-Feb-21,51301509129,"-1,041.86",BROAD OAKS (MENCAP),CARE ESTABLISHMENT,OP - Fenland Locality - Cost of Care,Older People - Fenland - Care,Residential Care
Cambridgeshire County Council,19-Feb-21,51301509129,"-1,041.86",BROAD OAKS (MENCAP),CARE ESTABLISHMENT,OP - Fenland Locality - Cost of Care,Older People - Fenland - Care,Residential Care
Cambridgeshire County Council,19-Feb-21,51301509129,"-1,041.86",BROAD OAKS (MENCAP),CARE ESTABLISHMENT,OP - Fenland Locality - Cost of Care,Older People - Fenland - Care,Residential Care
Cambridgeshire County Council,19-Feb-21,51301509129,"-1,041.86",BROAD OAKS (MENCAP),CARE ESTABLISHMENT,OP - Fenland Locality - Cost of Care,Older People - Fenland - Care,Residential Care
Cambridgeshire County Council,19-Feb-21,51301509129,"-1,041.86",BROAD OAKS (MENCAP),CARE ESTABLISHMENT,OP - Fenland Locality - Cost of Care,Older People - Fenland - Care,Residential Care
Cambridgeshire County Council,19-Feb-21,51301509129,"-1,041.86",BROAD OAKS (MENCAP),CARE ESTABLISHMENT,OP - Fenland Locality - Cost of Care,Older People - Fenland - Care,Residential Care
Cambridgeshire County Council,19-Feb-21,51301509129,"-1,041.86",BROAD OAKS (MENCAP),CARE ESTABLISHMENT,OP - Fenland Locality - Cost of Care,Older People - Fenland - Care,Residential Care
Cambridgeshire County Council,19-Feb-21,51301509129,"-1,041.86",BROAD OAKS (MENCAP),CARE ESTABLISHMENT,OP - Fenland Locality - Cost of Care,Older People - Fenland - Care,Residential Care
Cambridgeshire County Council,19-Feb-21,51301509129,"-1,041.86",BROAD OAKS (MENCAP),CARE ESTABLISHMENT,OP - Fenland Locality - Cost of Care,Older People - Fenland - Care,Residential Care
Cambridgeshire County Council,19-Feb-21,51301509129,"-1,041.86",BROAD OAKS (MENCAP),CARE ESTABLISHMENT,OP - Fenland Locality - Cost of Care,Older People - Fenland - Care,Residential Care
Cambridgeshire County Council,19-Feb-21,51301509129,"-1,041.86",BROAD OAKS (MENCAP),CARE ESTABLISHMENT,OP - Fenland Locality - Cost of Care,Older People - Fenland - Care,Residential Care
Cambridgeshire County Council,19-Feb-21,51301509129,"-1,041.86",BROAD OAKS (MENCAP),CARE ESTABLISHMENT,OP - Fenland Locality - Cost of Care,Older People - Fenland - Care,Residential Care
Cambridgeshire County Council,19-Feb-21,51301509129,"-1,041.86",BROAD OAKS (MENCAP),CARE ESTABLISHMENT,OP - Fenland Locality - Cost of Care,Older People - Fenland - Care,Residential Care
Cambridgeshire County Council,19-Feb-21,51301509129,"-1,041.86",BROAD OAKS (MENCAP),CARE ESTABLISHMENT,OP - Fenland Locality - Cost of Care,Older People - Fenland - Care,Residential Care
Cambridgeshire County Council,19-Feb-21,51301509129,"-1,041.86",BROAD OAKS (MENCAP),CARE ESTABLISHMENT,OP - Fenland Locality - Cost of Care,Older People - Fenland - Care,Residential Care
Cambridgeshire County Council,19-Feb-21,51301509129,"-1,041.86",BROAD OAKS (MENCAP),CARE ESTABLISHMENT,OP - Fenland Locality - Cost of Care,Older People - Fenland - Care,Residential Care
Cambridgeshire County Council,19-Feb-21,51301509129,"-1,041.86",BROAD OAKS (MENCAP),CARE ESTABLISHMENT,OP - Fenland Locality - Cost of Care,Older People - Fenland - Care,Residential Care
Cambridgeshire County Council,19-Feb-21,51301509129,"-1,041.86",BROAD OAKS (MENCAP),CARE ESTABLISHMENT,OP - Fenland Locality - Cost of Care,Older People - Fenland - Care,Residential Care
Cambridgeshire County Council,19-Feb-21,51301509129,"-1,041.86",BROAD OAKS (MENCAP),CARE ESTABLISHMENT,OP - Fenland Locality - Cost of Care,Older People - Fenland - Care,Residential Care
Cambridgeshire County Council,19-Feb-21,51301509129,"-1,041.86",BROAD OAKS (MENCAP),CARE ESTABLISHMENT,OP - Fenland Locality - Cost of Care,Older People - Fenland - Care,Residential Care
Cambridgeshire County Council,19-Feb-21,51301509129,"-1,041.86",BROAD OAKS (MENCAP),CARE ESTABLISHMENT,OP - Fenland Locality - Cost of Care,Older People - Fenland - Care,Residential Care
Cambridgeshire County Council,19-Feb-21,51301509129,"-1,041.86",BROAD OAKS (MENCAP),CARE ESTABLISHMENT,OP - Fenland Locality - Cost of Care,Older People - Fenland - Care,Residential Care
Cambridgeshire County Council,19-Feb-21,51301509129,"-1,041.86",BROAD OAKS (MENCAP),CARE ESTABLISHMENT,OP - Fenland Locality - Cost of Care,Older People - Fenland - Care,Residential Care
Cambridgeshire County Council,19-Feb-21,51301509129,"-1,041.86",BROAD OAKS (MENCAP),CARE ESTABLISHMENT,OP - Fenland Locality - Cost of Care,Older People - Fenland - Care,Residential Care
Cambridgeshire County Council,19-Feb-21,51301509129,"-1,041.86",BROAD OAKS (MENCAP),CARE ESTABLISHMENT,OP - Fenland Locality - Cost of Care,Older People - Fenland - Care,Residential Care
Cambridgeshire County Council,19-Feb-21,51301509129,"-1,041.86",BROAD OAKS (MENCAP),CARE ESTABLISHMENT,OP - Fenland Locality - Cost of Care,Older People - Fenland - Care,Residential Care
Cambridgeshire County Council,19-Feb-21,51301509129,"-1,041.86",BROAD OAKS (MENCAP),CARE ESTABLISHMENT,OP - Fenland Locality - Cost of Care,Older People - Fenland - Care,Residential Care
Cambridgeshire County Council,19-Feb-21,51301509129,"-1,041.86",BROAD OAKS (MENCAP),CARE ESTABLISHMENT,OP - Fenland Locality - Cost of Care,Older People - Fenland - Care,Residential Care
Cambridgeshire County Council,19-Feb-21,51301509129,"-1,041.86",BROAD OAKS (MENCAP),CARE ESTABLISHMENT,OP - Fenland Locality - Cost of Care,Older People - Fenland - Care,Residential Care
Cambridgeshire County Council,19-Feb-21,51301509129,"-1,041.86",BROAD OAKS (MENCAP),CARE ESTABLISHMENT,OP - Fenland Locality - Cost of Care,Older People - Fenland - Care,Residential Care
Cambridgeshire County Council,19-Feb-21,51301509129,"-1,041.86",BROAD OAKS (MENCAP),CARE ESTABLISHMENT,OP - Fenland Locality - Cost of Care,Older People - Fenland - Care,Residential Care
Cambridgeshire County Council,19-Feb-21,51301509129,"-1,041.86",BROAD OAKS (MENCAP),CARE ESTABLISHMENT,OP - Fenland Locality - Cost of Care,Older People - Fenland - Care,Residential Care
Cambridgeshire County Council,19-Feb-21,51301509129,"-1,041.86",BROAD OAKS (MENCAP),CARE ESTABLISHMENT,OP - Fenland Locality - Cost of Care,Older People - Fenland - Care,Residential Care
Cambridgeshire County Council,19-Feb-21,51301509129,"-1,041.86",BROAD OAKS (MENCAP),CARE ESTABLISHMENT,OP - Fenland Locality - Cost of Care,Older People - Fenland - Care,Residential Care
Cambridgeshire County Council,19-Feb-21,51301509129,"-1,041.86",BROAD OAKS (MENCAP),CARE ESTABLISHMENT,OP - Fenland Locality - Cost of Care,Older People - Fenland - Care,Residential Care
Cambridgeshire County Council,19-Feb-21,51301509129,"-1,041.86",BROAD OAKS (MENCAP),CARE ESTABLISHMENT,OP - Fenland Locality - Cost of Care,Older People - Fenland - Care,Residential Care
Cambridgeshire County Council,19-Feb-21,51301509129,"-1,041.86",BROAD OAKS (MENCAP),CARE ESTABLISHMENT,OP - Fenland Locality - Cost of Care,Older People - Fenland - Care,Residential Care
Cambridgeshire County Council,19-Feb-21,51301509129,"-1,041.86",BROAD OAKS (MENCAP),CARE ESTABLISHMENT,OP - Fenland Locality - Cost of Care,Older People - Fenland - Care,Residential Care
Cambridgeshire County Council,19-Feb-21,51301509129,"-1,041.86",BROAD OAKS (MENCAP),CARE ESTABLISHMENT,OP - Fenland Locality - Cost of Care,Older People - Fenland - Care,Residential Care
Cambridgeshire County Council,19-Feb-21,51301509129,"-1,041.86",BROAD OAKS (MENCAP),CARE ESTABLISHMENT,OP - Fenland Locality - Cost of Care,Older People - Fenland - Care,Residential Care
Cambridgeshire County Council,19-Feb-21,51301509129,"-1,041.86",BROAD OAKS (MENCAP),CARE ESTABLISHMENT,OP - Fenland Locality - Cost of Care,Older People - Fenland - Care,Residential Care
Cambridgeshire County Council,19-Feb-21,51301509129,"-1,041.86",BROAD OAKS (MENCAP),CARE ESTABLISHMENT,OP - Fenland Locality - Cost of Care,Older People - Fenland - Care,Residential Care
Cambridgeshire County Council,19-Feb-21,51301509129,"-1,041.86",BROAD OAKS (MENCAP),CARE ESTABLISHMENT,OP - Fenland Locality - Cost of Care,Older People - Fenland - Care,Residential Care
Cambridgeshire County Council,19-Feb-21,51301509129,"-1,041.86",BROAD OAKS (MENCAP),CARE ESTABLISHMENT,OP - Fenland Locality - Cost of Care,Older People - Fenland - Care,Residential Care
Cambridgeshire County Council,19-Feb-21,51301509129,"-1,041.86",BROAD OAKS (MENCAP),CARE ESTABLISHMENT,OP - Fenland Locality - Cost of Care,Older People - Fenland - Care,Residential Care
Cambridgeshire County Council,19-Feb-21,51301509129,"-1,041.86",BROAD OAKS (MENCAP),CARE ESTABLISHMENT,OP - Fenland Locality - Cost of Care,Older People - Fenland - Care,Residential Care
Cambridgeshire County Council,19-Feb-21,51301509129,"-1,041.86",BROAD OAKS (MENCAP),CARE ESTABLISHMENT,OP - Fenland Locality - Cost of Care,Older People - Fenland - Care,Residential Care
Cambridgeshire County Council,19-Feb-21,51301509129,"-1,041.86",BROAD OAKS (MENCAP),CARE ESTABLISHMENT,OP - Fenland Locality - Cost of Care,Older People - Fenland - Care,Residential Care
Cambridgeshire County Council,19-Feb-21,51301509129,"-1,041.86",BROAD OAKS (MENCAP),CARE ESTABLISHMENT,OP - Fenland Locality - Cost of Care,Older People - Fenland - Care,Residential Care
Cambridgeshire County Council,19-Feb-21,51301509129,"-1,041.86",BROAD OAKS (MENCAP),CARE ESTABLISHMENT,OP - Fenland Locality - Cost of Care,Older People - Fenland - Care,Residential Care
Cambridgeshire County Council,19-Feb-21,51301509129,"-1,041.86",BROAD OAKS (MENCAP),CARE ESTABLISHMENT,OP - Fenland Locality - Cost of Care,Older People - Fenland - Care,Residential Care
Cambridgeshire County Council,19-Feb-21,51301509129,"-1,041.86",BROAD OAKS (MENCAP),CARE ESTABLISHMENT,OP - Fenland Locality - Cost of Care,Older People - Fenland - Care,Residential Care
Cambridgeshire County Council,19-Feb-21,51301509129,"-1,041.86",BROAD OAKS (MENCAP),CARE ESTABLISHMENT,OP - Fenland Locality - Cost of Care,Older People - Fenland - Care,Residential Care
Cambridgeshire County Council,19-Feb-21,51301509129,"-1,041.86",BROAD OAKS (MENCAP),CARE ESTABLISHMENT,OP - Fenland Locality - Cost of Care,Older People - Fenland - Care,Residential Care
Cambridgeshire County Council,19-Feb-21,51301509129,"-1,041.86",BROAD OAKS (MENCAP),CARE ESTABLISHMENT,OP - Fenland Locality - Cost of Care,Older People - Fenland - Care,Residential Care
Cambridgeshire County Council,19-Feb-21,51301509129,"-1,041.86",BROAD OAKS (MENCAP),CARE ESTABLISHMENT,OP - Fenland Locality - Cost of Care,Older People - Fenland - Care,Residential Care
Cambridgeshire County Council,19-Feb-21,51301523368,"-1,034.44",CHERRY HINTON NURSING HOME,CARE ESTABLISHMENT,OP - City & South Locality - Cost of Care,Older People - City & South - Care,Nursing Care
Cambridgeshire County Council,19-Feb-21,51301523368,"-1,034.44",CHERRY HINTON NURSING HOME,CARE ESTABLISHMENT,OP - City & South Locality - Cost of Care,Older People - City & South - Care,Nursing Care
Cambridgeshire County Council,19-Feb-21,51301523368,"-1,034.44",CHERRY HINTON NURSING HOME,CARE ESTABLISHMENT,OP - City & South Locality - Cost of Care,Older People - City & South - Care,Nursing Care
Cambridgeshire County Council,19-Feb-21,51301523368,"-1,034.44",CHERRY HINTON NURSING HOME,CARE ESTABLISHMENT,OP - City & South Locality - Cost of Care,Older People - City & South - Care,Nursing Care
Cambridgeshire County Council,19-Feb-21,51301523368,"-1,034.44",CHERRY HINTON NURSING HOME,CARE ESTABLISHMENT,OP - City & South Locality - Cost of Care,Older People - City & South - Care,Nursing Care
Cambridgeshire County Council,19-Feb-21,51301526272,"-1,028.00",THE GABLES SPECIALIST NURSING HOME,CARE ESTABLISHMENT,OP - Fenland Locality - Cost of Care,Older People - Fenland - Care,Nursing Care
Cambridgeshire County Council,19-Feb-21,51301523653,"-1,024.60",COTTENHAM COURT NURSING HOME,CARE ESTABLISHMENT,OP - City & South Locality - Cost of Care,Older People - City & South - Care,Nursing Care
Cambridgeshire County Council,12-Feb-21,51301517828,"-1,019.55",THE NATIONAL FOSTERING AGENCY,CARE ESTABLISHMENT,Unaccompanied Asylum Seeking Children,Unaccompanied Asylum Seeking Children <18,Agency Placements - Out of  County
Cambridgeshire County Council,19-Feb-21,51301520507,"-1,006.29",K RAVIVARUMAN T/A FAIR HAVEN CARE HOME,CARE ESTABLISHMENT,OP - East Cambs Blocks,East Cambs � Long term Blocks,Residential Care
Cambridgeshire County Council,19-Feb-21,51301524385,"-1,002.85",THERA EAST ANGLIA,CARE ESTABLISHMENT,LD - East Locality - Cost of Care,LD - East Cambs - Care,Domiciliary Care
Cambridgeshire County Council,19-Feb-21,51301524385,"-1,002.85",THERA EAST ANGLIA,CARE ESTABLISHMENT,LD - East Locality - Cost of Care,LD - East Cambs - Care,Domiciliary Care
Cambridgeshire County Council,19-Feb-21,51301524385,"-1,002.85",THERA EAST ANGLIA,CARE ESTABLISHMENT,LD - East Locality - Cost of Care,LD - East Cambs - Care,Domiciliary Care
Cambridgeshire County Council,17-Feb-21,51301519534,"-1,000.00",PETERBOROUGH CITY COUNCIL,OTHER PUBLIC BODIES,LAC Placements,Placements - secure accommodation,Agency Placements - Out of  County
Cambridgeshire County Council,19-Feb-21,51301523366,"-1,000.00",BRAMLEY COURT,CARE ESTABLISHMENT,OP - City & South Locality - Cost of Care,Older People - City & South - Care,Residential Care
Cambridgeshire County Council,19-Feb-21,51301523366,"-1,000.00",BRAMLEY COURT,CARE ESTABLISHMENT,OP - City & South Locality - Cost of Care,Older People - City & South - Care,Residential Care
Cambridgeshire County Council,19-Feb-21,51301526321,"-1,000.00",SYMONDS HOUSE NURSING HOME,CARE ESTABLISHMENT,OP - City & South Locality - Cost of Care,Older People - City & South - Care,Nursing Care
Cambridgeshire County Council,19-Feb-21,51301526321,"-1,000.00",SYMONDS HOUSE NURSING HOME,CARE ESTABLISHMENT,OP - City & South Locality - Cost of Care,Older People - City & South - Care,Nursing Care
Cambridgeshire County Council,19-Feb-21,51301526321,"-1,000.00",SYMONDS HOUSE NURSING HOME,CARE ESTABLISHMENT,OP - City & South Locality - Cost of Care,Older People - City & South - Care,Nursing Care
Cambridgeshire County Council,19-Feb-21,51301526321,"-1,000.00",SYMONDS HOUSE NURSING HOME,CARE ESTABLISHMENT,OP - City & South Locality - Cost of Care,Older People - City & South - Care,Nursing Care
Cambridgeshire County Council,19-Feb-21,51301526321,"-1,000.00",SYMONDS HOUSE NURSING HOME,CARE ESTABLISHMENT,OP - City & South Locality - Cost of Care,Older People - City & South - Care,Nursing Care
Cambridgeshire County Council,19-Feb-21,51301523099,"-1,000.00",MIDFIELD LODGE CARE CENTRE,CARE ESTABLISHMENT,Physical Disablity - Cost of Care,Countywide PD Service - Care,Nursing Care
Cambridgeshire County Council,19-Feb-21,51301523099,"-1,000.00",MIDFIELD LODGE CARE CENTRE,CARE ESTABLISHMENT,Physical Disablity - Cost of Care,Countywide PD Service - Care,Nursing Care
Cambridgeshire County Council,19-Feb-21,51301523099,"-1,000.00",MIDFIELD LODGE CARE CENTRE,CARE ESTABLISHMENT,Physical Disablity - Cost of Care,Countywide PD Service - Care,Nursing Care
Cambridgeshire County Council,19-Feb-21,51301523099,"-1,000.00",MIDFIELD LODGE CARE CENTRE,CARE ESTABLISHMENT,Physical Disablity - Cost of Care,Countywide PD Service - Care,Nursing Care
Cambridgeshire County Council,19-Feb-21,51301523099,"-1,000.00",MIDFIELD LODGE CARE CENTRE,CARE ESTABLISHMENT,Physical Disablity - Cost of Care,Countywide PD Service - Care,Nursing Care
Cambridgeshire County Council,19-Feb-21,51301523099,"-1,000.00",MIDFIELD LODGE CARE CENTRE,CARE ESTABLISHMENT,Physical Disablity - Cost of Care,Countywide PD Service - Care,Nursing Care
Cambridgeshire County Council,19-Feb-21,51301523680,"-1,000.00",OAKLANDS CARE HOME,CARE ESTABLISHMENT,Strategic Management - Adults,Adults Assistant Director,Nursing Care
Cambridgeshire County Council,19-Feb-21,51301523680,"-1,000.00",OAKLANDS CARE HOME,CARE ESTABLISHMENT,Strategic Management - Adults,Adults Assistant Director,Nursing Care
Cambridgeshire County Council,19-Feb-21,51301523298,-991.84,CHERRY HINTON NURSING HOME,CARE ESTABLISHMENT,OP - City & South Locality - Cost of Care,Older People - City & South - Care,Nursing Care
Cambridgeshire County Council,19-Feb-21,51301523298,-991.84,CHERRY HINTON NURSING HOME,CARE ESTABLISHMENT,OP - City & South Locality - Cost of Care,Older People - City & South - Care,Nursing Care
Cambridgeshire County Council,19-Feb-21,51301523298,-991.84,CHERRY HINTON NURSING HOME,CARE ESTABLISHMENT,OP - City & South Locality - Cost of Care,Older People - City & South - Care,Nursing Care
Cambridgeshire County Council,19-Feb-21,51301523298,-991.84,CHERRY HINTON NURSING HOME,CARE ESTABLISHMENT,OP - City & South Locality - Cost of Care,Older People - City & South - Care,Nursing Care
Cambridgeshire County Council,19-Feb-21,51301523298,-991.84,CHERRY HINTON NURSING HOME,CARE ESTABLISHMENT,OP - City & South Locality - Cost of Care,Older People - City & South - Care,Nursing Care
Cambridgeshire County Council,19-Feb-21,51301523299,-985.71,BRAMLEY COURT,CARE ESTABLISHMENT,OP - City & South Locality - Cost of Care,Older People - City & South - Care,Nursing Care
Cambridgeshire County Council,19-Feb-21,51301526221,-984.44,THE GABLES SPECIALIST NURSING HOME,CARE ESTABLISHMENT,OP - Fenland Locality - Cost of Care,Older People - Fenland - Care,Nursing Care
Cambridgeshire County Council,19-Feb-21,51301526221,-984.44,THE GABLES SPECIALIST NURSING HOME,CARE ESTABLISHMENT,OP - Fenland Locality - Cost of Care,Older People - Fenland - Care,Nursing Care
Cambridgeshire County Council,19-Feb-21,51301526221,-984.44,THE GABLES SPECIALIST NURSING HOME,CARE ESTABLISHMENT,OP - Fenland Locality - Cost of Care,Older People - Fenland - Care,Nursing Care
Cambridgeshire County Council,19-Feb-21,51301526221,-984.44,THE GABLES SPECIALIST NURSING HOME,CARE ESTABLISHMENT,OP - Fenland Locality - Cost of Care,Older People - Fenland - Care,Nursing Care
Cambridgeshire County Council,19-Feb-21,51301526221,-984.44,THE GABLES SPECIALIST NURSING HOME,CARE ESTABLISHMENT,OP - Fenland Locality - Cost of Care,Older People - Fenland - Care,Nursing Care
Cambridgeshire County Council,19-Feb-21,51301526221,-984.44,THE GABLES SPECIALIST NURSING HOME,CARE ESTABLISHMENT,OP - Fenland Locality - Cost of Care,Older People - Fenland - Care,Nursing Care
Cambridgeshire County Council,19-Feb-21,51301526221,-984.44,THE GABLES SPECIALIST NURSING HOME,CARE ESTABLISHMENT,OP - Fenland Locality - Cost of Care,Older People - Fenland - Care,Nursing Care
Cambridgeshire County Council,19-Feb-21,51301526221,-984.44,THE GABLES SPECIALIST NURSING HOME,CARE ESTABLISHMENT,OP - Fenland Locality - Cost of Care,Older People - Fenland - Care,Nursing Care
Cambridgeshire County Council,19-Feb-21,51301526221,-984.44,THE GABLES SPECIALIST NURSING HOME,CARE ESTABLISHMENT,OP - Fenland Locality - Cost of Care,Older People - Fenland - Care,Nursing Care
Cambridgeshire County Council,19-Feb-21,51301526221,-984.44,THE GABLES SPECIALIST NURSING HOME,CARE ESTABLISHMENT,OP - Fenland Locality - Cost of Care,Older People - Fenland - Care,Nursing Care
Cambridgeshire County Council,19-Feb-21,51301526221,-984.44,THE GABLES SPECIALIST NURSING HOME,CARE ESTABLISHMENT,OP - Fenland Locality - Cost of Care,Older People - Fenland - Care,Nursing Care
Cambridgeshire County Council,19-Feb-21,51301526221,-984.44,THE GABLES SPECIALIST NURSING HOME,CARE ESTABLISHMENT,OP - Fenland Locality - Cost of Care,Older People - Fenland - Care,Nursing Care
Cambridgeshire County Council,19-Feb-21,51301526221,-984.44,THE GABLES SPECIALIST NURSING HOME,CARE ESTABLISHMENT,OP - Fenland Locality - Cost of Care,Older People - Fenland - Care,Nursing Care
Cambridgeshire County Council,19-Feb-21,51301526221,-984.44,THE GABLES SPECIALIST NURSING HOME,CARE ESTABLISHMENT,OP - Fenland Locality - Cost of Care,Older People - Fenland - Care,Nursing Care
Cambridgeshire County Council,19-Feb-21,51301526221,-984.44,THE GABLES SPECIALIST NURSING HOME,CARE ESTABLISHMENT,OP - Fenland Locality - Cost of Care,Older People - Fenland - Care,Nursing Care
Cambridgeshire County Council,19-Feb-21,51301526221,-984.44,THE GABLES SPECIALIST NURSING HOME,CARE ESTABLISHMENT,OP - Fenland Locality - Cost of Care,Older People - Fenland - Care,Nursing Care
Cambridgeshire County Council,19-Feb-21,51301526221,-984.44,THE GABLES SPECIALIST NURSING HOME,CARE ESTABLISHMENT,OP - Fenland Locality - Cost of Care,Older People - Fenland - Care,Nursing Care
Cambridgeshire County Council,19-Feb-21,51301526221,-984.44,THE GABLES SPECIALIST NURSING HOME,CARE ESTABLISHMENT,OP - Fenland Locality - Cost of Care,Older People - Fenland - Care,Nursing Care
Cambridgeshire County Council,19-Feb-21,51301526221,-984.44,THE GABLES SPECIALIST NURSING HOME,CARE ESTABLISHMENT,OP - Fenland Locality - Cost of Care,Older People - Fenland - Care,Nursing Care
Cambridgeshire County Council,19-Feb-21,51301526221,-984.44,THE GABLES SPECIALIST NURSING HOME,CARE ESTABLISHMENT,OP - Fenland Locality - Cost of Care,Older People - Fenland - Care,Nursing Care
Cambridgeshire County Council,19-Feb-21,51301526221,-984.44,THE GABLES SPECIALIST NURSING HOME,CARE ESTABLISHMENT,OP - Fenland Locality - Cost of Care,Older People - Fenland - Care,Nursing Care
Cambridgeshire County Council,19-Feb-21,51301526221,-984.44,THE GABLES SPECIALIST NURSING HOME,CARE ESTABLISHMENT,OP - Fenland Locality - Cost of Care,Older People - Fenland - Care,Nursing Care
Cambridgeshire County Council,19-Feb-21,51301526221,-984.44,THE GABLES SPECIALIST NURSING HOME,CARE ESTABLISHMENT,OP - Fenland Locality - Cost of Care,Older People - Fenland - Care,Nursing Care
Cambridgeshire County Council,19-Feb-21,51301526221,-984.44,THE GABLES SPECIALIST NURSING HOME,CARE ESTABLISHMENT,OP - Fenland Locality - Cost of Care,Older People - Fenland - Care,Nursing Care
Cambridgeshire County Council,19-Feb-21,51301526221,-984.44,THE GABLES SPECIALIST NURSING HOME,CARE ESTABLISHMENT,OP - Fenland Locality - Cost of Care,Older People - Fenland - Care,Nursing Care
Cambridgeshire County Council,19-Feb-21,51301526221,-984.44,THE GABLES SPECIALIST NURSING HOME,CARE ESTABLISHMENT,OP - Fenland Locality - Cost of Care,Older People - Fenland - Care,Nursing Care
Cambridgeshire County Council,19-Feb-21,51301526221,-984.44,THE GABLES SPECIALIST NURSING HOME,CARE ESTABLISHMENT,OP - Fenland Locality - Cost of Care,Older People - Fenland - Care,Nursing Care
Cambridgeshire County Council,19-Feb-21,51301526221,-984.44,THE GABLES SPECIALIST NURSING HOME,CARE ESTABLISHMENT,OP - Fenland Locality - Cost of Care,Older People - Fenland - Care,Nursing Care
Cambridgeshire County Council,19-Feb-21,51301526221,-984.44,THE GABLES SPECIALIST NURSING HOME,CARE ESTABLISHMENT,OP - Fenland Locality - Cost of Care,Older People - Fenland - Care,Nursing Care
Cambridgeshire County Council,19-Feb-21,51301526221,-984.44,THE GABLES SPECIALIST NURSING HOME,CARE ESTABLISHMENT,OP - Fenland Locality - Cost of Care,Older People - Fenland - Care,Nursing Care
Cambridgeshire County Council,19-Feb-21,51301524256,-984.00,CARE UK LIMITED,CARE ESTABLISHMENT,OP - Hunts Locality - Cost of Care,Hunts OP Team - Care,Nursing Care
Cambridgeshire County Council,19-Feb-21,51301525315,-967.89,ACTION ON HEARING LOSS,CARE ESTABLISHMENT,OP - City & South Locality - Cost of Care,Older People - City & South - Care,Residential Care
Cambridgeshire County Council,19-Feb-21,51301525315,-967.89,ACTION ON HEARING LOSS,CARE ESTABLISHMENT,OP - City & South Locality - Cost of Care,Older People - City & South - Care,Residential Care
Cambridgeshire County Council,19-Feb-21,51301525315,-967.89,ACTION ON HEARING LOSS,CARE ESTABLISHMENT,OP - City & South Locality - Cost of Care,Older People - City & South - Care,Residential Care
Cambridgeshire County Council,19-Feb-21,51301525315,-967.89,ACTION ON HEARING LOSS,CARE ESTABLISHMENT,OP - City & South Locality - Cost of Care,Older People - City & South - Care,Residential Care
Cambridgeshire County Council,19-Feb-21,51301525315,-967.89,ACTION ON HEARING LOSS,CARE ESTABLISHMENT,OP - City & South Locality - Cost of Care,Older People - City & South - Care,Residential Care
Cambridgeshire County Council,19-Feb-21,51301525315,-967.89,ACTION ON HEARING LOSS,CARE ESTABLISHMENT,OP - City & South Locality - Cost of Care,Older People - City & South - Care,Residential Care
Cambridgeshire County Council,19-Feb-21,51301525315,-967.89,ACTION ON HEARING LOSS,CARE ESTABLISHMENT,OP - City & South Locality - Cost of Care,Older People - City & South - Care,Residential Care
Cambridgeshire County Council,19-Feb-21,51301525315,-967.89,ACTION ON HEARING LOSS,CARE ESTABLISHMENT,OP - City & South Locality - Cost of Care,Older People - City & South - Care,Residential Care
Cambridgeshire County Council,19-Feb-21,51301525315,-967.89,ACTION ON HEARING LOSS,CARE ESTABLISHMENT,OP - City & South Locality - Cost of Care,Older People - City & South - Care,Residential Care
Cambridgeshire County Council,19-Feb-21,51301525315,-967.89,ACTION ON HEARING LOSS,CARE ESTABLISHMENT,OP - City & South Locality - Cost of Care,Older People - City & South - Care,Residential Care
Cambridgeshire County Council,19-Feb-21,51301525315,-967.89,ACTION ON HEARING LOSS,CARE ESTABLISHMENT,OP - City & South Locality - Cost of Care,Older People - City & South - Care,Residential Care
Cambridgeshire County Council,19-Feb-21,51301525315,-967.89,ACTION ON HEARING LOSS,CARE ESTABLISHMENT,OP - City & South Locality - Cost of Care,Older People - City & South - Care,Residential Care
Cambridgeshire County Council,19-Feb-21,51301525315,-967.89,ACTION ON HEARING LOSS,CARE ESTABLISHMENT,OP - City & South Locality - Cost of Care,Older People - City & South - Care,Residential Care
Cambridgeshire County Council,19-Feb-21,51301525315,-967.89,ACTION ON HEARING LOSS,CARE ESTABLISHMENT,OP - City & South Locality - Cost of Care,Older People - City & South - Care,Residential Care
Cambridgeshire County Council,19-Feb-21,51301525315,-967.89,ACTION ON HEARING LOSS,CARE ESTABLISHMENT,OP - City & South Locality - Cost of Care,Older People - City & South - Care,Residential Care
Cambridgeshire County Council,19-Feb-21,51301525315,-967.89,ACTION ON HEARING LOSS,CARE ESTABLISHMENT,OP - City & South Locality - Cost of Care,Older People - City & South - Care,Residential Care
Cambridgeshire County Council,19-Feb-21,51301525315,-967.89,ACTION ON HEARING LOSS,CARE ESTABLISHMENT,OP - City & South Locality - Cost of Care,Older People - City & South - Care,Residential Care
Cambridgeshire County Council,19-Feb-21,51301525315,-967.89,ACTION ON HEARING LOSS,CARE ESTABLISHMENT,OP - City & South Locality - Cost of Care,Older People - City & South - Care,Residential Care
Cambridgeshire County Council,19-Feb-21,51301525315,-967.89,ACTION ON HEARING LOSS,CARE ESTABLISHMENT,OP - City & South Locality - Cost of Care,Older People - City & South - Care,Residential Care
Cambridgeshire County Council,19-Feb-21,51301525315,-967.89,ACTION ON HEARING LOSS,CARE ESTABLISHMENT,OP - City & South Locality - Cost of Care,Older People - City & South - Care,Residential Care
Cambridgeshire County Council,19-Feb-21,51301525315,-967.89,ACTION ON HEARING LOSS,CARE ESTABLISHMENT,OP - City & South Locality - Cost of Care,Older People - City & South - Care,Residential Care
Cambridgeshire County Council,19-Feb-21,51301525315,-967.89,ACTION ON HEARING LOSS,CARE ESTABLISHMENT,OP - City & South Locality - Cost of Care,Older People - City & South - Care,Residential Care
Cambridgeshire County Council,19-Feb-21,51301525315,-967.89,ACTION ON HEARING LOSS,CARE ESTABLISHMENT,OP - City & South Locality - Cost of Care,Older People - City & South - Care,Residential Care
Cambridgeshire County Council,19-Feb-21,51301525315,-967.89,ACTION ON HEARING LOSS,CARE ESTABLISHMENT,OP - City & South Locality - Cost of Care,Older People - City & South - Care,Residential Care
Cambridgeshire County Council,19-Feb-21,51301525315,-967.89,ACTION ON HEARING LOSS,CARE ESTABLISHMENT,OP - City & South Locality - Cost of Care,Older People - City & South - Care,Residential Care
Cambridgeshire County Council,19-Feb-21,51301525315,-967.89,ACTION ON HEARING LOSS,CARE ESTABLISHMENT,OP - City & South Locality - Cost of Care,Older People - City & South - Care,Residential Care
Cambridgeshire County Council,19-Feb-21,51301525315,-967.89,ACTION ON HEARING LOSS,CARE ESTABLISHMENT,OP - City & South Locality - Cost of Care,Older People - City & South - Care,Residential Care
Cambridgeshire County Council,19-Feb-21,51301525315,-967.89,ACTION ON HEARING LOSS,CARE ESTABLISHMENT,OP - City & South Locality - Cost of Care,Older People - City & South - Care,Residential Care
Cambridgeshire County Council,19-Feb-21,51301525315,-967.89,ACTION ON HEARING LOSS,CARE ESTABLISHMENT,OP - City & South Locality - Cost of Care,Older People - City & South - Care,Residential Care
Cambridgeshire County Council,19-Feb-21,51301525315,-967.89,ACTION ON HEARING LOSS,CARE ESTABLISHMENT,OP - City & South Locality - Cost of Care,Older People - City & South - Care,Residential Care
Cambridgeshire County Council,19-Feb-21,51301525315,-967.89,ACTION ON HEARING LOSS,CARE ESTABLISHMENT,OP - City & South Locality - Cost of Care,Older People - City & South - Care,Residential Care
Cambridgeshire County Council,19-Feb-21,51301525315,-967.89,ACTION ON HEARING LOSS,CARE ESTABLISHMENT,OP - City & South Locality - Cost of Care,Older People - City & South - Care,Residential Care
Cambridgeshire County Council,19-Feb-21,51301525315,-967.89,ACTION ON HEARING LOSS,CARE ESTABLISHMENT,OP - City & South Locality - Cost of Care,Older People - City & South - Care,Residential Care
Cambridgeshire County Council,19-Feb-21,51301525315,-967.89,ACTION ON HEARING LOSS,CARE ESTABLISHMENT,OP - City & South Locality - Cost of Care,Older People - City & South - Care,Residential Care
Cambridgeshire County Council,19-Feb-21,51301525315,-967.89,ACTION ON HEARING LOSS,CARE ESTABLISHMENT,OP - City & South Locality - Cost of Care,Older People - City & South - Care,Residential Care
Cambridgeshire County Council,19-Feb-21,51301525315,-967.89,ACTION ON HEARING LOSS,CARE ESTABLISHMENT,OP - City & South Locality - Cost of Care,Older People - City & South - Care,Residential Care
Cambridgeshire County Council,19-Feb-21,51301525315,-967.89,ACTION ON HEARING LOSS,CARE ESTABLISHMENT,OP - City & South Locality - Cost of Care,Older People - City & South - Care,Residential Care
Cambridgeshire County Council,19-Feb-21,51301525315,-967.89,ACTION ON HEARING LOSS,CARE ESTABLISHMENT,OP - City & South Locality - Cost of Care,Older People - City & South - Care,Residential Care
Cambridgeshire County Council,19-Feb-21,51301525315,-967.89,ACTION ON HEARING LOSS,CARE ESTABLISHMENT,OP - City & South Locality - Cost of Care,Older People - City & South - Care,Residential Care
Cambridgeshire County Council,19-Feb-21,51301525315,-967.89,ACTION ON HEARING LOSS,CARE ESTABLISHMENT,OP - City & South Locality - Cost of Care,Older People - City & South - Care,Residential Care
Cambridgeshire County Council,19-Feb-21,51301525315,-967.89,ACTION ON HEARING LOSS,CARE ESTABLISHMENT,OP - City & South Locality - Cost of Care,Older People - City & South - Care,Residential Care
Cambridgeshire County Council,19-Feb-21,51301525315,-967.89,ACTION ON HEARING LOSS,CARE ESTABLISHMENT,OP - City & South Locality - Cost of Care,Older People - City & South - Care,Residential Care
Cambridgeshire County Council,19-Feb-21,51301525315,-967.89,ACTION ON HEARING LOSS,CARE ESTABLISHMENT,OP - City & South Locality - Cost of Care,Older People - City & South - Care,Residential Care
Cambridgeshire County Council,19-Feb-21,51301525315,-967.89,ACTION ON HEARING LOSS,CARE ESTABLISHMENT,OP - City & South Locality - Cost of Care,Older People - City & South - Care,Residential Care
Cambridgeshire County Council,19-Feb-21,51301525315,-967.89,ACTION ON HEARING LOSS,CARE ESTABLISHMENT,OP - City & South Locality - Cost of Care,Older People - City & South - Care,Residential Care
Cambridgeshire County Council,19-Feb-21,51301525315,-967.89,ACTION ON HEARING LOSS,CARE ESTABLISHMENT,OP - City & South Locality - Cost of Care,Older People - City & South - Care,Residential Care
Cambridgeshire County Council,19-Feb-21,51301525315,-967.89,ACTION ON HEARING LOSS,CARE ESTABLISHMENT,OP - City & South Locality - Cost of Care,Older People - City & South - Care,Residential Care
Cambridgeshire County Council,05-Feb-21,51301515313,-950.00,ARIA COURT,CARE ESTABLISHMENT,OP - Hunts Locality - Cost of Care,Hunts OP Team - Care,Short Term Other
Cambridgeshire County Council,26-Feb-21,51301525455,-950.00,WERRINGTON LODGE CARE HOME,CARE ESTABLISHMENT,OP - Hunts Locality - Cost of Care,Hunts OP Team - Care,Nursing Care
Cambridgeshire County Council,26-Feb-21,51301525455,-950.00,WERRINGTON LODGE CARE HOME,CARE ESTABLISHMENT,OP - Hunts Locality - Cost of Care,Hunts OP Team - Care,Nursing Care
Cambridgeshire County Council,26-Feb-21,51301525457,-950.00,WERRINGTON LODGE CARE HOME,CARE ESTABLISHMENT,OP - Hunts Locality - Cost of Care,Hunts OP Team - Care,Nursing Care
Cambridgeshire County Council,26-Feb-21,51301525455,-950.00,WERRINGTON LODGE CARE HOME,CARE ESTABLISHMENT,OP - Hunts Locality - Cost of Care,Hunts OP Team - Care,Nursing Care
Cambridgeshire County Council,26-Feb-21,51301525455,-950.00,WERRINGTON LODGE CARE HOME,CARE ESTABLISHMENT,OP - Hunts Locality - Cost of Care,Hunts OP Team - Care,Nursing Care
Cambridgeshire County Council,26-Feb-21,51301525455,-950.00,WERRINGTON LODGE CARE HOME,CARE ESTABLISHMENT,OP - Hunts Locality - Cost of Care,Hunts OP Team - Care,Nursing Care
Cambridgeshire County Council,26-Feb-21,51301525461,-950.00,WERRINGTON LODGE CARE HOME,CARE ESTABLISHMENT,OP - Hunts Locality - Cost of Care,Hunts OP Team - Care,Nursing Care
Cambridgeshire County Council,26-Feb-21,51301525457,-950.00,WERRINGTON LODGE CARE HOME,CARE ESTABLISHMENT,OP - Hunts Locality - Cost of Care,Hunts OP Team - Care,Nursing Care
Cambridgeshire County Council,26-Feb-21,51301525457,-950.00,WERRINGTON LODGE CARE HOME,CARE ESTABLISHMENT,OP - Hunts Locality - Cost of Care,Hunts OP Team - Care,Nursing Care
Cambridgeshire County Council,26-Feb-21,51301525457,-950.00,WERRINGTON LODGE CARE HOME,CARE ESTABLISHMENT,OP - Hunts Locality - Cost of Care,Hunts OP Team - Care,Nursing Care
Cambridgeshire County Council,26-Feb-21,51301525461,-950.00,WERRINGTON LODGE CARE HOME,CARE ESTABLISHMENT,OP - Hunts Locality - Cost of Care,Hunts OP Team - Care,Nursing Care
Cambridgeshire County Council,26-Feb-21,51301525461,-950.00,WERRINGTON LODGE CARE HOME,CARE ESTABLISHMENT,OP - Hunts Locality - Cost of Care,Hunts OP Team - Care,Nursing Care
Cambridgeshire County Council,26-Feb-21,51301525461,-950.00,WERRINGTON LODGE CARE HOME,CARE ESTABLISHMENT,OP - Hunts Locality - Cost of Care,Hunts OP Team - Care,Nursing Care
Cambridgeshire County Council,26-Feb-21,51301525461,-950.00,WERRINGTON LODGE CARE HOME,CARE ESTABLISHMENT,OP - Hunts Locality - Cost of Care,Hunts OP Team - Care,Nursing Care
Cambridgeshire County Council,19-Feb-21,51301523296,-944.95,BRAMLEY COURT,CARE ESTABLISHMENT,OP - City & South Locality - Cost of Care,Older People - City & South - Care,Nursing Care
Cambridgeshire County Council,19-Feb-21,51301523296,-944.95,BRAMLEY COURT,CARE ESTABLISHMENT,OP - City & South Locality - Cost of Care,Older People - City & South - Care,Nursing Care
Cambridgeshire County Council,19-Feb-21,51301523296,-944.95,BRAMLEY COURT,CARE ESTABLISHMENT,OP - City & South Locality - Cost of Care,Older People - City & South - Care,Nursing Care
Cambridgeshire County Council,19-Feb-21,51301523326,-941.84,THE CAMBRIDGE NURSING CENTRE,CARE ESTABLISHMENT,OP - City & South Locality - Cost of Care,Older People - City & South - Care,Nursing Care
Cambridgeshire County Council,19-Feb-21,51301523326,-941.84,THE CAMBRIDGE NURSING CENTRE,CARE ESTABLISHMENT,OP - City & South Locality - Cost of Care,Older People - City & South - Care,Nursing Care
Cambridgeshire County Council,19-Feb-21,51301523326,-941.84,THE CAMBRIDGE NURSING CENTRE,CARE ESTABLISHMENT,OP - City & South Locality - Cost of Care,Older People - City & South - Care,Nursing Care
Cambridgeshire County Council,19-Feb-21,51301523326,-941.84,THE CAMBRIDGE NURSING CENTRE,CARE ESTABLISHMENT,OP - City & South Locality - Cost of Care,Older People - City & South - Care,Nursing Care
Cambridgeshire County Council,19-Feb-21,51301523326,-941.84,THE CAMBRIDGE NURSING CENTRE,CARE ESTABLISHMENT,OP - City & South Locality - Cost of Care,Older People - City & South - Care,Nursing Care
Cambridgeshire County Council,19-Feb-21,51301523326,-941.84,THE CAMBRIDGE NURSING CENTRE,CARE ESTABLISHMENT,OP - City & South Locality - Cost of Care,Older People - City & South - Care,Nursing Care
Cambridgeshire County Council,19-Feb-21,51301523326,-941.84,THE CAMBRIDGE NURSING CENTRE,CARE ESTABLISHMENT,OP - City & South Locality - Cost of Care,Older People - City & South - Care,Nursing Care
Cambridgeshire County Council,19-Feb-21,51301523326,-941.84,THE CAMBRIDGE NURSING CENTRE,CARE ESTABLISHMENT,OP - City & South Locality - Cost of Care,Older People - City & South - Care,Nursing Care
Cambridgeshire County Council,19-Feb-21,51301523326,-941.84,THE CAMBRIDGE NURSING CENTRE,CARE ESTABLISHMENT,OP - City & South Locality - Cost of Care,Older People - City & South - Care,Nursing Care
Cambridgeshire County Council,19-Feb-21,51301523326,-941.84,THE CAMBRIDGE NURSING CENTRE,CARE ESTABLISHMENT,OP - City & South Locality - Cost of Care,Older People - City & South - Care,Nursing Care
Cambridgeshire County Council,19-Feb-21,51301523326,-941.84,THE CAMBRIDGE NURSING CENTRE,CARE ESTABLISHMENT,OP - City & South Locality - Cost of Care,Older People - City & South - Care,Nursing Care
Cambridgeshire County Council,19-Feb-21,51301523326,-941.84,THE CAMBRIDGE NURSING CENTRE,CARE ESTABLISHMENT,OP - City & South Locality - Cost of Care,Older People - City & South - Care,Nursing Care
Cambridgeshire County Council,19-Feb-21,51301523326,-941.84,THE CAMBRIDGE NURSING CENTRE,CARE ESTABLISHMENT,OP - City & South Locality - Cost of Care,Older People - City & South - Care,Nursing Care
Cambridgeshire County Council,19-Feb-21,51301523326,-941.84,THE CAMBRIDGE NURSING CENTRE,CARE ESTABLISHMENT,OP - City & South Locality - Cost of Care,Older People - City & South - Care,Nursing Care
Cambridgeshire County Council,19-Feb-21,51301523326,-941.84,THE CAMBRIDGE NURSING CENTRE,CARE ESTABLISHMENT,OP - City & South Locality - Cost of Care,Older People - City & South - Care,Nursing Care
Cambridgeshire County Council,19-Feb-21,51301523326,-941.84,THE CAMBRIDGE NURSING CENTRE,CARE ESTABLISHMENT,OP - City & South Locality - Cost of Care,Older People - City & South - Care,Nursing Care
Cambridgeshire County Council,19-Feb-21,51301523326,-941.84,THE CAMBRIDGE NURSING CENTRE,CARE ESTABLISHMENT,OP - City & South Locality - Cost of Care,Older People - City & South - Care,Nursing Care
Cambridgeshire County Council,19-Feb-21,51301523326,-941.84,THE CAMBRIDGE NURSING CENTRE,CARE ESTABLISHMENT,OP - City & South Locality - Cost of Care,Older People - City & South - Care,Nursing Care
Cambridgeshire County Council,19-Feb-21,51301523326,-941.84,THE CAMBRIDGE NURSING CENTRE,CARE ESTABLISHMENT,OP - City & South Locality - Cost of Care,Older People - City & South - Care,Nursing Care
Cambridgeshire County Council,19-Feb-21,51301523326,-941.84,THE CAMBRIDGE NURSING CENTRE,CARE ESTABLISHMENT,OP - City & South Locality - Cost of Care,Older People - City & South - Care,Nursing Care
Cambridgeshire County Council,19-Feb-21,51301523326,-941.84,THE CAMBRIDGE NURSING CENTRE,CARE ESTABLISHMENT,OP - City & South Locality - Cost of Care,Older People - City & South - Care,Nursing Care
Cambridgeshire County Council,19-Feb-21,51301523326,-941.84,THE CAMBRIDGE NURSING CENTRE,CARE ESTABLISHMENT,OP - City & South Locality - Cost of Care,Older People - City & South - Care,Nursing Care
Cambridgeshire County Council,19-Feb-21,51301523326,-941.84,THE CAMBRIDGE NURSING CENTRE,CARE ESTABLISHMENT,OP - City & South Locality - Cost of Care,Older People - City & South - Care,Nursing Care
Cambridgeshire County Council,19-Feb-21,51301523326,-941.84,THE CAMBRIDGE NURSING CENTRE,CARE ESTABLISHMENT,OP - City & South Locality - Cost of Care,Older People - City & South - Care,Nursing Care
Cambridgeshire County Council,19-Feb-21,51301523326,-941.84,THE CAMBRIDGE NURSING CENTRE,CARE ESTABLISHMENT,OP - City & South Locality - Cost of Care,Older People - City & South - Care,Nursing Care
Cambridgeshire County Council,19-Feb-21,51301523326,-941.84,THE CAMBRIDGE NURSING CENTRE,CARE ESTABLISHMENT,OP - City & South Locality - Cost of Care,Older People - City & South - Care,Nursing Care
Cambridgeshire County Council,19-Feb-21,51301523326,-941.84,THE CAMBRIDGE NURSING CENTRE,CARE ESTABLISHMENT,OP - City & South Locality - Cost of Care,Older People - City & South - Care,Nursing Care
Cambridgeshire County Council,19-Feb-21,51301523326,-941.84,THE CAMBRIDGE NURSING CENTRE,CARE ESTABLISHMENT,OP - City & South Locality - Cost of Care,Older People - City & South - Care,Nursing Care
Cambridgeshire County Council,19-Feb-21,51301523326,-941.84,THE CAMBRIDGE NURSING CENTRE,CARE ESTABLISHMENT,OP - City & South Locality - Cost of Care,Older People - City & South - Care,Nursing Care
Cambridgeshire County Council,19-Feb-21,51301523326,-941.84,THE CAMBRIDGE NURSING CENTRE,CARE ESTABLISHMENT,OP - City & South Locality - Cost of Care,Older People - City & South - Care,Nursing Care
Cambridgeshire County Council,19-Feb-21,51301523326,-941.84,THE CAMBRIDGE NURSING CENTRE,CARE ESTABLISHMENT,OP - City & South Locality - Cost of Care,Older People - City & South - Care,Nursing Care
Cambridgeshire County Council,19-Feb-21,51301523326,-941.84,THE CAMBRIDGE NURSING CENTRE,CARE ESTABLISHMENT,OP - City & South Locality - Cost of Care,Older People - City & South - Care,Nursing Care
Cambridgeshire County Council,19-Feb-21,51301523326,-941.84,THE CAMBRIDGE NURSING CENTRE,CARE ESTABLISHMENT,OP - City & South Locality - Cost of Care,Older People - City & South - Care,Nursing Care
Cambridgeshire County Council,19-Feb-21,51301523326,-941.84,THE CAMBRIDGE NURSING CENTRE,CARE ESTABLISHMENT,OP - City & South Locality - Cost of Care,Older People - City & South - Care,Nursing Care
Cambridgeshire County Council,19-Feb-21,51301525430,-927.35,HC-ONE,CARE ESTABLISHMENT,OP - Hunts Locality - Cost of Care,Hunts OP Team - Care,Residential Care
Cambridgeshire County Council,19-Feb-21,51301525430,-927.35,HC-ONE,CARE ESTABLISHMENT,OP - Hunts Locality - Cost of Care,Hunts OP Team - Care,Residential Care
Cambridgeshire County Council,19-Feb-21,51301525430,-927.35,HC-ONE,CARE ESTABLISHMENT,OP - Hunts Locality - Cost of Care,Hunts OP Team - Care,Residential Care
Cambridgeshire County Council,19-Feb-21,51301525430,-927.35,HC-ONE,CARE ESTABLISHMENT,OP - Hunts Locality - Cost of Care,Hunts OP Team - Care,Residential Care
Cambridgeshire County Council,19-Feb-21,51301525430,-927.35,HC-ONE,CARE ESTABLISHMENT,OP - Hunts Locality - Cost of Care,Hunts OP Team - Care,Residential Care
Cambridgeshire County Council,19-Feb-21,51301525430,-927.35,HC-ONE,CARE ESTABLISHMENT,OP - Hunts Locality - Cost of Care,Hunts OP Team - Care,Residential Care
Cambridgeshire County Council,19-Feb-21,51301525430,-927.35,HC-ONE,CARE ESTABLISHMENT,OP - Hunts Locality - Cost of Care,Hunts OP Team - Care,Residential Care
Cambridgeshire County Council,19-Feb-21,51301525430,-927.35,HC-ONE,CARE ESTABLISHMENT,OP - Hunts Locality - Cost of Care,Hunts OP Team - Care,Residential Care
Cambridgeshire County Council,19-Feb-21,51301525430,-927.35,HC-ONE,CARE ESTABLISHMENT,OP - Hunts Locality - Cost of Care,Hunts OP Team - Care,Residential Care
Cambridgeshire County Council,19-Feb-21,51301525430,-927.35,HC-ONE,CARE ESTABLISHMENT,OP - Hunts Locality - Cost of Care,Hunts OP Team - Care,Residential Care
Cambridgeshire County Council,19-Feb-21,51301525430,-927.35,HC-ONE,CARE ESTABLISHMENT,OP - Hunts Locality - Cost of Care,Hunts OP Team - Care,Residential Care
Cambridgeshire County Council,19-Feb-21,51301525430,-927.35,HC-ONE,CARE ESTABLISHMENT,OP - Hunts Locality - Cost of Care,Hunts OP Team - Care,Residential Care
Cambridgeshire County Council,19-Feb-21,51301525430,-927.35,HC-ONE,CARE ESTABLISHMENT,OP - Hunts Locality - Cost of Care,Hunts OP Team - Care,Residential Care
Cambridgeshire County Council,19-Feb-21,51301525430,-927.35,HC-ONE,CARE ESTABLISHMENT,OP - Hunts Locality - Cost of Care,Hunts OP Team - Care,Residential Care
Cambridgeshire County Council,19-Feb-21,51301525430,-927.35,HC-ONE,CARE ESTABLISHMENT,OP - Hunts Locality - Cost of Care,Hunts OP Team - Care,Residential Care
Cambridgeshire County Council,19-Feb-21,51301525430,-927.35,HC-ONE,CARE ESTABLISHMENT,OP - Hunts Locality - Cost of Care,Hunts OP Team - Care,Residential Care
Cambridgeshire County Council,19-Feb-21,51301525430,-927.35,HC-ONE,CARE ESTABLISHMENT,OP - Hunts Locality - Cost of Care,Hunts OP Team - Care,Residential Care
Cambridgeshire County Council,19-Feb-21,51301525430,-927.35,HC-ONE,CARE ESTABLISHMENT,OP - Hunts Locality - Cost of Care,Hunts OP Team - Care,Residential Care
Cambridgeshire County Council,19-Feb-21,51301525430,-927.35,HC-ONE,CARE ESTABLISHMENT,OP - Hunts Locality - Cost of Care,Hunts OP Team - Care,Residential Care
Cambridgeshire County Council,19-Feb-21,51301525430,-927.35,HC-ONE,CARE ESTABLISHMENT,OP - Hunts Locality - Cost of Care,Hunts OP Team - Care,Residential Care
Cambridgeshire County Council,19-Feb-21,51301525430,-927.35,HC-ONE,CARE ESTABLISHMENT,OP - Hunts Locality - Cost of Care,Hunts OP Team - Care,Residential Care
Cambridgeshire County Council,19-Feb-21,51301525430,-927.35,HC-ONE,CARE ESTABLISHMENT,OP - Hunts Locality - Cost of Care,Hunts OP Team - Care,Residential Care
Cambridgeshire County Council,19-Feb-21,51301525430,-927.35,HC-ONE,CARE ESTABLISHMENT,OP - Hunts Locality - Cost of Care,Hunts OP Team - Care,Residential Care
Cambridgeshire County Council,19-Feb-21,51301525430,-927.35,HC-ONE,CARE ESTABLISHMENT,OP - Hunts Locality - Cost of Care,Hunts OP Team - Care,Residential Care
Cambridgeshire County Council,19-Feb-21,51301525430,-927.35,HC-ONE,CARE ESTABLISHMENT,OP - Hunts Locality - Cost of Care,Hunts OP Team - Care,Residential Care
Cambridgeshire County Council,19-Feb-21,51301525430,-927.35,HC-ONE,CARE ESTABLISHMENT,OP - Hunts Locality - Cost of Care,Hunts OP Team - Care,Residential Care
Cambridgeshire County Council,19-Feb-21,51301525430,-927.35,HC-ONE,CARE ESTABLISHMENT,OP - Hunts Locality - Cost of Care,Hunts OP Team - Care,Residential Care
Cambridgeshire County Council,19-Feb-21,51301525430,-927.35,HC-ONE,CARE ESTABLISHMENT,OP - Hunts Locality - Cost of Care,Hunts OP Team - Care,Residential Care
Cambridgeshire County Council,19-Feb-21,51301525430,-927.35,HC-ONE,CARE ESTABLISHMENT,OP - Hunts Locality - Cost of Care,Hunts OP Team - Care,Residential Care
Cambridgeshire County Council,19-Feb-21,51301525430,-927.35,HC-ONE,CARE ESTABLISHMENT,OP - Hunts Locality - Cost of Care,Hunts OP Team - Care,Residential Care
Cambridgeshire County Council,19-Feb-21,51301525430,-927.35,HC-ONE,CARE ESTABLISHMENT,OP - Hunts Locality - Cost of Care,Hunts OP Team - Care,Residential Care
Cambridgeshire County Council,19-Feb-21,51301525430,-927.35,HC-ONE,CARE ESTABLISHMENT,OP - Hunts Locality - Cost of Care,Hunts OP Team - Care,Residential Care
Cambridgeshire County Council,19-Feb-21,51301525430,-927.35,HC-ONE,CARE ESTABLISHMENT,OP - Hunts Locality - Cost of Care,Hunts OP Team - Care,Residential Care
Cambridgeshire County Council,19-Feb-21,51301525430,-927.35,HC-ONE,CARE ESTABLISHMENT,OP - Hunts Locality - Cost of Care,Hunts OP Team - Care,Residential Care
Cambridgeshire County Council,19-Feb-21,51301524181,-925.23,Accomplish Group Support Limited,CARE ESTABLISHMENT,LD - Fenland Locality - Cost of Care,LD - Fenland  - Care,Residential Care
Cambridgeshire County Council,19-Feb-21,51301522478,-924.00,Redacted Personal Data ,INDIVIDUAL,OP - City & South Locality - Cost of Care,Older People - City & South - Care,Direct Payments
Cambridgeshire County Council,19-Feb-21,51301522478,-924.00,Redacted Personal Data ,INDIVIDUAL,OP - City & South Locality - Cost of Care,Older People - City & South - Care,Direct Payments
Cambridgeshire County Council,19-Feb-21,51301522478,-924.00,Redacted Personal Data ,INDIVIDUAL,OP - City & South Locality - Cost of Care,Older People - City & South - Care,Direct Payments
Cambridgeshire County Council,19-Feb-21,51301523040,-915.06,PAULINE BURNETT HOUSE,CARE ESTABLISHMENT,LD - South Locality - Cost of Care,LD - South Cambs - Care,Residential Care
Cambridgeshire County Council,19-Feb-21,51301523040,-915.06,PAULINE BURNETT HOUSE,CARE ESTABLISHMENT,LD - South Locality - Cost of Care,LD - South Cambs - Care,Residential Care
Cambridgeshire County Council,19-Feb-21,51301523040,-915.06,PAULINE BURNETT HOUSE,CARE ESTABLISHMENT,LD - South Locality - Cost of Care,LD - South Cambs - Care,Residential Care
Cambridgeshire County Council,19-Feb-21,51301523040,-915.06,PAULINE BURNETT HOUSE,CARE ESTABLISHMENT,LD - South Locality - Cost of Care,LD - South Cambs - Care,Residential Care
Cambridgeshire County Council,19-Feb-21,51301523040,-915.06,PAULINE BURNETT HOUSE,CARE ESTABLISHMENT,LD - South Locality - Cost of Care,LD - South Cambs - Care,Residential Care
Cambridgeshire County Council,19-Feb-21,51301523040,-915.06,PAULINE BURNETT HOUSE,CARE ESTABLISHMENT,LD - South Locality - Cost of Care,LD - South Cambs - Care,Residential Care
Cambridgeshire County Council,19-Feb-21,51301523040,-915.06,PAULINE BURNETT HOUSE,CARE ESTABLISHMENT,LD - South Locality - Cost of Care,LD - South Cambs - Care,Residential Care
Cambridgeshire County Council,19-Feb-21,51301523040,-915.06,PAULINE BURNETT HOUSE,CARE ESTABLISHMENT,LD - South Locality - Cost of Care,LD - South Cambs - Care,Residential Care
Cambridgeshire County Council,05-Feb-21,51301515271,-913.70,GLENHOLME HEALTHCARE LTD,CARE ESTABLISHMENT,LD - Hunts Locality - Cost of Care,LD - Huntingdonshire - Care,Residential Care
Cambridgeshire County Council,19-Feb-21,51301526148,-910.00,ASKHAM VILLAGE COMMUNITY LTD,CARE ESTABLISHMENT,OP - Fenland Locality - Cost of Care,Older People - Fenland - Care,Nursing Care
Cambridgeshire County Council,19-Feb-21,51301526148,-910.00,ASKHAM VILLAGE COMMUNITY LTD,CARE ESTABLISHMENT,OP - Fenland Locality - Cost of Care,Older People - Fenland - Care,Nursing Care
Cambridgeshire County Council,19-Feb-21,51301526148,-910.00,ASKHAM VILLAGE COMMUNITY LTD,CARE ESTABLISHMENT,OP - Fenland Locality - Cost of Care,Older People - Fenland - Care,Nursing Care
Cambridgeshire County Council,19-Feb-21,51301526148,-910.00,ASKHAM VILLAGE COMMUNITY LTD,CARE ESTABLISHMENT,OP - Fenland Locality - Cost of Care,Older People - Fenland - Care,Nursing Care
Cambridgeshire County Council,19-Feb-21,51301523450,-904.34,WOODLANDS CARE CENTRE,CARE ESTABLISHMENT,OP - City & South Locality - Cost of Care,Older People - City & South - Care,Nursing Care
Cambridgeshire County Council,12-Feb-21,51301517968,-900.00,WOODLANDS CARE CENTRE,CARE ESTABLISHMENT,OPMH - City & South,Older People Mental Health City & South,Residential Care
Cambridgeshire County Council,12-Feb-21,51301517968,-900.00,WOODLANDS CARE CENTRE,CARE ESTABLISHMENT,OPMH - City & South,Older People Mental Health City & South,Residential Care
Cambridgeshire County Council,12-Feb-21,51301517968,-900.00,WOODLANDS CARE CENTRE,CARE ESTABLISHMENT,OPMH - City & South,Older People Mental Health City & South,Residential Care
Cambridgeshire County Council,19-Feb-21,51301526285,-900.00,KINGFISHER HOUSE,CARE ESTABLISHMENT,OP - East Cambs Locality - Cost of Care,East Cambs - O P Team - Care,Nursing Care
Cambridgeshire County Council,19-Feb-21,51301526285,-900.00,KINGFISHER HOUSE,CARE ESTABLISHMENT,OP - East Cambs Locality - Cost of Care,East Cambs - O P Team - Care,Nursing Care
Cambridgeshire County Council,19-Feb-21,51301526285,-900.00,KINGFISHER HOUSE,CARE ESTABLISHMENT,OP - East Cambs Locality - Cost of Care,East Cambs - O P Team - Care,Nursing Care
Cambridgeshire County Council,19-Feb-21,51301526285,-900.00,KINGFISHER HOUSE,CARE ESTABLISHMENT,OP - East Cambs Locality - Cost of Care,East Cambs - O P Team - Care,Nursing Care
Cambridgeshire County Council,19-Feb-21,51301526285,-900.00,KINGFISHER HOUSE,CARE ESTABLISHMENT,OP - East Cambs Locality - Cost of Care,East Cambs - O P Team - Care,Nursing Care
Cambridgeshire County Council,19-Feb-21,51301526285,-900.00,KINGFISHER HOUSE,CARE ESTABLISHMENT,OP - East Cambs Locality - Cost of Care,East Cambs - O P Team - Care,Nursing Care
Cambridgeshire County Council,19-Feb-21,51301526285,-900.00,KINGFISHER HOUSE,CARE ESTABLISHMENT,OP - East Cambs Locality - Cost of Care,East Cambs - O P Team - Care,Nursing Care
Cambridgeshire County Council,19-Feb-21,51301524285,-900.00,ALIWAL HEALTHCARE LTD,CARE ESTABLISHMENT,OPMH - Hunts & Fens,Older People Mental Health Fenland,Residential Care
Cambridgeshire County Council,19-Feb-21,51301524285,-900.00,ALIWAL HEALTHCARE LTD,CARE ESTABLISHMENT,OPMH - Hunts & Fens,Older People Mental Health Fenland,Residential Care
Cambridgeshire County Council,19-Feb-21,51301524285,-900.00,ALIWAL HEALTHCARE LTD,CARE ESTABLISHMENT,OPMH - Hunts & Fens,Older People Mental Health Fenland,Residential Care
Cambridgeshire County Council,19-Feb-21,51301524285,-900.00,ALIWAL HEALTHCARE LTD,CARE ESTABLISHMENT,OPMH - Hunts & Fens,Older People Mental Health Fenland,Residential Care
Cambridgeshire County Council,19-Feb-21,51301524285,-900.00,ALIWAL HEALTHCARE LTD,CARE ESTABLISHMENT,OPMH - Hunts & Fens,Older People Mental Health Fenland,Residential Care
Cambridgeshire County Council,19-Feb-21,51301524285,-900.00,ALIWAL HEALTHCARE LTD,CARE ESTABLISHMENT,OPMH - Hunts & Fens,Older People Mental Health Fenland,Residential Care
Cambridgeshire County Council,19-Feb-21,51301524285,-900.00,ALIWAL HEALTHCARE LTD,CARE ESTABLISHMENT,OPMH - Hunts & Fens,Older People Mental Health Fenland,Residential Care
Cambridgeshire County Council,19-Feb-21,51301524285,-900.00,ALIWAL HEALTHCARE LTD,CARE ESTABLISHMENT,OPMH - Hunts & Fens,Older People Mental Health Fenland,Residential Care
Cambridgeshire County Council,19-Feb-21,51301524285,-900.00,ALIWAL HEALTHCARE LTD,CARE ESTABLISHMENT,OPMH - Hunts & Fens,Older People Mental Health Fenland,Residential Care
Cambridgeshire County Council,19-Feb-21,51301524285,-900.00,ALIWAL HEALTHCARE LTD,CARE ESTABLISHMENT,OPMH - Hunts & Fens,Older People Mental Health Fenland,Residential Care
Cambridgeshire County Council,19-Feb-21,51301524285,-900.00,ALIWAL HEALTHCARE LTD,CARE ESTABLISHMENT,OPMH - Hunts & Fens,Older People Mental Health Fenland,Residential Care
Cambridgeshire County Council,19-Feb-21,51301524285,-900.00,ALIWAL HEALTHCARE LTD,CARE ESTABLISHMENT,OPMH - Hunts & Fens,Older People Mental Health Fenland,Residential Care
Cambridgeshire County Council,19-Feb-21,51301524285,-900.00,ALIWAL HEALTHCARE LTD,CARE ESTABLISHMENT,OPMH - Hunts & Fens,Older People Mental Health Fenland,Residential Care
Cambridgeshire County Council,19-Feb-21,51301524285,-900.00,ALIWAL HEALTHCARE LTD,CARE ESTABLISHMENT,OPMH - Hunts & Fens,Older People Mental Health Fenland,Residential Care
Cambridgeshire County Council,19-Feb-21,51301524285,-900.00,ALIWAL HEALTHCARE LTD,CARE ESTABLISHMENT,OPMH - Hunts & Fens,Older People Mental Health Fenland,Residential Care
Cambridgeshire County Council,19-Feb-21,51301524285,-900.00,ALIWAL HEALTHCARE LTD,CARE ESTABLISHMENT,OPMH - Hunts & Fens,Older People Mental Health Fenland,Residential Care
Cambridgeshire County Council,19-Feb-21,51301524285,-900.00,ALIWAL HEALTHCARE LTD,CARE ESTABLISHMENT,OPMH - Hunts & Fens,Older People Mental Health Fenland,Residential Care
Cambridgeshire County Council,19-Feb-21,51301524285,-900.00,ALIWAL HEALTHCARE LTD,CARE ESTABLISHMENT,OPMH - Hunts & Fens,Older People Mental Health Fenland,Residential Care
Cambridgeshire County Council,19-Feb-21,51301524166,-893.00,CAMBRIDGE MANOR CARE HOME (TLC),CARE ESTABLISHMENT,OPMH - City & South,Older People Mental Health E Cambs,Nursing Care
Cambridgeshire County Council,19-Feb-21,51301524166,-893.00,CAMBRIDGE MANOR CARE HOME (TLC),CARE ESTABLISHMENT,OPMH - City & South,Older People Mental Health E Cambs,Nursing Care
Cambridgeshire County Council,19-Feb-21,51301524166,-893.00,CAMBRIDGE MANOR CARE HOME (TLC),CARE ESTABLISHMENT,OPMH - City & South,Older People Mental Health E Cambs,Nursing Care
Cambridgeshire County Council,19-Feb-21,51301524166,-893.00,CAMBRIDGE MANOR CARE HOME (TLC),CARE ESTABLISHMENT,OPMH - City & South,Older People Mental Health E Cambs,Nursing Care
Cambridgeshire County Council,19-Feb-21,51301524166,-893.00,CAMBRIDGE MANOR CARE HOME (TLC),CARE ESTABLISHMENT,OPMH - City & South,Older People Mental Health E Cambs,Nursing Care
Cambridgeshire County Council,19-Feb-21,51301524166,-893.00,CAMBRIDGE MANOR CARE HOME (TLC),CARE ESTABLISHMENT,OPMH - City & South,Older People Mental Health E Cambs,Nursing Care
Cambridgeshire County Council,19-Feb-21,51301524166,-893.00,CAMBRIDGE MANOR CARE HOME (TLC),CARE ESTABLISHMENT,OPMH - City & South,Older People Mental Health E Cambs,Nursing Care
Cambridgeshire County Council,19-Feb-21,51301524166,-893.00,CAMBRIDGE MANOR CARE HOME (TLC),CARE ESTABLISHMENT,OPMH - City & South,Older People Mental Health E Cambs,Nursing Care
Cambridgeshire County Council,19-Feb-21,51301524166,-893.00,CAMBRIDGE MANOR CARE HOME (TLC),CARE ESTABLISHMENT,OPMH - City & South,Older People Mental Health E Cambs,Nursing Care
Cambridgeshire County Council,19-Feb-21,51301524166,-893.00,CAMBRIDGE MANOR CARE HOME (TLC),CARE ESTABLISHMENT,OPMH - City & South,Older People Mental Health E Cambs,Nursing Care
Cambridgeshire County Council,19-Feb-21,51301524166,-893.00,CAMBRIDGE MANOR CARE HOME (TLC),CARE ESTABLISHMENT,OPMH - City & South,Older People Mental Health E Cambs,Nursing Care
Cambridgeshire County Council,19-Feb-21,51301524166,-893.00,CAMBRIDGE MANOR CARE HOME (TLC),CARE ESTABLISHMENT,OPMH - City & South,Older People Mental Health E Cambs,Nursing Care
Cambridgeshire County Council,19-Feb-21,51301524166,-893.00,CAMBRIDGE MANOR CARE HOME (TLC),CARE ESTABLISHMENT,OPMH - City & South,Older People Mental Health E Cambs,Nursing Care
Cambridgeshire County Council,19-Feb-21,51301524166,-893.00,CAMBRIDGE MANOR CARE HOME (TLC),CARE ESTABLISHMENT,OPMH - City & South,Older People Mental Health E Cambs,Nursing Care
Cambridgeshire County Council,19-Feb-21,51301524166,-893.00,CAMBRIDGE MANOR CARE HOME (TLC),CARE ESTABLISHMENT,OPMH - City & South,Older People Mental Health E Cambs,Nursing Care
Cambridgeshire County Council,19-Feb-21,51301524166,-893.00,CAMBRIDGE MANOR CARE HOME (TLC),CARE ESTABLISHMENT,OPMH - City & South,Older People Mental Health E Cambs,Nursing Care
Cambridgeshire County Council,19-Feb-21,51301524166,-893.00,CAMBRIDGE MANOR CARE HOME (TLC),CARE ESTABLISHMENT,OPMH - City & South,Older People Mental Health E Cambs,Nursing Care
Cambridgeshire County Council,19-Feb-21,51301524166,-893.00,CAMBRIDGE MANOR CARE HOME (TLC),CARE ESTABLISHMENT,OPMH - City & South,Older People Mental Health E Cambs,Nursing Care
Cambridgeshire County Council,19-Feb-21,51301524166,-893.00,CAMBRIDGE MANOR CARE HOME (TLC),CARE ESTABLISHMENT,OPMH - City & South,Older People Mental Health E Cambs,Nursing Care
Cambridgeshire County Council,19-Feb-21,51301524166,-893.00,CAMBRIDGE MANOR CARE HOME (TLC),CARE ESTABLISHMENT,OPMH - City & South,Older People Mental Health E Cambs,Nursing Care
Cambridgeshire County Council,19-Feb-21,51301524166,-893.00,CAMBRIDGE MANOR CARE HOME (TLC),CARE ESTABLISHMENT,OPMH - City & South,Older People Mental Health E Cambs,Nursing Care
Cambridgeshire County Council,19-Feb-21,51301524166,-893.00,CAMBRIDGE MANOR CARE HOME (TLC),CARE ESTABLISHMENT,OPMH - City & South,Older People Mental Health E Cambs,Nursing Care
Cambridgeshire County Council,19-Feb-21,51301524166,-893.00,CAMBRIDGE MANOR CARE HOME (TLC),CARE ESTABLISHMENT,OPMH - City & South,Older People Mental Health E Cambs,Nursing Care
Cambridgeshire County Council,19-Feb-21,51301524166,-893.00,CAMBRIDGE MANOR CARE HOME (TLC),CARE ESTABLISHMENT,OPMH - City & South,Older People Mental Health E Cambs,Nursing Care
Cambridgeshire County Council,19-Feb-21,51301524166,-893.00,CAMBRIDGE MANOR CARE HOME (TLC),CARE ESTABLISHMENT,OPMH - City & South,Older People Mental Health E Cambs,Nursing Care
Cambridgeshire County Council,19-Feb-21,51301524166,-893.00,CAMBRIDGE MANOR CARE HOME (TLC),CARE ESTABLISHMENT,OPMH - City & South,Older People Mental Health E Cambs,Nursing Care
Cambridgeshire County Council,19-Feb-21,51301524166,-893.00,CAMBRIDGE MANOR CARE HOME (TLC),CARE ESTABLISHMENT,OPMH - City & South,Older People Mental Health E Cambs,Nursing Care
Cambridgeshire County Council,19-Feb-21,51301524166,-893.00,CAMBRIDGE MANOR CARE HOME (TLC),CARE ESTABLISHMENT,OPMH - City & South,Older People Mental Health E Cambs,Nursing Care
Cambridgeshire County Council,19-Feb-21,51301524166,-893.00,CAMBRIDGE MANOR CARE HOME (TLC),CARE ESTABLISHMENT,OPMH - City & South,Older People Mental Health E Cambs,Nursing Care
Cambridgeshire County Council,19-Feb-21,51301524166,-893.00,CAMBRIDGE MANOR CARE HOME (TLC),CARE ESTABLISHMENT,OPMH - City & South,Older People Mental Health E Cambs,Nursing Care
Cambridgeshire County Council,19-Feb-21,51301524166,-893.00,CAMBRIDGE MANOR CARE HOME (TLC),CARE ESTABLISHMENT,OPMH - City & South,Older People Mental Health E Cambs,Nursing Care
Cambridgeshire County Council,19-Feb-21,51301524166,-893.00,CAMBRIDGE MANOR CARE HOME (TLC),CARE ESTABLISHMENT,OPMH - City & South,Older People Mental Health E Cambs,Nursing Care
Cambridgeshire County Council,19-Feb-21,51301524166,-893.00,CAMBRIDGE MANOR CARE HOME (TLC),CARE ESTABLISHMENT,OPMH - City & South,Older People Mental Health E Cambs,Nursing Care
Cambridgeshire County Council,19-Feb-21,51301524166,-893.00,CAMBRIDGE MANOR CARE HOME (TLC),CARE ESTABLISHMENT,OPMH - City & South,Older People Mental Health E Cambs,Nursing Care
Cambridgeshire County Council,19-Feb-21,51301524166,-893.00,CAMBRIDGE MANOR CARE HOME (TLC),CARE ESTABLISHMENT,OPMH - City & South,Older People Mental Health E Cambs,Nursing Care
Cambridgeshire County Council,19-Feb-21,51301524166,-893.00,CAMBRIDGE MANOR CARE HOME (TLC),CARE ESTABLISHMENT,OPMH - City & South,Older People Mental Health E Cambs,Nursing Care
Cambridgeshire County Council,19-Feb-21,51301524166,-893.00,CAMBRIDGE MANOR CARE HOME (TLC),CARE ESTABLISHMENT,OPMH - City & South,Older People Mental Health E Cambs,Nursing Care
Cambridgeshire County Council,19-Feb-21,51301524166,-893.00,CAMBRIDGE MANOR CARE HOME (TLC),CARE ESTABLISHMENT,OPMH - City & South,Older People Mental Health E Cambs,Nursing Care
Cambridgeshire County Council,19-Feb-21,51301524166,-893.00,CAMBRIDGE MANOR CARE HOME (TLC),CARE ESTABLISHMENT,OPMH - City & South,Older People Mental Health E Cambs,Nursing Care
Cambridgeshire County Council,19-Feb-21,51301524166,-893.00,CAMBRIDGE MANOR CARE HOME (TLC),CARE ESTABLISHMENT,OPMH - City & South,Older People Mental Health E Cambs,Nursing Care
Cambridgeshire County Council,19-Feb-21,51301524166,-893.00,CAMBRIDGE MANOR CARE HOME (TLC),CARE ESTABLISHMENT,OPMH - City & South,Older People Mental Health E Cambs,Nursing Care
Cambridgeshire County Council,19-Feb-21,51301524166,-893.00,CAMBRIDGE MANOR CARE HOME (TLC),CARE ESTABLISHMENT,OPMH - City & South,Older People Mental Health E Cambs,Nursing Care
Cambridgeshire County Council,19-Feb-21,51301524166,-893.00,CAMBRIDGE MANOR CARE HOME (TLC),CARE ESTABLISHMENT,OPMH - City & South,Older People Mental Health E Cambs,Nursing Care
Cambridgeshire County Council,19-Feb-21,51301522048,-892.86,BARCHESTER HEALTHCARE HOMES LTD,CARE ESTABLISHMENT,Physical Disablity - Cost of Care,Countywide PD Service - Care,Rehabilitation And Respite Care
Cambridgeshire County Council,05-Feb-21,51301515269,-875.78,Accomplish Group Support Limited,CARE ESTABLISHMENT,AMH - Hunts & Fens,Hunts Mental Health Team,Residential Care
Cambridgeshire County Council,05-Feb-21,51301515269,-875.78,Accomplish Group Support Limited,CARE ESTABLISHMENT,AMH - Hunts & Fens,Hunts Mental Health Team,Residential Care
Cambridgeshire County Council,05-Feb-21,51301515269,-875.78,Accomplish Group Support Limited,CARE ESTABLISHMENT,AMH - Hunts & Fens,Hunts Mental Health Team,Residential Care
Cambridgeshire County Council,05-Feb-21,51301515269,-875.78,Accomplish Group Support Limited,CARE ESTABLISHMENT,AMH - Hunts & Fens,Hunts Mental Health Team,Residential Care
Cambridgeshire County Council,05-Feb-21,51301515269,-875.78,Accomplish Group Support Limited,CARE ESTABLISHMENT,AMH - Hunts & Fens,Hunts Mental Health Team,Residential Care
Cambridgeshire County Council,05-Feb-21,51301515269,-875.78,Accomplish Group Support Limited,CARE ESTABLISHMENT,AMH - Hunts & Fens,Hunts Mental Health Team,Residential Care
Cambridgeshire County Council,05-Feb-21,51301515269,-875.78,Accomplish Group Support Limited,CARE ESTABLISHMENT,AMH - Hunts & Fens,Hunts Mental Health Team,Residential Care
Cambridgeshire County Council,05-Feb-21,51301515269,-875.78,Accomplish Group Support Limited,CARE ESTABLISHMENT,AMH - Hunts & Fens,Hunts Mental Health Team,Residential Care
Cambridgeshire County Council,05-Feb-21,51301515269,-875.78,Accomplish Group Support Limited,CARE ESTABLISHMENT,AMH - Hunts & Fens,Hunts Mental Health Team,Residential Care
Cambridgeshire County Council,05-Feb-21,51301515269,-875.78,Accomplish Group Support Limited,CARE ESTABLISHMENT,AMH - Hunts & Fens,Hunts Mental Health Team,Residential Care
Cambridgeshire County Council,05-Feb-21,51301515269,-875.78,Accomplish Group Support Limited,CARE ESTABLISHMENT,AMH - Hunts & Fens,Hunts Mental Health Team,Residential Care
Cambridgeshire County Council,05-Feb-21,51301515269,-875.78,Accomplish Group Support Limited,CARE ESTABLISHMENT,AMH - Hunts & Fens,Hunts Mental Health Team,Residential Care
Cambridgeshire County Council,05-Feb-21,51301515269,-875.78,Accomplish Group Support Limited,CARE ESTABLISHMENT,AMH - Hunts & Fens,Hunts Mental Health Team,Residential Care
Cambridgeshire County Council,05-Feb-21,51301515269,-875.78,Accomplish Group Support Limited,CARE ESTABLISHMENT,AMH - Hunts & Fens,Hunts Mental Health Team,Residential Care
Cambridgeshire County Council,05-Feb-21,51301515269,-875.78,Accomplish Group Support Limited,CARE ESTABLISHMENT,AMH - Hunts & Fens,Hunts Mental Health Team,Residential Care
Cambridgeshire County Council,05-Feb-21,51301515269,-875.78,Accomplish Group Support Limited,CARE ESTABLISHMENT,AMH - Hunts & Fens,Hunts Mental Health Team,Residential Care
Cambridgeshire County Council,05-Feb-21,51301515269,-875.78,Accomplish Group Support Limited,CARE ESTABLISHMENT,AMH - Hunts & Fens,Hunts Mental Health Team,Residential Care
Cambridgeshire County Council,05-Feb-21,51301515269,-875.78,Accomplish Group Support Limited,CARE ESTABLISHMENT,AMH - Hunts & Fens,Hunts Mental Health Team,Residential Care
Cambridgeshire County Council,05-Feb-21,51301515269,-875.78,Accomplish Group Support Limited,CARE ESTABLISHMENT,AMH - Hunts & Fens,Hunts Mental Health Team,Residential Care
Cambridgeshire County Council,05-Feb-21,51301515269,-875.78,Accomplish Group Support Limited,CARE ESTABLISHMENT,AMH - Hunts & Fens,Hunts Mental Health Team,Residential Care
Cambridgeshire County Council,05-Feb-21,51301515269,-875.78,Accomplish Group Support Limited,CARE ESTABLISHMENT,AMH - Hunts & Fens,Hunts Mental Health Team,Residential Care
Cambridgeshire County Council,05-Feb-21,51301515269,-875.78,Accomplish Group Support Limited,CARE ESTABLISHMENT,AMH - Hunts & Fens,Hunts Mental Health Team,Residential Care
Cambridgeshire County Council,05-Feb-21,51301515269,-875.78,Accomplish Group Support Limited,CARE ESTABLISHMENT,AMH - Hunts & Fens,Hunts Mental Health Team,Residential Care
Cambridgeshire County Council,05-Feb-21,51301515269,-875.78,Accomplish Group Support Limited,CARE ESTABLISHMENT,AMH - Hunts & Fens,Hunts Mental Health Team,Residential Care
Cambridgeshire County Council,05-Feb-21,51301515269,-875.78,Accomplish Group Support Limited,CARE ESTABLISHMENT,AMH - Hunts & Fens,Hunts Mental Health Team,Residential Care
Cambridgeshire County Council,05-Feb-21,51301515269,-875.78,Accomplish Group Support Limited,CARE ESTABLISHMENT,AMH - Hunts & Fens,Hunts Mental Health Team,Residential Care
Cambridgeshire County Council,05-Feb-21,51301515269,-875.78,Accomplish Group Support Limited,CARE ESTABLISHMENT,AMH - Hunts & Fens,Hunts Mental Health Team,Residential Care
Cambridgeshire County Council,05-Feb-21,51301515269,-875.78,Accomplish Group Support Limited,CARE ESTABLISHMENT,AMH - Hunts & Fens,Hunts Mental Health Team,Residential Care
Cambridgeshire County Council,05-Feb-21,51301515269,-875.78,Accomplish Group Support Limited,CARE ESTABLISHMENT,AMH - Hunts & Fens,Hunts Mental Health Team,Residential Care
Cambridgeshire County Council,05-Feb-21,51301515269,-875.78,Accomplish Group Support Limited,CARE ESTABLISHMENT,AMH - Hunts & Fens,Hunts Mental Health Team,Residential Care
Cambridgeshire County Council,05-Feb-21,51301515269,-875.78,Accomplish Group Support Limited,CARE ESTABLISHMENT,AMH - Hunts & Fens,Hunts Mental Health Team,Residential Care
Cambridgeshire County Council,05-Feb-21,51301515269,-875.78,Accomplish Group Support Limited,CARE ESTABLISHMENT,AMH - Hunts & Fens,Hunts Mental Health Team,Residential Care
Cambridgeshire County Council,05-Feb-21,51301515269,-875.78,Accomplish Group Support Limited,CARE ESTABLISHMENT,AMH - Hunts & Fens,Hunts Mental Health Team,Residential Care
Cambridgeshire County Council,05-Feb-21,51301515269,-875.78,Accomplish Group Support Limited,CARE ESTABLISHMENT,AMH - Hunts & Fens,Hunts Mental Health Team,Residential Care
Cambridgeshire County Council,05-Feb-21,51301515269,-875.78,Accomplish Group Support Limited,CARE ESTABLISHMENT,AMH - Hunts & Fens,Hunts Mental Health Team,Residential Care
Cambridgeshire County Council,05-Feb-21,51301515269,-875.78,Accomplish Group Support Limited,CARE ESTABLISHMENT,AMH - Hunts & Fens,Hunts Mental Health Team,Residential Care
Cambridgeshire County Council,05-Feb-21,51301515269,-875.78,Accomplish Group Support Limited,CARE ESTABLISHMENT,AMH - Hunts & Fens,Hunts Mental Health Team,Residential Care
Cambridgeshire County Council,05-Feb-21,51301515269,-875.78,Accomplish Group Support Limited,CARE ESTABLISHMENT,AMH - Hunts & Fens,Hunts Mental Health Team,Residential Care
Cambridgeshire County Council,05-Feb-21,51301515269,-875.78,Accomplish Group Support Limited,CARE ESTABLISHMENT,AMH - Hunts & Fens,Hunts Mental Health Team,Residential Care
Cambridgeshire County Council,05-Feb-21,51301515269,-875.78,Accomplish Group Support Limited,CARE ESTABLISHMENT,AMH - Hunts & Fens,Hunts Mental Health Team,Residential Care
Cambridgeshire County Council,05-Feb-21,51301515269,-875.78,Accomplish Group Support Limited,CARE ESTABLISHMENT,AMH - Hunts & Fens,Hunts Mental Health Team,Residential Care
Cambridgeshire County Council,05-Feb-21,51301515269,-875.78,Accomplish Group Support Limited,CARE ESTABLISHMENT,AMH - Hunts & Fens,Hunts Mental Health Team,Residential Care
Cambridgeshire County Council,05-Feb-21,51301515269,-875.78,Accomplish Group Support Limited,CARE ESTABLISHMENT,AMH - Hunts & Fens,Hunts Mental Health Team,Residential Care
Cambridgeshire County Council,05-Feb-21,51301515269,-875.78,Accomplish Group Support Limited,CARE ESTABLISHMENT,AMH - Hunts & Fens,Hunts Mental Health Team,Residential Care
Cambridgeshire County Council,05-Feb-21,51301515269,-875.78,Accomplish Group Support Limited,CARE ESTABLISHMENT,AMH - Hunts & Fens,Hunts Mental Health Team,Residential Care
Cambridgeshire County Council,05-Feb-21,51301515269,-875.78,Accomplish Group Support Limited,CARE ESTABLISHMENT,AMH - Hunts & Fens,Hunts Mental Health Team,Residential Care
Cambridgeshire County Council,05-Feb-21,51301515269,-875.78,Accomplish Group Support Limited,CARE ESTABLISHMENT,AMH - Hunts & Fens,Hunts Mental Health Team,Residential Care
Cambridgeshire County Council,05-Feb-21,51301515269,-875.78,Accomplish Group Support Limited,CARE ESTABLISHMENT,AMH - Hunts & Fens,Hunts Mental Health Team,Residential Care
Cambridgeshire County Council,05-Feb-21,51301515269,-875.78,Accomplish Group Support Limited,CARE ESTABLISHMENT,AMH - Hunts & Fens,Hunts Mental Health Team,Residential Care
Cambridgeshire County Council,05-Feb-21,51301515269,-875.78,Accomplish Group Support Limited,CARE ESTABLISHMENT,AMH - Hunts & Fens,Hunts Mental Health Team,Residential Care
Cambridgeshire County Council,05-Feb-21,51301515269,-875.78,Accomplish Group Support Limited,CARE ESTABLISHMENT,AMH - Hunts & Fens,Hunts Mental Health Team,Residential Care
Cambridgeshire County Council,05-Feb-21,51301515269,-875.78,Accomplish Group Support Limited,CARE ESTABLISHMENT,AMH - Hunts & Fens,Hunts Mental Health Team,Residential Care
Cambridgeshire County Council,05-Feb-21,51301515269,-875.78,Accomplish Group Support Limited,CARE ESTABLISHMENT,AMH - Hunts & Fens,Hunts Mental Health Team,Residential Care
Cambridgeshire County Council,05-Feb-21,51301515269,-875.78,Accomplish Group Support Limited,CARE ESTABLISHMENT,AMH - Hunts & Fens,Hunts Mental Health Team,Residential Care
Cambridgeshire County Council,05-Feb-21,51301515269,-875.78,Accomplish Group Support Limited,CARE ESTABLISHMENT,AMH - Hunts & Fens,Hunts Mental Health Team,Residential Care
Cambridgeshire County Council,05-Feb-21,51301515269,-875.78,Accomplish Group Support Limited,CARE ESTABLISHMENT,AMH - Hunts & Fens,Hunts Mental Health Team,Residential Care
Cambridgeshire County Council,05-Feb-21,51301515269,-875.78,Accomplish Group Support Limited,CARE ESTABLISHMENT,AMH - Hunts & Fens,Hunts Mental Health Team,Residential Care
Cambridgeshire County Council,05-Feb-21,51301515269,-875.78,Accomplish Group Support Limited,CARE ESTABLISHMENT,AMH - Hunts & Fens,Hunts Mental Health Team,Residential Care
Cambridgeshire County Council,05-Feb-21,51301515269,-875.78,Accomplish Group Support Limited,CARE ESTABLISHMENT,AMH - Hunts & Fens,Hunts Mental Health Team,Residential Care
Cambridgeshire County Council,05-Feb-21,51301515269,-875.78,Accomplish Group Support Limited,CARE ESTABLISHMENT,AMH - Hunts & Fens,Hunts Mental Health Team,Residential Care
Cambridgeshire County Council,05-Feb-21,51301515269,-875.78,Accomplish Group Support Limited,CARE ESTABLISHMENT,AMH - Hunts & Fens,Hunts Mental Health Team,Residential Care
Cambridgeshire County Council,05-Feb-21,51301515269,-875.78,Accomplish Group Support Limited,CARE ESTABLISHMENT,AMH - Hunts & Fens,Hunts Mental Health Team,Residential Care
Cambridgeshire County Council,05-Feb-21,51301515269,-875.78,Accomplish Group Support Limited,CARE ESTABLISHMENT,AMH - Hunts & Fens,Hunts Mental Health Team,Residential Care
Cambridgeshire County Council,05-Feb-21,51301515269,-875.78,Accomplish Group Support Limited,CARE ESTABLISHMENT,AMH - Hunts & Fens,Hunts Mental Health Team,Residential Care
Cambridgeshire County Council,05-Feb-21,51301515269,-875.78,Accomplish Group Support Limited,CARE ESTABLISHMENT,AMH - Hunts & Fens,Hunts Mental Health Team,Residential Care
Cambridgeshire County Council,05-Feb-21,51301515269,-875.78,Accomplish Group Support Limited,CARE ESTABLISHMENT,AMH - Hunts & Fens,Hunts Mental Health Team,Residential Care
Cambridgeshire County Council,05-Feb-21,51301515269,-875.78,Accomplish Group Support Limited,CARE ESTABLISHMENT,AMH - Hunts & Fens,Hunts Mental Health Team,Residential Care
Cambridgeshire County Council,05-Feb-21,51301515269,-875.78,Accomplish Group Support Limited,CARE ESTABLISHMENT,AMH - Hunts & Fens,Hunts Mental Health Team,Residential Care
Cambridgeshire County Council,05-Feb-21,51301515269,-875.78,Accomplish Group Support Limited,CARE ESTABLISHMENT,AMH - Hunts & Fens,Hunts Mental Health Team,Residential Care
Cambridgeshire County Council,05-Feb-21,51301515269,-875.78,Accomplish Group Support Limited,CARE ESTABLISHMENT,AMH - Hunts & Fens,Hunts Mental Health Team,Residential Care
Cambridgeshire County Council,05-Feb-21,51301515269,-875.78,Accomplish Group Support Limited,CARE ESTABLISHMENT,AMH - Hunts & Fens,Hunts Mental Health Team,Residential Care
Cambridgeshire County Council,05-Feb-21,51301515269,-875.78,Accomplish Group Support Limited,CARE ESTABLISHMENT,AMH - Hunts & Fens,Hunts Mental Health Team,Residential Care
Cambridgeshire County Council,05-Feb-21,51301515269,-875.78,Accomplish Group Support Limited,CARE ESTABLISHMENT,AMH - Hunts & Fens,Hunts Mental Health Team,Residential Care
Cambridgeshire County Council,05-Feb-21,51301515269,-875.78,Accomplish Group Support Limited,CARE ESTABLISHMENT,AMH - Hunts & Fens,Hunts Mental Health Team,Residential Care
Cambridgeshire County Council,05-Feb-21,51301515269,-875.78,Accomplish Group Support Limited,CARE ESTABLISHMENT,AMH - Hunts & Fens,Hunts Mental Health Team,Residential Care
Cambridgeshire County Council,05-Feb-21,51301515269,-875.78,Accomplish Group Support Limited,CARE ESTABLISHMENT,AMH - Hunts & Fens,Hunts Mental Health Team,Residential Care
Cambridgeshire County Council,05-Feb-21,51301515269,-875.78,Accomplish Group Support Limited,CARE ESTABLISHMENT,AMH - Hunts & Fens,Hunts Mental Health Team,Residential Care
Cambridgeshire County Council,05-Feb-21,51301515269,-875.78,Accomplish Group Support Limited,CARE ESTABLISHMENT,AMH - Hunts & Fens,Hunts Mental Health Team,Residential Care
Cambridgeshire County Council,05-Feb-21,51301515269,-875.78,Accomplish Group Support Limited,CARE ESTABLISHMENT,AMH - Hunts & Fens,Hunts Mental Health Team,Residential Care
Cambridgeshire County Council,05-Feb-21,51301515269,-875.78,Accomplish Group Support Limited,CARE ESTABLISHMENT,AMH - Hunts & Fens,Hunts Mental Health Team,Residential Care
Cambridgeshire County Council,05-Feb-21,51301515269,-875.78,Accomplish Group Support Limited,CARE ESTABLISHMENT,AMH - Hunts & Fens,Hunts Mental Health Team,Residential Care
Cambridgeshire County Council,05-Feb-21,51301515269,-875.78,Accomplish Group Support Limited,CARE ESTABLISHMENT,AMH - Hunts & Fens,Hunts Mental Health Team,Residential Care
Cambridgeshire County Council,05-Feb-21,51301515269,-875.78,Accomplish Group Support Limited,CARE ESTABLISHMENT,AMH - Hunts & Fens,Hunts Mental Health Team,Residential Care
Cambridgeshire County Council,05-Feb-21,51301515269,-875.78,Accomplish Group Support Limited,CARE ESTABLISHMENT,AMH - Hunts & Fens,Hunts Mental Health Team,Residential Care
Cambridgeshire County Council,05-Feb-21,51301515269,-875.78,Accomplish Group Support Limited,CARE ESTABLISHMENT,AMH - Hunts & Fens,Hunts Mental Health Team,Residential Care
Cambridgeshire County Council,05-Feb-21,51301515269,-875.78,Accomplish Group Support Limited,CARE ESTABLISHMENT,AMH - Hunts & Fens,Hunts Mental Health Team,Residential Care
Cambridgeshire County Council,05-Feb-21,51301515269,-875.78,Accomplish Group Support Limited,CARE ESTABLISHMENT,AMH - Hunts & Fens,Hunts Mental Health Team,Residential Care
Cambridgeshire County Council,05-Feb-21,51301515269,-875.78,Accomplish Group Support Limited,CARE ESTABLISHMENT,AMH - Hunts & Fens,Hunts Mental Health Team,Residential Care
Cambridgeshire County Council,05-Feb-21,51301515269,-875.78,Accomplish Group Support Limited,CARE ESTABLISHMENT,AMH - Hunts & Fens,Hunts Mental Health Team,Residential Care
Cambridgeshire County Council,05-Feb-21,51301515269,-875.78,Accomplish Group Support Limited,CARE ESTABLISHMENT,AMH - Hunts & Fens,Hunts Mental Health Team,Residential Care
Cambridgeshire County Council,05-Feb-21,51301515269,-875.78,Accomplish Group Support Limited,CARE ESTABLISHMENT,AMH - Hunts & Fens,Hunts Mental Health Team,Residential Care
Cambridgeshire County Council,05-Feb-21,51301515269,-875.78,Accomplish Group Support Limited,CARE ESTABLISHMENT,AMH - Hunts & Fens,Hunts Mental Health Team,Residential Care
Cambridgeshire County Council,05-Feb-21,51301515269,-875.78,Accomplish Group Support Limited,CARE ESTABLISHMENT,AMH - Hunts & Fens,Hunts Mental Health Team,Residential Care
Cambridgeshire County Council,05-Feb-21,51301515269,-875.78,Accomplish Group Support Limited,CARE ESTABLISHMENT,AMH - Hunts & Fens,Hunts Mental Health Team,Residential Care
Cambridgeshire County Council,05-Feb-21,51301515269,-875.78,Accomplish Group Support Limited,CARE ESTABLISHMENT,AMH - Hunts & Fens,Hunts Mental Health Team,Residential Care
Cambridgeshire County Council,05-Feb-21,51301515269,-875.78,Accomplish Group Support Limited,CARE ESTABLISHMENT,AMH - Hunts & Fens,Hunts Mental Health Team,Residential Care
Cambridgeshire County Council,05-Feb-21,51301515269,-875.78,Accomplish Group Support Limited,CARE ESTABLISHMENT,AMH - Hunts & Fens,Hunts Mental Health Team,Residential Care
Cambridgeshire County Council,05-Feb-21,51301515269,-875.78,Accomplish Group Support Limited,CARE ESTABLISHMENT,AMH - Hunts & Fens,Hunts Mental Health Team,Residential Care
Cambridgeshire County Council,05-Feb-21,51301515269,-875.78,Accomplish Group Support Limited,CARE ESTABLISHMENT,AMH - Hunts & Fens,Hunts Mental Health Team,Residential Care
Cambridgeshire County Council,19-Feb-21,51301526394,-868.78,Redacted Personal Data ,INDIVIDUAL,LD - Fenland Locality - Cost of Care,LD - Fenland  - Care,Direct Payments
Cambridgeshire County Council,19-Feb-21,51301526394,-868.78,Redacted Personal Data ,INDIVIDUAL,LD - Fenland Locality - Cost of Care,LD - Fenland  - Care,Direct Payments
Cambridgeshire County Council,19-Feb-21,51301526394,-868.78,Redacted Personal Data ,INDIVIDUAL,LD - Fenland Locality - Cost of Care,LD - Fenland  - Care,Direct Payments
Cambridgeshire County Council,19-Feb-21,51301526394,-868.78,Redacted Personal Data ,INDIVIDUAL,LD - Fenland Locality - Cost of Care,LD - Fenland  - Care,Direct Payments
Cambridgeshire County Council,19-Feb-21,51301526394,-868.78,Redacted Personal Data ,INDIVIDUAL,LD - Fenland Locality - Cost of Care,LD - Fenland  - Care,Direct Payments
Cambridgeshire County Council,19-Feb-21,51301526394,-868.78,Redacted Personal Data ,INDIVIDUAL,LD - Fenland Locality - Cost of Care,LD - Fenland  - Care,Direct Payments
Cambridgeshire County Council,19-Feb-21,51301526394,-868.78,Redacted Personal Data ,INDIVIDUAL,LD - Fenland Locality - Cost of Care,LD - Fenland  - Care,Direct Payments
Cambridgeshire County Council,19-Feb-21,51301526394,-868.78,Redacted Personal Data ,INDIVIDUAL,LD - Fenland Locality - Cost of Care,LD - Fenland  - Care,Direct Payments
Cambridgeshire County Council,19-Feb-21,51301526394,-868.78,Redacted Personal Data ,INDIVIDUAL,LD - Fenland Locality - Cost of Care,LD - Fenland  - Care,Direct Payments
Cambridgeshire County Council,19-Feb-21,51301526394,-868.78,Redacted Personal Data ,INDIVIDUAL,LD - Fenland Locality - Cost of Care,LD - Fenland  - Care,Direct Payments
Cambridgeshire County Council,05-Feb-21,51301515269,-866.25,Accomplish Group Support Limited,CARE ESTABLISHMENT,AMH - Hunts & Fens,Hunts Mental Health Team,Residential Care
Cambridgeshire County Council,05-Feb-21,51301515269,-866.25,Accomplish Group Support Limited,CARE ESTABLISHMENT,AMH - Hunts & Fens,Hunts Mental Health Team,Residential Care
Cambridgeshire County Council,05-Feb-21,51301515269,-866.25,Accomplish Group Support Limited,CARE ESTABLISHMENT,AMH - Hunts & Fens,Hunts Mental Health Team,Residential Care
Cambridgeshire County Council,05-Feb-21,51301515269,-866.25,Accomplish Group Support Limited,CARE ESTABLISHMENT,AMH - Hunts & Fens,Hunts Mental Health Team,Residential Care
Cambridgeshire County Council,05-Feb-21,51301515269,-866.25,Accomplish Group Support Limited,CARE ESTABLISHMENT,AMH - Hunts & Fens,Hunts Mental Health Team,Residential Care
Cambridgeshire County Council,05-Feb-21,51301515269,-866.25,Accomplish Group Support Limited,CARE ESTABLISHMENT,AMH - Hunts & Fens,Hunts Mental Health Team,Residential Care
Cambridgeshire County Council,05-Feb-21,51301515269,-866.25,Accomplish Group Support Limited,CARE ESTABLISHMENT,AMH - Hunts & Fens,Hunts Mental Health Team,Residential Care
Cambridgeshire County Council,05-Feb-21,51301515269,-866.25,Accomplish Group Support Limited,CARE ESTABLISHMENT,AMH - Hunts & Fens,Hunts Mental Health Team,Residential Care
Cambridgeshire County Council,05-Feb-21,51301515269,-866.25,Accomplish Group Support Limited,CARE ESTABLISHMENT,AMH - Hunts & Fens,Hunts Mental Health Team,Residential Care
Cambridgeshire County Council,05-Feb-21,51301515269,-866.25,Accomplish Group Support Limited,CARE ESTABLISHMENT,AMH - Hunts & Fens,Hunts Mental Health Team,Residential Care
Cambridgeshire County Council,05-Feb-21,51301515269,-866.25,Accomplish Group Support Limited,CARE ESTABLISHMENT,AMH - Hunts & Fens,Hunts Mental Health Team,Residential Care
Cambridgeshire County Council,05-Feb-21,51301515269,-866.25,Accomplish Group Support Limited,CARE ESTABLISHMENT,AMH - Hunts & Fens,Hunts Mental Health Team,Residential Care
Cambridgeshire County Council,05-Feb-21,51301515269,-866.25,Accomplish Group Support Limited,CARE ESTABLISHMENT,AMH - Hunts & Fens,Hunts Mental Health Team,Residential Care
Cambridgeshire County Council,05-Feb-21,51301515269,-866.25,Accomplish Group Support Limited,CARE ESTABLISHMENT,AMH - Hunts & Fens,Hunts Mental Health Team,Residential Care
Cambridgeshire County Council,05-Feb-21,51301515269,-866.25,Accomplish Group Support Limited,CARE ESTABLISHMENT,AMH - Hunts & Fens,Hunts Mental Health Team,Residential Care
Cambridgeshire County Council,05-Feb-21,51301515269,-866.25,Accomplish Group Support Limited,CARE ESTABLISHMENT,AMH - Hunts & Fens,Hunts Mental Health Team,Residential Care
Cambridgeshire County Council,05-Feb-21,51301515269,-866.25,Accomplish Group Support Limited,CARE ESTABLISHMENT,AMH - Hunts & Fens,Hunts Mental Health Team,Residential Care
Cambridgeshire County Council,05-Feb-21,51301515269,-866.25,Accomplish Group Support Limited,CARE ESTABLISHMENT,AMH - Hunts & Fens,Hunts Mental Health Team,Residential Care
Cambridgeshire County Council,05-Feb-21,51301515269,-866.25,Accomplish Group Support Limited,CARE ESTABLISHMENT,AMH - Hunts & Fens,Hunts Mental Health Team,Residential Care
Cambridgeshire County Council,05-Feb-21,51301515269,-866.25,Accomplish Group Support Limited,CARE ESTABLISHMENT,AMH - Hunts & Fens,Hunts Mental Health Team,Residential Care
Cambridgeshire County Council,05-Feb-21,51301515269,-866.25,Accomplish Group Support Limited,CARE ESTABLISHMENT,AMH - Hunts & Fens,Hunts Mental Health Team,Residential Care
Cambridgeshire County Council,05-Feb-21,51301515269,-866.25,Accomplish Group Support Limited,CARE ESTABLISHMENT,AMH - Hunts & Fens,Hunts Mental Health Team,Residential Care
Cambridgeshire County Council,05-Feb-21,51301515269,-866.25,Accomplish Group Support Limited,CARE ESTABLISHMENT,AMH - Hunts & Fens,Hunts Mental Health Team,Residential Care
Cambridgeshire County Council,05-Feb-21,51301515269,-866.25,Accomplish Group Support Limited,CARE ESTABLISHMENT,AMH - Hunts & Fens,Hunts Mental Health Team,Residential Care
Cambridgeshire County Council,05-Feb-21,51301515269,-866.25,Accomplish Group Support Limited,CARE ESTABLISHMENT,AMH - Hunts & Fens,Hunts Mental Health Team,Residential Care
Cambridgeshire County Council,05-Feb-21,51301515269,-866.25,Accomplish Group Support Limited,CARE ESTABLISHMENT,AMH - Hunts & Fens,Hunts Mental Health Team,Residential Care
Cambridgeshire County Council,05-Feb-21,51301515269,-866.25,Accomplish Group Support Limited,CARE ESTABLISHMENT,AMH - Hunts & Fens,Hunts Mental Health Team,Residential Care
Cambridgeshire County Council,05-Feb-21,51301515269,-866.25,Accomplish Group Support Limited,CARE ESTABLISHMENT,AMH - Hunts & Fens,Hunts Mental Health Team,Residential Care
Cambridgeshire County Council,05-Feb-21,51301515269,-866.25,Accomplish Group Support Limited,CARE ESTABLISHMENT,AMH - Hunts & Fens,Hunts Mental Health Team,Residential Care
Cambridgeshire County Council,05-Feb-21,51301515269,-866.25,Accomplish Group Support Limited,CARE ESTABLISHMENT,AMH - Hunts & Fens,Hunts Mental Health Team,Residential Care
Cambridgeshire County Council,05-Feb-21,51301515269,-866.25,Accomplish Group Support Limited,CARE ESTABLISHMENT,AMH - Hunts & Fens,Hunts Mental Health Team,Residential Care
Cambridgeshire County Council,05-Feb-21,51301515269,-866.25,Accomplish Group Support Limited,CARE ESTABLISHMENT,AMH - Hunts & Fens,Hunts Mental Health Team,Residential Care
Cambridgeshire County Council,05-Feb-21,51301515269,-866.25,Accomplish Group Support Limited,CARE ESTABLISHMENT,AMH - Hunts & Fens,Hunts Mental Health Team,Residential Care
Cambridgeshire County Council,05-Feb-21,51301515269,-866.25,Accomplish Group Support Limited,CARE ESTABLISHMENT,AMH - Hunts & Fens,Hunts Mental Health Team,Residential Care
Cambridgeshire County Council,05-Feb-21,51301515269,-866.25,Accomplish Group Support Limited,CARE ESTABLISHMENT,AMH - Hunts & Fens,Hunts Mental Health Team,Residential Care
Cambridgeshire County Council,05-Feb-21,51301515269,-866.25,Accomplish Group Support Limited,CARE ESTABLISHMENT,AMH - Hunts & Fens,Hunts Mental Health Team,Residential Care
Cambridgeshire County Council,05-Feb-21,51301515269,-866.25,Accomplish Group Support Limited,CARE ESTABLISHMENT,AMH - Hunts & Fens,Hunts Mental Health Team,Residential Care
Cambridgeshire County Council,05-Feb-21,51301515269,-866.25,Accomplish Group Support Limited,CARE ESTABLISHMENT,AMH - Hunts & Fens,Hunts Mental Health Team,Residential Care
Cambridgeshire County Council,05-Feb-21,51301515269,-866.25,Accomplish Group Support Limited,CARE ESTABLISHMENT,AMH - Hunts & Fens,Hunts Mental Health Team,Residential Care
Cambridgeshire County Council,05-Feb-21,51301515269,-866.25,Accomplish Group Support Limited,CARE ESTABLISHMENT,AMH - Hunts & Fens,Hunts Mental Health Team,Residential Care
Cambridgeshire County Council,05-Feb-21,51301515269,-866.25,Accomplish Group Support Limited,CARE ESTABLISHMENT,AMH - Hunts & Fens,Hunts Mental Health Team,Residential Care
Cambridgeshire County Council,05-Feb-21,51301515269,-866.25,Accomplish Group Support Limited,CARE ESTABLISHMENT,AMH - Hunts & Fens,Hunts Mental Health Team,Residential Care
Cambridgeshire County Council,05-Feb-21,51301515269,-866.25,Accomplish Group Support Limited,CARE ESTABLISHMENT,AMH - Hunts & Fens,Hunts Mental Health Team,Residential Care
Cambridgeshire County Council,05-Feb-21,51301515269,-866.25,Accomplish Group Support Limited,CARE ESTABLISHMENT,AMH - Hunts & Fens,Hunts Mental Health Team,Residential Care
Cambridgeshire County Council,05-Feb-21,51301515269,-866.25,Accomplish Group Support Limited,CARE ESTABLISHMENT,AMH - Hunts & Fens,Hunts Mental Health Team,Residential Care
Cambridgeshire County Council,05-Feb-21,51301515269,-866.25,Accomplish Group Support Limited,CARE ESTABLISHMENT,AMH - Hunts & Fens,Hunts Mental Health Team,Residential Care
Cambridgeshire County Council,05-Feb-21,51301515269,-866.25,Accomplish Group Support Limited,CARE ESTABLISHMENT,AMH - Hunts & Fens,Hunts Mental Health Team,Residential Care
Cambridgeshire County Council,05-Feb-21,51301515269,-866.25,Accomplish Group Support Limited,CARE ESTABLISHMENT,AMH - Hunts & Fens,Hunts Mental Health Team,Residential Care
Cambridgeshire County Council,05-Feb-21,51301515269,-866.25,Accomplish Group Support Limited,CARE ESTABLISHMENT,AMH - Hunts & Fens,Hunts Mental Health Team,Residential Care
Cambridgeshire County Council,05-Feb-21,51301515269,-866.25,Accomplish Group Support Limited,CARE ESTABLISHMENT,AMH - Hunts & Fens,Hunts Mental Health Team,Residential Care
Cambridgeshire County Council,05-Feb-21,51301515269,-866.25,Accomplish Group Support Limited,CARE ESTABLISHMENT,AMH - Hunts & Fens,Hunts Mental Health Team,Residential Care
Cambridgeshire County Council,05-Feb-21,51301515269,-866.25,Accomplish Group Support Limited,CARE ESTABLISHMENT,AMH - Hunts & Fens,Hunts Mental Health Team,Residential Care
Cambridgeshire County Council,19-Feb-21,51301526133,-855.00,SYMONDS HOUSE NURSING HOME,CARE ESTABLISHMENT,OP - City & South Locality - Cost of Care,Older People - City & South - Care,Nursing Care
Cambridgeshire County Council,19-Feb-21,51301524469,-851.76,BETTER HEALTHCARE SERVICES LTD,CARE ESTABLISHMENT,Physical Disablity - Cost of Care,Countywide PD Service - Care,Homecare
Cambridgeshire County Council,19-Feb-21,51301524469,-851.76,BETTER HEALTHCARE SERVICES LTD,CARE ESTABLISHMENT,Physical Disablity - Cost of Care,Countywide PD Service - Care,Homecare
Cambridgeshire County Council,19-Feb-21,51301524469,-851.76,BETTER HEALTHCARE SERVICES LTD,CARE ESTABLISHMENT,Physical Disablity - Cost of Care,Countywide PD Service - Care,Homecare
Cambridgeshire County Council,19-Feb-21,51301526297,-850.77,THE MARBROOK CENTRE,CARE ESTABLISHMENT,OPMH - Hunts & Fens,Older People Mental Health Hunts,Nursing Care
Cambridgeshire County Council,19-Feb-21,51301509226,-850.50,BROAD OAKS (MENCAP),CARE ESTABLISHMENT,OP - Fenland Locality - Cost of Care,Older People - Fenland - Care,Residential Care
Cambridgeshire County Council,19-Feb-21,51301509226,-850.50,BROAD OAKS (MENCAP),CARE ESTABLISHMENT,OP - Fenland Locality - Cost of Care,Older People - Fenland - Care,Residential Care
Cambridgeshire County Council,19-Feb-21,51301509226,-850.50,BROAD OAKS (MENCAP),CARE ESTABLISHMENT,OP - Fenland Locality - Cost of Care,Older People - Fenland - Care,Residential Care
Cambridgeshire County Council,19-Feb-21,51301509226,-850.50,BROAD OAKS (MENCAP),CARE ESTABLISHMENT,OP - Fenland Locality - Cost of Care,Older People - Fenland - Care,Residential Care
Cambridgeshire County Council,19-Feb-21,51301509226,-850.50,BROAD OAKS (MENCAP),CARE ESTABLISHMENT,OP - Fenland Locality - Cost of Care,Older People - Fenland - Care,Residential Care
Cambridgeshire County Council,19-Feb-21,51301523456,-850.00,THE ELMS NURSING HOME,CARE ESTABLISHMENT,OP - Fenland Locality - Cost of Care,Older People - Fenland - Care,Nursing Care
Cambridgeshire County Council,19-Feb-21,51301523456,-850.00,THE ELMS NURSING HOME,CARE ESTABLISHMENT,OP - Fenland Locality - Cost of Care,Older People - Fenland - Care,Nursing Care
Cambridgeshire County Council,19-Feb-21,51301523456,-850.00,THE ELMS NURSING HOME,CARE ESTABLISHMENT,OP - Fenland Locality - Cost of Care,Older People - Fenland - Care,Nursing Care
Cambridgeshire County Council,19-Feb-21,51301523456,-850.00,THE ELMS NURSING HOME,CARE ESTABLISHMENT,OP - Fenland Locality - Cost of Care,Older People - Fenland - Care,Nursing Care
Cambridgeshire County Council,19-Feb-21,51301523482,-850.00,THE ELMS NURSING HOME,CARE ESTABLISHMENT,OP - Fenland Locality - Cost of Care,Older People - Fenland - Care,Residential Care
Cambridgeshire County Council,19-Feb-21,51301523482,-850.00,THE ELMS NURSING HOME,CARE ESTABLISHMENT,OP - Fenland Locality - Cost of Care,Older People - Fenland - Care,Residential Care
Cambridgeshire County Council,19-Feb-21,51301523456,-850.00,THE ELMS NURSING HOME,CARE ESTABLISHMENT,OP - Fenland Locality - Cost of Care,Older People - Fenland - Care,Nursing Care
Cambridgeshire County Council,19-Feb-21,51301523456,-850.00,THE ELMS NURSING HOME,CARE ESTABLISHMENT,OP - Fenland Locality - Cost of Care,Older People - Fenland - Care,Nursing Care
Cambridgeshire County Council,19-Feb-21,51301523482,-850.00,THE ELMS NURSING HOME,CARE ESTABLISHMENT,OP - Fenland Locality - Cost of Care,Older People - Fenland - Care,Residential Care
Cambridgeshire County Council,19-Feb-21,51301523482,-850.00,THE ELMS NURSING HOME,CARE ESTABLISHMENT,OP - Fenland Locality - Cost of Care,Older People - Fenland - Care,Residential Care
Cambridgeshire County Council,19-Feb-21,51301523482,-850.00,THE ELMS NURSING HOME,CARE ESTABLISHMENT,OP - Fenland Locality - Cost of Care,Older People - Fenland - Care,Residential Care
Cambridgeshire County Council,19-Feb-21,51301524216,-850.00,WATERBEACH LODGE (SCIMITAR),CARE ESTABLISHMENT,OP - East Cambs Locality - Cost of Care,East Cambs - O P Team - Care,Residential Care
Cambridgeshire County Council,19-Feb-21,51301524216,-850.00,WATERBEACH LODGE (SCIMITAR),CARE ESTABLISHMENT,OP - East Cambs Locality - Cost of Care,East Cambs - O P Team - Care,Residential Care
Cambridgeshire County Council,19-Feb-21,51301524555,-850.00,DUNAMIS SOCIAL CARE,CARE ESTABLISHMENT,OPMH - Hunts & Fens,Older People Mental Health Hunts,Homecare
Cambridgeshire County Council,19-Feb-21,51301524555,-850.00,DUNAMIS SOCIAL CARE,CARE ESTABLISHMENT,OPMH - Hunts & Fens,Older People Mental Health Hunts,Homecare
Cambridgeshire County Council,19-Feb-21,51301524555,-850.00,DUNAMIS SOCIAL CARE,CARE ESTABLISHMENT,OPMH - Hunts & Fens,Older People Mental Health Hunts,Homecare
Cambridgeshire County Council,19-Feb-21,51301524555,-850.00,DUNAMIS SOCIAL CARE,CARE ESTABLISHMENT,OPMH - Hunts & Fens,Older People Mental Health Hunts,Homecare
Cambridgeshire County Council,19-Feb-21,51301524555,-850.00,DUNAMIS SOCIAL CARE,CARE ESTABLISHMENT,OPMH - Hunts & Fens,Older People Mental Health Hunts,Homecare
Cambridgeshire County Council,19-Feb-21,51301524555,-850.00,DUNAMIS SOCIAL CARE,CARE ESTABLISHMENT,OPMH - Hunts & Fens,Older People Mental Health Hunts,Homecare
Cambridgeshire County Council,19-Feb-21,51301524555,-850.00,DUNAMIS SOCIAL CARE,CARE ESTABLISHMENT,OPMH - Hunts & Fens,Older People Mental Health Hunts,Homecare
Cambridgeshire County Council,19-Feb-21,51301524555,-850.00,DUNAMIS SOCIAL CARE,CARE ESTABLISHMENT,OPMH - Hunts & Fens,Older People Mental Health Hunts,Homecare
Cambridgeshire County Council,19-Feb-21,51301524555,-850.00,DUNAMIS SOCIAL CARE,CARE ESTABLISHMENT,OPMH - Hunts & Fens,Older People Mental Health Hunts,Homecare
Cambridgeshire County Council,19-Feb-21,51301524555,-850.00,DUNAMIS SOCIAL CARE,CARE ESTABLISHMENT,OPMH - Hunts & Fens,Older People Mental Health Hunts,Homecare
Cambridgeshire County Council,19-Feb-21,51301524555,-850.00,DUNAMIS SOCIAL CARE,CARE ESTABLISHMENT,OPMH - Hunts & Fens,Older People Mental Health Hunts,Homecare
Cambridgeshire County Council,19-Feb-21,51301524555,-850.00,DUNAMIS SOCIAL CARE,CARE ESTABLISHMENT,OPMH - Hunts & Fens,Older People Mental Health Hunts,Homecare
Cambridgeshire County Council,19-Feb-21,51301523603,-850.00,GLENNFIELD CARE CENTRE (OP),CARE ESTABLISHMENT,OP - Fenland Locality - Cost of Care,Older People - Fenland - Care,Nursing Care
Cambridgeshire County Council,19-Feb-21,51301523603,-850.00,GLENNFIELD CARE CENTRE (OP),CARE ESTABLISHMENT,OP - Fenland Locality - Cost of Care,Older People - Fenland - Care,Nursing Care
Cambridgeshire County Council,19-Feb-21,51301523403,-850.00,ABBEY HEALTHCARE (HUNTINGDON) LTD,CARE ESTABLISHMENT,OP - Hunts Locality - Cost of Care,Hunts OP Team - Care,Nursing Care
Cambridgeshire County Council,19-Feb-21,51301523403,-850.00,ABBEY HEALTHCARE (HUNTINGDON) LTD,CARE ESTABLISHMENT,OP - Hunts Locality - Cost of Care,Hunts OP Team - Care,Nursing Care
Cambridgeshire County Council,19-Feb-21,51301523403,-850.00,ABBEY HEALTHCARE (HUNTINGDON) LTD,CARE ESTABLISHMENT,OP - Hunts Locality - Cost of Care,Hunts OP Team - Care,Nursing Care
Cambridgeshire County Council,19-Feb-21,51301523403,-850.00,ABBEY HEALTHCARE (HUNTINGDON) LTD,CARE ESTABLISHMENT,OP - Hunts Locality - Cost of Care,Hunts OP Team - Care,Nursing Care
Cambridgeshire County Council,19-Feb-21,51301523403,-850.00,ABBEY HEALTHCARE (HUNTINGDON) LTD,CARE ESTABLISHMENT,OP - Hunts Locality - Cost of Care,Hunts OP Team - Care,Nursing Care
Cambridgeshire County Council,19-Feb-21,51301523403,-850.00,ABBEY HEALTHCARE (HUNTINGDON) LTD,CARE ESTABLISHMENT,OP - Hunts Locality - Cost of Care,Hunts OP Team - Care,Nursing Care
Cambridgeshire County Council,19-Feb-21,51301523403,-850.00,ABBEY HEALTHCARE (HUNTINGDON) LTD,CARE ESTABLISHMENT,OP - Hunts Locality - Cost of Care,Hunts OP Team - Care,Nursing Care
Cambridgeshire County Council,19-Feb-21,51301523403,-850.00,ABBEY HEALTHCARE (HUNTINGDON) LTD,CARE ESTABLISHMENT,OP - Hunts Locality - Cost of Care,Hunts OP Team - Care,Nursing Care
Cambridgeshire County Council,19-Feb-21,51301523403,-850.00,ABBEY HEALTHCARE (HUNTINGDON) LTD,CARE ESTABLISHMENT,OP - Hunts Locality - Cost of Care,Hunts OP Team - Care,Nursing Care
Cambridgeshire County Council,19-Feb-21,51301523403,-850.00,ABBEY HEALTHCARE (HUNTINGDON) LTD,CARE ESTABLISHMENT,OP - Hunts Locality - Cost of Care,Hunts OP Team - Care,Nursing Care
Cambridgeshire County Council,19-Feb-21,51301523403,-850.00,ABBEY HEALTHCARE (HUNTINGDON) LTD,CARE ESTABLISHMENT,OP - Hunts Locality - Cost of Care,Hunts OP Team - Care,Nursing Care
Cambridgeshire County Council,19-Feb-21,51301523403,-850.00,ABBEY HEALTHCARE (HUNTINGDON) LTD,CARE ESTABLISHMENT,OP - Hunts Locality - Cost of Care,Hunts OP Team - Care,Nursing Care
Cambridgeshire County Council,19-Feb-21,51301523403,-850.00,ABBEY HEALTHCARE (HUNTINGDON) LTD,CARE ESTABLISHMENT,OP - Hunts Locality - Cost of Care,Hunts OP Team - Care,Nursing Care
Cambridgeshire County Council,19-Feb-21,51301523403,-850.00,ABBEY HEALTHCARE (HUNTINGDON) LTD,CARE ESTABLISHMENT,OP - Hunts Locality - Cost of Care,Hunts OP Team - Care,Nursing Care
Cambridgeshire County Council,19-Feb-21,51301523403,-850.00,ABBEY HEALTHCARE (HUNTINGDON) LTD,CARE ESTABLISHMENT,OP - Hunts Locality - Cost of Care,Hunts OP Team - Care,Nursing Care
Cambridgeshire County Council,19-Feb-21,51301523403,-850.00,ABBEY HEALTHCARE (HUNTINGDON) LTD,CARE ESTABLISHMENT,OP - Hunts Locality - Cost of Care,Hunts OP Team - Care,Nursing Care
Cambridgeshire County Council,19-Feb-21,51301523403,-850.00,ABBEY HEALTHCARE (HUNTINGDON) LTD,CARE ESTABLISHMENT,OP - Hunts Locality - Cost of Care,Hunts OP Team - Care,Nursing Care
Cambridgeshire County Council,19-Feb-21,51301523403,-850.00,ABBEY HEALTHCARE (HUNTINGDON) LTD,CARE ESTABLISHMENT,OP - Hunts Locality - Cost of Care,Hunts OP Team - Care,Nursing Care
Cambridgeshire County Council,19-Feb-21,51301523403,-850.00,ABBEY HEALTHCARE (HUNTINGDON) LTD,CARE ESTABLISHMENT,OP - Hunts Locality - Cost of Care,Hunts OP Team - Care,Nursing Care
Cambridgeshire County Council,19-Feb-21,51301523403,-850.00,ABBEY HEALTHCARE (HUNTINGDON) LTD,CARE ESTABLISHMENT,OP - Hunts Locality - Cost of Care,Hunts OP Team - Care,Nursing Care
Cambridgeshire County Council,19-Feb-21,51301523403,-850.00,ABBEY HEALTHCARE (HUNTINGDON) LTD,CARE ESTABLISHMENT,OP - Hunts Locality - Cost of Care,Hunts OP Team - Care,Nursing Care
Cambridgeshire County Council,19-Feb-21,51301523403,-850.00,ABBEY HEALTHCARE (HUNTINGDON) LTD,CARE ESTABLISHMENT,OP - Hunts Locality - Cost of Care,Hunts OP Team - Care,Nursing Care
Cambridgeshire County Council,19-Feb-21,51301523403,-850.00,ABBEY HEALTHCARE (HUNTINGDON) LTD,CARE ESTABLISHMENT,OP - Hunts Locality - Cost of Care,Hunts OP Team - Care,Nursing Care
Cambridgeshire County Council,19-Feb-21,51301523403,-850.00,ABBEY HEALTHCARE (HUNTINGDON) LTD,CARE ESTABLISHMENT,OP - Hunts Locality - Cost of Care,Hunts OP Team - Care,Nursing Care
Cambridgeshire County Council,19-Feb-21,51301523403,-850.00,ABBEY HEALTHCARE (HUNTINGDON) LTD,CARE ESTABLISHMENT,OP - Hunts Locality - Cost of Care,Hunts OP Team - Care,Nursing Care
Cambridgeshire County Council,19-Feb-21,51301523403,-850.00,ABBEY HEALTHCARE (HUNTINGDON) LTD,CARE ESTABLISHMENT,OP - Hunts Locality - Cost of Care,Hunts OP Team - Care,Nursing Care
Cambridgeshire County Council,19-Feb-21,51301523403,-850.00,ABBEY HEALTHCARE (HUNTINGDON) LTD,CARE ESTABLISHMENT,OP - Hunts Locality - Cost of Care,Hunts OP Team - Care,Nursing Care
Cambridgeshire County Council,19-Feb-21,51301523403,-850.00,ABBEY HEALTHCARE (HUNTINGDON) LTD,CARE ESTABLISHMENT,OP - Hunts Locality - Cost of Care,Hunts OP Team - Care,Nursing Care
Cambridgeshire County Council,19-Feb-21,51301523403,-850.00,ABBEY HEALTHCARE (HUNTINGDON) LTD,CARE ESTABLISHMENT,OP - Hunts Locality - Cost of Care,Hunts OP Team - Care,Nursing Care
Cambridgeshire County Council,19-Feb-21,51301523403,-850.00,ABBEY HEALTHCARE (HUNTINGDON) LTD,CARE ESTABLISHMENT,OP - Hunts Locality - Cost of Care,Hunts OP Team - Care,Nursing Care
Cambridgeshire County Council,19-Feb-21,51301523403,-850.00,ABBEY HEALTHCARE (HUNTINGDON) LTD,CARE ESTABLISHMENT,OP - Hunts Locality - Cost of Care,Hunts OP Team - Care,Nursing Care
Cambridgeshire County Council,19-Feb-21,51301523403,-850.00,ABBEY HEALTHCARE (HUNTINGDON) LTD,CARE ESTABLISHMENT,OP - Hunts Locality - Cost of Care,Hunts OP Team - Care,Nursing Care
Cambridgeshire County Council,19-Feb-21,51301523403,-850.00,ABBEY HEALTHCARE (HUNTINGDON) LTD,CARE ESTABLISHMENT,OP - Hunts Locality - Cost of Care,Hunts OP Team - Care,Nursing Care
Cambridgeshire County Council,19-Feb-21,51301523403,-850.00,ABBEY HEALTHCARE (HUNTINGDON) LTD,CARE ESTABLISHMENT,OP - Hunts Locality - Cost of Care,Hunts OP Team - Care,Nursing Care
Cambridgeshire County Council,19-Feb-21,51301523403,-850.00,ABBEY HEALTHCARE (HUNTINGDON) LTD,CARE ESTABLISHMENT,OP - Hunts Locality - Cost of Care,Hunts OP Team - Care,Nursing Care
Cambridgeshire County Council,19-Feb-21,51301523403,-850.00,ABBEY HEALTHCARE (HUNTINGDON) LTD,CARE ESTABLISHMENT,OP - Hunts Locality - Cost of Care,Hunts OP Team - Care,Nursing Care
Cambridgeshire County Council,19-Feb-21,51301523403,-850.00,ABBEY HEALTHCARE (HUNTINGDON) LTD,CARE ESTABLISHMENT,OP - Hunts Locality - Cost of Care,Hunts OP Team - Care,Nursing Care
Cambridgeshire County Council,19-Feb-21,51301523403,-850.00,ABBEY HEALTHCARE (HUNTINGDON) LTD,CARE ESTABLISHMENT,OP - Hunts Locality - Cost of Care,Hunts OP Team - Care,Nursing Care
Cambridgeshire County Council,19-Feb-21,51301523403,-850.00,ABBEY HEALTHCARE (HUNTINGDON) LTD,CARE ESTABLISHMENT,OP - Hunts Locality - Cost of Care,Hunts OP Team - Care,Nursing Care
Cambridgeshire County Council,19-Feb-21,51301523403,-850.00,ABBEY HEALTHCARE (HUNTINGDON) LTD,CARE ESTABLISHMENT,OP - Hunts Locality - Cost of Care,Hunts OP Team - Care,Nursing Care
Cambridgeshire County Council,19-Feb-21,51301524311,-850.00,Redacted Personal Data ,INDIVIDUAL,OP - Fenland Locality - Cost of Care,Older People - Fenland - Care,Residential Care
Cambridgeshire County Council,19-Feb-21,51301524311,-850.00,Redacted Personal Data ,INDIVIDUAL,OP - Fenland Locality - Cost of Care,Older People - Fenland - Care,Residential Care
Cambridgeshire County Council,19-Feb-21,51301524311,-850.00,Redacted Personal Data ,INDIVIDUAL,OP - Fenland Locality - Cost of Care,Older People - Fenland - Care,Residential Care
Cambridgeshire County Council,19-Feb-21,51301524311,-850.00,Redacted Personal Data ,INDIVIDUAL,OP - Fenland Locality - Cost of Care,Older People - Fenland - Care,Residential Care
Cambridgeshire County Council,19-Feb-21,51301524311,-850.00,Redacted Personal Data ,INDIVIDUAL,OP - Fenland Locality - Cost of Care,Older People - Fenland - Care,Residential Care
Cambridgeshire County Council,19-Feb-21,51301524311,-850.00,Redacted Personal Data ,INDIVIDUAL,OP - Fenland Locality - Cost of Care,Older People - Fenland - Care,Residential Care
Cambridgeshire County Council,19-Feb-21,51301524311,-850.00,Redacted Personal Data ,INDIVIDUAL,OP - Fenland Locality - Cost of Care,Older People - Fenland - Care,Residential Care
Cambridgeshire County Council,19-Feb-21,51301523636,-850.00,OAKLANDS CARE HOME,CARE ESTABLISHMENT,OP - East Cambs Locality - Cost of Care,East Cambs - O P Team - Care,Nursing Care
Cambridgeshire County Council,19-Feb-21,51301522041,-850.00,Redacted Personal Data ,INDIVIDUAL,OP - East Cambs Locality - Cost of Care,East Cambs - O P Team - Care,Short Term Other
Cambridgeshire County Council,19-Feb-21,51301522041,-850.00,Redacted Personal Data ,INDIVIDUAL,OP - East Cambs Locality - Cost of Care,East Cambs - O P Team - Care,Short Term Other
Cambridgeshire County Council,19-Feb-21,51301522041,-850.00,Redacted Personal Data ,INDIVIDUAL,OP - East Cambs Locality - Cost of Care,East Cambs - O P Team - Care,Short Term Other
Cambridgeshire County Council,19-Feb-21,51301526292,-841.08,ETHELDRED HOUSE,CARE ESTABLISHMENT,OP - City & South Locality - Cost of Care,Older People - City & South - Care,Nursing Care
Cambridgeshire County Council,19-Feb-21,51301526292,-841.08,ETHELDRED HOUSE,CARE ESTABLISHMENT,OP - City & South Locality - Cost of Care,Older People - City & South - Care,Nursing Care
Cambridgeshire County Council,19-Feb-21,51301526292,-841.08,ETHELDRED HOUSE,CARE ESTABLISHMENT,OP - City & South Locality - Cost of Care,Older People - City & South - Care,Nursing Care
Cambridgeshire County Council,19-Feb-21,51301526292,-841.08,ETHELDRED HOUSE,CARE ESTABLISHMENT,OP - City & South Locality - Cost of Care,Older People - City & South - Care,Nursing Care
Cambridgeshire County Council,19-Feb-21,51301524008,-838.32,RENTON COURT (VOYAGE),CARE ESTABLISHMENT,LD - Hunts Locality - Cost of Care,LD - Huntingdonshire - Care,Supported Living
Cambridgeshire County Council,19-Feb-21,51301523377,-834.34,CHERRY HINTON NURSING HOME,CARE ESTABLISHMENT,OP - City & South Locality - Cost of Care,Older People - City & South - Care,Nursing Care
Cambridgeshire County Council,19-Feb-21,51301523377,-834.34,CHERRY HINTON NURSING HOME,CARE ESTABLISHMENT,OP - City & South Locality - Cost of Care,Older People - City & South - Care,Nursing Care
Cambridgeshire County Council,19-Feb-21,51301523377,-834.34,CHERRY HINTON NURSING HOME,CARE ESTABLISHMENT,OP - City & South Locality - Cost of Care,Older People - City & South - Care,Nursing Care
Cambridgeshire County Council,19-Feb-21,51301523377,-834.34,CHERRY HINTON NURSING HOME,CARE ESTABLISHMENT,OP - City & South Locality - Cost of Care,Older People - City & South - Care,Nursing Care
Cambridgeshire County Council,19-Feb-21,51301523377,-834.34,CHERRY HINTON NURSING HOME,CARE ESTABLISHMENT,OP - City & South Locality - Cost of Care,Older People - City & South - Care,Nursing Care
Cambridgeshire County Council,19-Feb-21,51301523377,-834.34,CHERRY HINTON NURSING HOME,CARE ESTABLISHMENT,OP - City & South Locality - Cost of Care,Older People - City & South - Care,Nursing Care
Cambridgeshire County Council,19-Feb-21,51301523285,-833.75,BRAMLEY COURT,CARE ESTABLISHMENT,OPMH - City & South,Older People Mental Health City & South,Nursing Care
Cambridgeshire County Council,19-Feb-21,51301523285,-833.75,BRAMLEY COURT,CARE ESTABLISHMENT,OPMH - City & South,Older People Mental Health City & South,Nursing Care
Cambridgeshire County Council,19-Feb-21,51301523285,-833.75,BRAMLEY COURT,CARE ESTABLISHMENT,OPMH - City & South,Older People Mental Health City & South,Nursing Care
Cambridgeshire County Council,19-Feb-21,51301523285,-833.75,BRAMLEY COURT,CARE ESTABLISHMENT,OPMH - City & South,Older People Mental Health City & South,Nursing Care
Cambridgeshire County Council,19-Feb-21,51301523698,-831.73,ARIA COURT,CARE ESTABLISHMENT,OP - Fenland Locality - Cost of Care,Older People - Fenland - Care,Nursing Care
Cambridgeshire County Council,19-Feb-21,51301523698,-831.73,ARIA COURT,CARE ESTABLISHMENT,OP - Fenland Locality - Cost of Care,Older People - Fenland - Care,Nursing Care
Cambridgeshire County Council,19-Feb-21,51301523698,-831.73,ARIA COURT,CARE ESTABLISHMENT,OP - Fenland Locality - Cost of Care,Older People - Fenland - Care,Nursing Care
Cambridgeshire County Council,19-Feb-21,51301523698,-831.73,ARIA COURT,CARE ESTABLISHMENT,OP - Fenland Locality - Cost of Care,Older People - Fenland - Care,Nursing Care
Cambridgeshire County Council,19-Feb-21,51301523698,-831.73,ARIA COURT,CARE ESTABLISHMENT,OP - Fenland Locality - Cost of Care,Older People - Fenland - Care,Nursing Care
Cambridgeshire County Council,19-Feb-21,51301523698,-831.73,ARIA COURT,CARE ESTABLISHMENT,OP - Fenland Locality - Cost of Care,Older People - Fenland - Care,Nursing Care
Cambridgeshire County Council,02-Feb-21,51301512991,-830.30,HC-ONE,CARE ESTABLISHMENT,OP - Hunts Blocks,Hunts - Long term blocks,Nursing Care
Cambridgeshire County Council,19-Feb-21,51301521999,-825.58,ETHELDRED HOUSE,CARE ESTABLISHMENT,OPMH - Hunts & Fens,Older People Mental Health Fenland,Short Term Other
Cambridgeshire County Council,19-Feb-21,51301521999,-825.58,ETHELDRED HOUSE,CARE ESTABLISHMENT,OPMH - Hunts & Fens,Older People Mental Health Fenland,Short Term Other
Cambridgeshire County Council,19-Feb-21,51301521999,-825.58,ETHELDRED HOUSE,CARE ESTABLISHMENT,OPMH - Hunts & Fens,Older People Mental Health Fenland,Short Term Other
Cambridgeshire County Council,19-Feb-21,51301521999,-825.58,ETHELDRED HOUSE,CARE ESTABLISHMENT,OPMH - Hunts & Fens,Older People Mental Health Fenland,Short Term Other
Cambridgeshire County Council,19-Feb-21,51301521999,-825.58,ETHELDRED HOUSE,CARE ESTABLISHMENT,OPMH - Hunts & Fens,Older People Mental Health Fenland,Short Term Other
Cambridgeshire County Council,19-Feb-21,51301521999,-825.58,ETHELDRED HOUSE,CARE ESTABLISHMENT,OPMH - Hunts & Fens,Older People Mental Health Fenland,Short Term Other
Cambridgeshire County Council,19-Feb-21,51301521999,-825.58,ETHELDRED HOUSE,CARE ESTABLISHMENT,OPMH - Hunts & Fens,Older People Mental Health Fenland,Short Term Other
Cambridgeshire County Council,19-Feb-21,51301521999,-825.58,ETHELDRED HOUSE,CARE ESTABLISHMENT,OPMH - Hunts & Fens,Older People Mental Health Fenland,Short Term Other
Cambridgeshire County Council,19-Feb-21,51301521999,-825.58,ETHELDRED HOUSE,CARE ESTABLISHMENT,OPMH - Hunts & Fens,Older People Mental Health Fenland,Short Term Other
Cambridgeshire County Council,19-Feb-21,51301522006,-825.58,ETHELDRED HOUSE,CARE ESTABLISHMENT,OPMH - City & South,Older People Mental Health City & South,Short Term Other
Cambridgeshire County Council,19-Feb-21,51301522006,-825.58,ETHELDRED HOUSE,CARE ESTABLISHMENT,OPMH - City & South,Older People Mental Health City & South,Short Term Other
Cambridgeshire County Council,19-Feb-21,51301522006,-825.58,ETHELDRED HOUSE,CARE ESTABLISHMENT,OPMH - City & South,Older People Mental Health City & South,Short Term Other
Cambridgeshire County Council,19-Feb-21,51301522006,-825.58,ETHELDRED HOUSE,CARE ESTABLISHMENT,OPMH - City & South,Older People Mental Health City & South,Short Term Other
Cambridgeshire County Council,19-Feb-21,51301522006,-825.58,ETHELDRED HOUSE,CARE ESTABLISHMENT,OPMH - City & South,Older People Mental Health City & South,Short Term Other
Cambridgeshire County Council,19-Feb-21,51301522006,-825.58,ETHELDRED HOUSE,CARE ESTABLISHMENT,OPMH - City & South,Older People Mental Health City & South,Short Term Other
Cambridgeshire County Council,19-Feb-21,51301522006,-825.58,ETHELDRED HOUSE,CARE ESTABLISHMENT,OPMH - City & South,Older People Mental Health City & South,Short Term Other
Cambridgeshire County Council,19-Feb-21,51301522006,-825.58,ETHELDRED HOUSE,CARE ESTABLISHMENT,OPMH - City & South,Older People Mental Health City & South,Short Term Other
Cambridgeshire County Council,19-Feb-21,51301522006,-825.58,ETHELDRED HOUSE,CARE ESTABLISHMENT,OPMH - City & South,Older People Mental Health City & South,Short Term Other
Cambridgeshire County Council,19-Feb-21,51301522006,-825.58,ETHELDRED HOUSE,CARE ESTABLISHMENT,OPMH - City & South,Older People Mental Health City & South,Short Term Other
Cambridgeshire County Council,19-Feb-21,51301522006,-825.58,ETHELDRED HOUSE,CARE ESTABLISHMENT,OPMH - City & South,Older People Mental Health City & South,Short Term Other
Cambridgeshire County Council,19-Feb-21,51301522006,-825.58,ETHELDRED HOUSE,CARE ESTABLISHMENT,OPMH - City & South,Older People Mental Health City & South,Short Term Other
Cambridgeshire County Council,19-Feb-21,51301522006,-825.58,ETHELDRED HOUSE,CARE ESTABLISHMENT,OPMH - City & South,Older People Mental Health City & South,Short Term Other
Cambridgeshire County Council,19-Feb-21,51301522006,-825.58,ETHELDRED HOUSE,CARE ESTABLISHMENT,OPMH - City & South,Older People Mental Health City & South,Short Term Other
Cambridgeshire County Council,19-Feb-21,51301522006,-825.58,ETHELDRED HOUSE,CARE ESTABLISHMENT,OPMH - City & South,Older People Mental Health City & South,Short Term Other
Cambridgeshire County Council,19-Feb-21,51301522006,-825.58,ETHELDRED HOUSE,CARE ESTABLISHMENT,OPMH - City & South,Older People Mental Health City & South,Short Term Other
Cambridgeshire County Council,19-Feb-21,51301522006,-825.58,ETHELDRED HOUSE,CARE ESTABLISHMENT,OPMH - City & South,Older People Mental Health City & South,Short Term Other
Cambridgeshire County Council,19-Feb-21,51301522006,-825.58,ETHELDRED HOUSE,CARE ESTABLISHMENT,OPMH - City & South,Older People Mental Health City & South,Short Term Other
Cambridgeshire County Council,19-Feb-21,51301522006,-825.58,ETHELDRED HOUSE,CARE ESTABLISHMENT,OPMH - City & South,Older People Mental Health City & South,Short Term Other
Cambridgeshire County Council,19-Feb-21,51301522006,-825.58,ETHELDRED HOUSE,CARE ESTABLISHMENT,OPMH - City & South,Older People Mental Health City & South,Short Term Other
Cambridgeshire County Council,19-Feb-21,51301522006,-825.58,ETHELDRED HOUSE,CARE ESTABLISHMENT,OPMH - City & South,Older People Mental Health City & South,Short Term Other
Cambridgeshire County Council,19-Feb-21,51301522006,-825.58,ETHELDRED HOUSE,CARE ESTABLISHMENT,OPMH - City & South,Older People Mental Health City & South,Short Term Other
Cambridgeshire County Council,19-Feb-21,51301522006,-825.58,ETHELDRED HOUSE,CARE ESTABLISHMENT,OPMH - City & South,Older People Mental Health City & South,Short Term Other
Cambridgeshire County Council,19-Feb-21,51301523433,-825.11,WOODLANDS CARE CENTRE,CARE ESTABLISHMENT,OPMH - City & South,Older People Mental Health City & South,Nursing Care
Cambridgeshire County Council,19-Feb-21,51301523433,-825.11,WOODLANDS CARE CENTRE,CARE ESTABLISHMENT,OPMH - City & South,Older People Mental Health City & South,Nursing Care
Cambridgeshire County Council,19-Feb-21,51301523433,-825.11,WOODLANDS CARE CENTRE,CARE ESTABLISHMENT,OPMH - City & South,Older People Mental Health City & South,Nursing Care
Cambridgeshire County Council,19-Feb-21,51301523433,-825.11,WOODLANDS CARE CENTRE,CARE ESTABLISHMENT,OPMH - City & South,Older People Mental Health City & South,Nursing Care
Cambridgeshire County Council,19-Feb-21,51301523433,-825.11,WOODLANDS CARE CENTRE,CARE ESTABLISHMENT,OPMH - City & South,Older People Mental Health City & South,Nursing Care
Cambridgeshire County Council,19-Feb-21,51301523433,-825.11,WOODLANDS CARE CENTRE,CARE ESTABLISHMENT,OPMH - City & South,Older People Mental Health City & South,Nursing Care
Cambridgeshire County Council,19-Feb-21,51301523433,-825.11,WOODLANDS CARE CENTRE,CARE ESTABLISHMENT,OPMH - City & South,Older People Mental Health City & South,Nursing Care
Cambridgeshire County Council,19-Feb-21,51301523433,-825.11,WOODLANDS CARE CENTRE,CARE ESTABLISHMENT,OPMH - City & South,Older People Mental Health City & South,Nursing Care
Cambridgeshire County Council,19-Feb-21,51301523433,-825.11,WOODLANDS CARE CENTRE,CARE ESTABLISHMENT,OPMH - City & South,Older People Mental Health City & South,Nursing Care
Cambridgeshire County Council,19-Feb-21,51301523433,-825.11,WOODLANDS CARE CENTRE,CARE ESTABLISHMENT,OPMH - City & South,Older People Mental Health City & South,Nursing Care
Cambridgeshire County Council,19-Feb-21,51301523433,-825.11,WOODLANDS CARE CENTRE,CARE ESTABLISHMENT,OPMH - City & South,Older People Mental Health City & South,Nursing Care
Cambridgeshire County Council,19-Feb-21,51301523433,-825.11,WOODLANDS CARE CENTRE,CARE ESTABLISHMENT,OPMH - City & South,Older People Mental Health City & South,Nursing Care
Cambridgeshire County Council,19-Feb-21,51301523433,-825.11,WOODLANDS CARE CENTRE,CARE ESTABLISHMENT,OPMH - City & South,Older People Mental Health City & South,Nursing Care
Cambridgeshire County Council,19-Feb-21,51301523433,-825.11,WOODLANDS CARE CENTRE,CARE ESTABLISHMENT,OPMH - City & South,Older People Mental Health City & South,Nursing Care
Cambridgeshire County Council,19-Feb-21,51301523354,-822.44,THE ELMS NURSING HOME,CARE ESTABLISHMENT,OP - Hunts Locality - Cost of Care,Hunts OP Team - Care,Nursing Care
Cambridgeshire County Council,19-Feb-21,51301523354,-822.44,THE ELMS NURSING HOME,CARE ESTABLISHMENT,OP - Hunts Locality - Cost of Care,Hunts OP Team - Care,Nursing Care
Cambridgeshire County Council,19-Feb-21,51301523354,-822.44,THE ELMS NURSING HOME,CARE ESTABLISHMENT,OP - Hunts Locality - Cost of Care,Hunts OP Team - Care,Nursing Care
Cambridgeshire County Council,19-Feb-21,51301523354,-822.44,THE ELMS NURSING HOME,CARE ESTABLISHMENT,OP - Hunts Locality - Cost of Care,Hunts OP Team - Care,Nursing Care
Cambridgeshire County Council,19-Feb-21,51301523354,-822.44,THE ELMS NURSING HOME,CARE ESTABLISHMENT,OP - Hunts Locality - Cost of Care,Hunts OP Team - Care,Nursing Care
Cambridgeshire County Council,19-Feb-21,51301523354,-822.44,THE ELMS NURSING HOME,CARE ESTABLISHMENT,OP - Hunts Locality - Cost of Care,Hunts OP Team - Care,Nursing Care
Cambridgeshire County Council,19-Feb-21,51301523354,-822.44,THE ELMS NURSING HOME,CARE ESTABLISHMENT,OP - Hunts Locality - Cost of Care,Hunts OP Team - Care,Nursing Care
Cambridgeshire County Council,19-Feb-21,51301523354,-822.44,THE ELMS NURSING HOME,CARE ESTABLISHMENT,OP - Hunts Locality - Cost of Care,Hunts OP Team - Care,Nursing Care
Cambridgeshire County Council,19-Feb-21,51301523354,-822.44,THE ELMS NURSING HOME,CARE ESTABLISHMENT,OP - Hunts Locality - Cost of Care,Hunts OP Team - Care,Nursing Care
Cambridgeshire County Council,19-Feb-21,51301523354,-822.44,THE ELMS NURSING HOME,CARE ESTABLISHMENT,OP - Hunts Locality - Cost of Care,Hunts OP Team - Care,Nursing Care
Cambridgeshire County Council,19-Feb-21,51301523354,-822.44,THE ELMS NURSING HOME,CARE ESTABLISHMENT,OP - Hunts Locality - Cost of Care,Hunts OP Team - Care,Nursing Care
Cambridgeshire County Council,19-Feb-21,51301523354,-822.44,THE ELMS NURSING HOME,CARE ESTABLISHMENT,OP - Hunts Locality - Cost of Care,Hunts OP Team - Care,Nursing Care
Cambridgeshire County Council,19-Feb-21,51301523354,-822.44,THE ELMS NURSING HOME,CARE ESTABLISHMENT,OP - Hunts Locality - Cost of Care,Hunts OP Team - Care,Nursing Care
Cambridgeshire County Council,19-Feb-21,51301523354,-822.44,THE ELMS NURSING HOME,CARE ESTABLISHMENT,OP - Hunts Locality - Cost of Care,Hunts OP Team - Care,Nursing Care
Cambridgeshire County Council,19-Feb-21,51301523354,-822.44,THE ELMS NURSING HOME,CARE ESTABLISHMENT,OP - Hunts Locality - Cost of Care,Hunts OP Team - Care,Nursing Care
Cambridgeshire County Council,19-Feb-21,51301523354,-822.44,THE ELMS NURSING HOME,CARE ESTABLISHMENT,OP - Hunts Locality - Cost of Care,Hunts OP Team - Care,Nursing Care
Cambridgeshire County Council,19-Feb-21,51301523354,-822.44,THE ELMS NURSING HOME,CARE ESTABLISHMENT,OP - Hunts Locality - Cost of Care,Hunts OP Team - Care,Nursing Care
Cambridgeshire County Council,19-Feb-21,51301523354,-822.44,THE ELMS NURSING HOME,CARE ESTABLISHMENT,OP - Hunts Locality - Cost of Care,Hunts OP Team - Care,Nursing Care
Cambridgeshire County Council,19-Feb-21,51301523354,-822.44,THE ELMS NURSING HOME,CARE ESTABLISHMENT,OP - Hunts Locality - Cost of Care,Hunts OP Team - Care,Nursing Care
Cambridgeshire County Council,05-Feb-21,51301515302,-821.44,NORTHERN LIFE CARE LTD T/A UBU,CARE ESTABLISHMENT,LD - South Locality - Cost of Care,LD - South Cambs - Care,Supported Living
Cambridgeshire County Council,19-Feb-21,51301526001,-820.01,A CLASS CARE LTD,CARE ESTABLISHMENT,OP - City & South Locality - Cost of Care,Older People - City & South - Care,Homecare
Cambridgeshire County Council,19-Feb-21,51301526001,-820.01,A CLASS CARE LTD,CARE ESTABLISHMENT,OP - City & South Locality - Cost of Care,Older People - City & South - Care,Homecare
Cambridgeshire County Council,19-Feb-21,51301526001,-820.01,A CLASS CARE LTD,CARE ESTABLISHMENT,OP - City & South Locality - Cost of Care,Older People - City & South - Care,Homecare
Cambridgeshire County Council,19-Feb-21,51301523425,-816.08,THE CAMBRIDGE NURSING CENTRE,CARE ESTABLISHMENT,OP - City & South Locality - Cost of Care,Older People - City & South - Care,Nursing Care
Cambridgeshire County Council,19-Feb-21,51301523425,-816.08,THE CAMBRIDGE NURSING CENTRE,CARE ESTABLISHMENT,OP - City & South Locality - Cost of Care,Older People - City & South - Care,Nursing Care
Cambridgeshire County Council,19-Feb-21,51301523425,-816.08,THE CAMBRIDGE NURSING CENTRE,CARE ESTABLISHMENT,OP - City & South Locality - Cost of Care,Older People - City & South - Care,Nursing Care
Cambridgeshire County Council,19-Feb-21,51301523425,-816.08,THE CAMBRIDGE NURSING CENTRE,CARE ESTABLISHMENT,OP - City & South Locality - Cost of Care,Older People - City & South - Care,Nursing Care
Cambridgeshire County Council,19-Feb-21,51301523425,-816.08,THE CAMBRIDGE NURSING CENTRE,CARE ESTABLISHMENT,OP - City & South Locality - Cost of Care,Older People - City & South - Care,Nursing Care
Cambridgeshire County Council,19-Feb-21,51301523425,-816.08,THE CAMBRIDGE NURSING CENTRE,CARE ESTABLISHMENT,OP - City & South Locality - Cost of Care,Older People - City & South - Care,Nursing Care
Cambridgeshire County Council,19-Feb-21,51301523425,-816.08,THE CAMBRIDGE NURSING CENTRE,CARE ESTABLISHMENT,OP - City & South Locality - Cost of Care,Older People - City & South - Care,Nursing Care
Cambridgeshire County Council,19-Feb-21,51301523425,-816.08,THE CAMBRIDGE NURSING CENTRE,CARE ESTABLISHMENT,OP - City & South Locality - Cost of Care,Older People - City & South - Care,Nursing Care
Cambridgeshire County Council,19-Feb-21,51301523425,-816.08,THE CAMBRIDGE NURSING CENTRE,CARE ESTABLISHMENT,OP - City & South Locality - Cost of Care,Older People - City & South - Care,Nursing Care
Cambridgeshire County Council,19-Feb-21,51301523425,-816.08,THE CAMBRIDGE NURSING CENTRE,CARE ESTABLISHMENT,OP - City & South Locality - Cost of Care,Older People - City & South - Care,Nursing Care
Cambridgeshire County Council,19-Feb-21,51301523425,-816.08,THE CAMBRIDGE NURSING CENTRE,CARE ESTABLISHMENT,OP - City & South Locality - Cost of Care,Older People - City & South - Care,Nursing Care
Cambridgeshire County Council,19-Feb-21,51301523425,-816.08,THE CAMBRIDGE NURSING CENTRE,CARE ESTABLISHMENT,OP - City & South Locality - Cost of Care,Older People - City & South - Care,Nursing Care
Cambridgeshire County Council,19-Feb-21,51301523425,-816.08,THE CAMBRIDGE NURSING CENTRE,CARE ESTABLISHMENT,OP - City & South Locality - Cost of Care,Older People - City & South - Care,Nursing Care
Cambridgeshire County Council,19-Feb-21,51301523425,-816.08,THE CAMBRIDGE NURSING CENTRE,CARE ESTABLISHMENT,OP - City & South Locality - Cost of Care,Older People - City & South - Care,Nursing Care
Cambridgeshire County Council,19-Feb-21,51301523425,-816.08,THE CAMBRIDGE NURSING CENTRE,CARE ESTABLISHMENT,OP - City & South Locality - Cost of Care,Older People - City & South - Care,Nursing Care
Cambridgeshire County Council,19-Feb-21,51301523425,-816.08,THE CAMBRIDGE NURSING CENTRE,CARE ESTABLISHMENT,OP - City & South Locality - Cost of Care,Older People - City & South - Care,Nursing Care
Cambridgeshire County Council,19-Feb-21,51301523425,-816.08,THE CAMBRIDGE NURSING CENTRE,CARE ESTABLISHMENT,OP - City & South Locality - Cost of Care,Older People - City & South - Care,Nursing Care
Cambridgeshire County Council,19-Feb-21,51301523425,-816.08,THE CAMBRIDGE NURSING CENTRE,CARE ESTABLISHMENT,OP - City & South Locality - Cost of Care,Older People - City & South - Care,Nursing Care
Cambridgeshire County Council,19-Feb-21,51301523425,-816.08,THE CAMBRIDGE NURSING CENTRE,CARE ESTABLISHMENT,OP - City & South Locality - Cost of Care,Older People - City & South - Care,Nursing Care
Cambridgeshire County Council,19-Feb-21,51301523425,-816.08,THE CAMBRIDGE NURSING CENTRE,CARE ESTABLISHMENT,OP - City & South Locality - Cost of Care,Older People - City & South - Care,Nursing Care
Cambridgeshire County Council,19-Feb-21,51301523425,-816.08,THE CAMBRIDGE NURSING CENTRE,CARE ESTABLISHMENT,OP - City & South Locality - Cost of Care,Older People - City & South - Care,Nursing Care
Cambridgeshire County Council,19-Feb-21,51301523425,-816.08,THE CAMBRIDGE NURSING CENTRE,CARE ESTABLISHMENT,OP - City & South Locality - Cost of Care,Older People - City & South - Care,Nursing Care
Cambridgeshire County Council,26-Feb-21,51301528064,-816.00,Good News Nwk Ltd,CARE ESTABLISHMENT,LAC Placements,Placements - residential homes,Agency Placements - Out of  County
Cambridgeshire County Council,19-Feb-21,51301522979,-803.78,ELTISLEY MANOR (PSYCARE LTD),CARE ESTABLISHMENT,OPMH - Hunts & Fens,Older People Mental Health Hunts,Nursing Care
Cambridgeshire County Council,19-Feb-21,51301522979,-803.78,ELTISLEY MANOR (PSYCARE LTD),CARE ESTABLISHMENT,OPMH - Hunts & Fens,Older People Mental Health Hunts,Nursing Care
Cambridgeshire County Council,19-Feb-21,51301522979,-803.78,ELTISLEY MANOR (PSYCARE LTD),CARE ESTABLISHMENT,OPMH - Hunts & Fens,Older People Mental Health Hunts,Nursing Care
Cambridgeshire County Council,19-Feb-21,51301522979,-803.78,ELTISLEY MANOR (PSYCARE LTD),CARE ESTABLISHMENT,OPMH - Hunts & Fens,Older People Mental Health Hunts,Nursing Care
Cambridgeshire County Council,19-Feb-21,51301522979,-803.78,ELTISLEY MANOR (PSYCARE LTD),CARE ESTABLISHMENT,OPMH - Hunts & Fens,Older People Mental Health Hunts,Nursing Care
Cambridgeshire County Council,19-Feb-21,51301522979,-803.78,ELTISLEY MANOR (PSYCARE LTD),CARE ESTABLISHMENT,OPMH - Hunts & Fens,Older People Mental Health Hunts,Nursing Care
Cambridgeshire County Council,19-Feb-21,51301522979,-803.78,ELTISLEY MANOR (PSYCARE LTD),CARE ESTABLISHMENT,OPMH - Hunts & Fens,Older People Mental Health Hunts,Nursing Care
Cambridgeshire County Council,19-Feb-21,51301522979,-803.78,ELTISLEY MANOR (PSYCARE LTD),CARE ESTABLISHMENT,OPMH - Hunts & Fens,Older People Mental Health Hunts,Nursing Care
Cambridgeshire County Council,19-Feb-21,51301522979,-803.78,ELTISLEY MANOR (PSYCARE LTD),CARE ESTABLISHMENT,OPMH - Hunts & Fens,Older People Mental Health Hunts,Nursing Care
Cambridgeshire County Council,19-Feb-21,51301522979,-803.78,ELTISLEY MANOR (PSYCARE LTD),CARE ESTABLISHMENT,OPMH - Hunts & Fens,Older People Mental Health Hunts,Nursing Care
Cambridgeshire County Council,19-Feb-21,51301522979,-803.78,ELTISLEY MANOR (PSYCARE LTD),CARE ESTABLISHMENT,OPMH - Hunts & Fens,Older People Mental Health Hunts,Nursing Care
Cambridgeshire County Council,19-Feb-21,51301522979,-803.78,ELTISLEY MANOR (PSYCARE LTD),CARE ESTABLISHMENT,OPMH - Hunts & Fens,Older People Mental Health Hunts,Nursing Care
Cambridgeshire County Council,19-Feb-21,51301522979,-803.78,ELTISLEY MANOR (PSYCARE LTD),CARE ESTABLISHMENT,OPMH - Hunts & Fens,Older People Mental Health Hunts,Nursing Care
Cambridgeshire County Council,19-Feb-21,51301522979,-803.78,ELTISLEY MANOR (PSYCARE LTD),CARE ESTABLISHMENT,OPMH - Hunts & Fens,Older People Mental Health Hunts,Nursing Care
Cambridgeshire County Council,19-Feb-21,51301522979,-803.78,ELTISLEY MANOR (PSYCARE LTD),CARE ESTABLISHMENT,OPMH - Hunts & Fens,Older People Mental Health Hunts,Nursing Care
Cambridgeshire County Council,19-Feb-21,51301522979,-803.78,ELTISLEY MANOR (PSYCARE LTD),CARE ESTABLISHMENT,OPMH - Hunts & Fens,Older People Mental Health Hunts,Nursing Care
Cambridgeshire County Council,19-Feb-21,51301522979,-803.78,ELTISLEY MANOR (PSYCARE LTD),CARE ESTABLISHMENT,OPMH - Hunts & Fens,Older People Mental Health Hunts,Nursing Care
Cambridgeshire County Council,19-Feb-21,51301522979,-803.78,ELTISLEY MANOR (PSYCARE LTD),CARE ESTABLISHMENT,OPMH - Hunts & Fens,Older People Mental Health Hunts,Nursing Care
Cambridgeshire County Council,19-Feb-21,51301522979,-803.78,ELTISLEY MANOR (PSYCARE LTD),CARE ESTABLISHMENT,OPMH - Hunts & Fens,Older People Mental Health Hunts,Nursing Care
Cambridgeshire County Council,19-Feb-21,51301522979,-803.78,ELTISLEY MANOR (PSYCARE LTD),CARE ESTABLISHMENT,OPMH - Hunts & Fens,Older People Mental Health Hunts,Nursing Care
Cambridgeshire County Council,19-Feb-21,51301522979,-803.78,ELTISLEY MANOR (PSYCARE LTD),CARE ESTABLISHMENT,OPMH - Hunts & Fens,Older People Mental Health Hunts,Nursing Care
Cambridgeshire County Council,19-Feb-21,51301522979,-803.78,ELTISLEY MANOR (PSYCARE LTD),CARE ESTABLISHMENT,OPMH - Hunts & Fens,Older People Mental Health Hunts,Nursing Care
Cambridgeshire County Council,19-Feb-21,51301522979,-803.78,ELTISLEY MANOR (PSYCARE LTD),CARE ESTABLISHMENT,OPMH - Hunts & Fens,Older People Mental Health Hunts,Nursing Care
Cambridgeshire County Council,19-Feb-21,51301522979,-803.78,ELTISLEY MANOR (PSYCARE LTD),CARE ESTABLISHMENT,OPMH - Hunts & Fens,Older People Mental Health Hunts,Nursing Care
Cambridgeshire County Council,19-Feb-21,51301522979,-803.78,ELTISLEY MANOR (PSYCARE LTD),CARE ESTABLISHMENT,OPMH - Hunts & Fens,Older People Mental Health Hunts,Nursing Care
Cambridgeshire County Council,19-Feb-21,51301522979,-803.78,ELTISLEY MANOR (PSYCARE LTD),CARE ESTABLISHMENT,OPMH - Hunts & Fens,Older People Mental Health Hunts,Nursing Care
Cambridgeshire County Council,19-Feb-21,51301522979,-803.78,ELTISLEY MANOR (PSYCARE LTD),CARE ESTABLISHMENT,OPMH - Hunts & Fens,Older People Mental Health Hunts,Nursing Care
Cambridgeshire County Council,19-Feb-21,51301522979,-803.78,ELTISLEY MANOR (PSYCARE LTD),CARE ESTABLISHMENT,OPMH - Hunts & Fens,Older People Mental Health Hunts,Nursing Care
Cambridgeshire County Council,19-Feb-21,51301522979,-803.78,ELTISLEY MANOR (PSYCARE LTD),CARE ESTABLISHMENT,OPMH - Hunts & Fens,Older People Mental Health Hunts,Nursing Care
